{"text_format":"3","workbook":"xlsx","n_sheets":12,"sheets":["JAN.","FEBR.","MÁRC.","ÁPR.","MÁJ.","JÚN.","JÚL.","AUG.","SZEPT.","OKT.","NOV.","DEC."],"not_rendered":{"defined_names":40},"read":"whole","date_system":"1900"}

{"sheet":"JAN.","index":0,"n_rows":20,"n_cols":9,"rows_kept":20,"merged":[[16,2,17,2],[16,3,17,3],[17,4,19,8]]}
[null,"JAN.","V",{"$f":"UPPER(TEXT(D3,\"nnn\"))","v":"H"},"K","SZE","CS","P","SZO"]
[null,{"$f":"YEAR(TODAY())","v":2018}]
[null,null,{"$f":"NapokÉsHetek+DATE(NaptáriÉv,1,1)-WEEKDAY(DATE(NaptáriÉv,1,1),(HétKezdete=\"H\")+1)+1","v":"2017-12-31"},"2018-01-01","2018-01-02","2018-01-03","2018-01-04","2018-01-05","2018-01-06"]
[null,null,{"$f":"IF(DAY(NaptáriNap)=1,CONCATENATE(\"Hét \",WEEKNUM(NaptáriNap),\"/Nap \",NaptáriNap-DATE(YEAR(NaptáriNap),1,0)),CONCATENATE(\"Nap \",NaptáriNap-DATE(YEAR(NaptáriNap),1,0)))","v":"Nap 365"},{"$f":"IF(DAY(NaptáriNap)=1,CONCATENATE(\"Hét \",WEEKNUM(NaptáriNap),\"/Nap \",NaptáriNap-DATE(YEAR(NaptáriNap),1,0)),CONCATENATE(\"Nap \",NaptáriNap-DATE(YEAR(NaptáriNap),1,0)))","v":"Hét 1/Nap 1"},{"$f":"IF(DAY(NaptáriNap)=1,CONCATENATE(\"Hét \",WEEKNUM(NaptáriNap),\"/Nap \",NaptáriNap-DATE(YEAR(NaptáriNap),1,0)),CONCATENATE(\"Nap \",NaptáriNap-DATE(YEAR(NaptáriNap),1,0)))","v":"Nap 2"},{"$f":"IF(DAY(NaptáriNap)=1,CONCATENATE(\"Hét \",WEEKNUM(NaptáriNap),\"/Nap \",NaptáriNap-DATE(YEAR(NaptáriNap),1,0)),CONCATENATE(\"Nap \",NaptáriNap-DATE(YEAR(NaptáriNap),1,0)))","v":"Nap 3"},{"$f":"IF(DAY(NaptáriNap)=1,CONCATENATE(\"Hét \",WEEKNUM(NaptáriNap),\"/Nap \",NaptáriNap-DATE(YEAR(NaptáriNap),1,0)),CONCATENATE(\"Nap \",NaptáriNap-DATE(YEAR(NaptáriNap),1,0)))","v":"Nap 4"},{"$f":"IF(DAY(NaptáriNap)=1,CONCATENATE(\"Hét \",WEEKNUM(NaptáriNap),\"/Nap \",NaptáriNap-DATE(YEAR(NaptáriNap),1,0)),CONCATENATE(\"Nap \",NaptáriNap-DATE(YEAR(NaptáriNap),1,0)))","v":"Nap 5"},{"$f":"IF(DAY(NaptáriNap)=1,CONCATENATE(\"Hét \",WEEKNUM(NaptáriNap),\"/Nap \",NaptáriNap-DATE(YEAR(NaptáriNap),1,0)),CONCATENATE(\"Nap \",NaptáriNap-DATE(YEAR(NaptáriNap),1,0)))","v":"Nap 6"}]
[]
[null,null,{"$f":"NapokÉsHetek+DATE(NaptáriÉv,1,1)-WEEKDAY(DATE(NaptáriÉv,1,1),(HétKezdete=\"H\")+1)+8","v":"2018-01-07"},"2018-01-08","2018-01-09","2018-01-10","2018-01-11","2018-01-12","2018-01-13"]
[null,null,{"$f":"IF(WEEKDAY(NaptáriNap)=HétKezdeteÉrték,CONCATENATE(\"Hét \",WEEKNUM(NaptáriNap),\"/Nap \",NaptáriNap-DATE(YEAR(NaptáriNap),1,0)),CONCATENATE(\"Nap \",NaptáriNap-DATE(YEAR(NaptáriNap),1,0)))","v":"Hét 2/Nap 7"},{"$f":"IF(WEEKDAY(NaptáriNap)=HétKezdeteÉrték,CONCATENATE(\"Hét \",WEEKNUM(NaptáriNap),\"/Nap \",NaptáriNap-DATE(YEAR(NaptáriNap),1,0)),CONCATENATE(\"Nap \",NaptáriNap-DATE(YEAR(NaptáriNap),1,0)))","v":"Nap 8"},{"$f":"IF(WEEKDAY(NaptáriNap)=HétKezdeteÉrték,CONCATENATE(\"Hét \",WEEKNUM(NaptáriNap),\"/Nap \",NaptáriNap-DATE(YEAR(NaptáriNap),1,0)),CONCATENATE(\"Nap \",NaptáriNap-DATE(YEAR(NaptáriNap),1,0)))","v":"Nap 9"},{"$f":"IF(WEEKDAY(NaptáriNap)=HétKezdeteÉrték,CONCATENATE(\"Hét \",WEEKNUM(NaptáriNap),\"/Nap \",NaptáriNap-DATE(YEAR(NaptáriNap),1,0)),CONCATENATE(\"Nap \",NaptáriNap-DATE(YEAR(NaptáriNap),1,0)))","v":"Nap 10"},{"$f":"IF(WEEKDAY(NaptáriNap)=HétKezdeteÉrték,CONCATENATE(\"Hét \",WEEKNUM(NaptáriNap),\"/Nap \",NaptáriNap-DATE(YEAR(NaptáriNap),1,0)),CONCATENATE(\"Nap \",NaptáriNap-DATE(YEAR(NaptáriNap),1,0)))","v":"Nap 11"},{"$f":"IF(WEEKDAY(NaptáriNap)=HétKezdeteÉrték,CONCATENATE(\"Hét \",WEEKNUM(NaptáriNap),\"/Nap \",NaptáriNap-DATE(YEAR(NaptáriNap),1,0)),CONCATENATE(\"Nap \",NaptáriNap-DATE(YEAR(NaptáriNap),1,0)))","v":"Nap 12"},{"$f":"IF(WEEKDAY(NaptáriNap)=HétKezdeteÉrték,CONCATENATE(\"Hét \",WEEKNUM(NaptáriNap),\"/Nap \",NaptáriNap-DATE(YEAR(NaptáriNap),1,0)),CONCATENATE(\"Nap \",NaptáriNap-DATE(YEAR(NaptáriNap),1,0)))","v":"Nap 13"}]
[]
[null,null,{"$f":"NapokÉsHetek+DATE(NaptáriÉv,1,1)-WEEKDAY(DATE(NaptáriÉv,1,1),(HétKezdete=\"H\")+1)+15","v":"2018-01-14"},"2018-01-15","2018-01-16","2018-01-17","2018-01-18","2018-01-19","2018-01-20"]
[null,null,{"$f":"IF(WEEKDAY(NaptáriNap)=HétKezdeteÉrték,CONCATENATE(\"Hét \",WEEKNUM(NaptáriNap),\"/Nap \",NaptáriNap-DATE(YEAR(NaptáriNap),1,0)),CONCATENATE(\"Nap \",NaptáriNap-DATE(YEAR(NaptáriNap),1,0)))","v":"Hét 3/Nap 14"},{"$f":"IF(WEEKDAY(NaptáriNap)=HétKezdeteÉrték,CONCATENATE(\"Hét \",WEEKNUM(NaptáriNap),\"/Nap \",NaptáriNap-DATE(YEAR(NaptáriNap),1,0)),CONCATENATE(\"Nap \",NaptáriNap-DATE(YEAR(NaptáriNap),1,0)))","v":"Nap 15"},{"$f":"IF(WEEKDAY(NaptáriNap)=HétKezdeteÉrték,CONCATENATE(\"Hét \",WEEKNUM(NaptáriNap),\"/Nap \",NaptáriNap-DATE(YEAR(NaptáriNap),1,0)),CONCATENATE(\"Nap \",NaptáriNap-DATE(YEAR(NaptáriNap),1,0)))","v":"Nap 16"},{"$f":"IF(WEEKDAY(NaptáriNap)=HétKezdeteÉrték,CONCATENATE(\"Hét \",WEEKNUM(NaptáriNap),\"/Nap \",NaptáriNap-DATE(YEAR(NaptáriNap),1,0)),CONCATENATE(\"Nap \",NaptáriNap-DATE(YEAR(NaptáriNap),1,0)))","v":"Nap 17"},{"$f":"IF(WEEKDAY(NaptáriNap)=HétKezdeteÉrték,CONCATENATE(\"Hét \",WEEKNUM(NaptáriNap),\"/Nap \",NaptáriNap-DATE(YEAR(NaptáriNap),1,0)),CONCATENATE(\"Nap \",NaptáriNap-DATE(YEAR(NaptáriNap),1,0)))","v":"Nap 18"},{"$f":"IF(WEEKDAY(NaptáriNap)=HétKezdeteÉrték,CONCATENATE(\"Hét \",WEEKNUM(NaptáriNap),\"/Nap \",NaptáriNap-DATE(YEAR(NaptáriNap),1,0)),CONCATENATE(\"Nap \",NaptáriNap-DATE(YEAR(NaptáriNap),1,0)))","v":"Nap 19"},{"$f":"IF(WEEKDAY(NaptáriNap)=HétKezdeteÉrték,CONCATENATE(\"Hét \",WEEKNUM(NaptáriNap),\"/Nap \",NaptáriNap-DATE(YEAR(NaptáriNap),1,0)),CONCATENATE(\"Nap \",NaptáriNap-DATE(YEAR(NaptáriNap),1,0)))","v":"Nap 20"}]
[]
[null,null,{"$f":"NapokÉsHetek+DATE(NaptáriÉv,1,1)-WEEKDAY(DATE(NaptáriÉv,1,1),(HétKezdete=\"H\")+1)+22","v":"2018-01-21"},"2018-01-22","2018-01-23","2018-01-24","2018-01-25","2018-01-26","2018-01-27"]
[null,null,{"$f":"IF(WEEKDAY(NaptáriNap)=HétKezdeteÉrték,CONCATENATE(\"Hét \",WEEKNUM(NaptáriNap),\"/Nap \",NaptáriNap-DATE(YEAR(NaptáriNap),1,0)),CONCATENATE(\"Nap \",NaptáriNap-DATE(YEAR(NaptáriNap),1,0)))","v":"Hét 4/Nap 21"},{"$f":"IF(WEEKDAY(NaptáriNap)=HétKezdeteÉrték,CONCATENATE(\"Hét \",WEEKNUM(NaptáriNap),\"/Nap \",NaptáriNap-DATE(YEAR(NaptáriNap),1,0)),CONCATENATE(\"Nap \",NaptáriNap-DATE(YEAR(NaptáriNap),1,0)))","v":"Nap 22"},{"$f":"IF(WEEKDAY(NaptáriNap)=HétKezdeteÉrték,CONCATENATE(\"Hét \",WEEKNUM(NaptáriNap),\"/Nap \",NaptáriNap-DATE(YEAR(NaptáriNap),1,0)),CONCATENATE(\"Nap \",NaptáriNap-DATE(YEAR(NaptáriNap),1,0)))","v":"Nap 23"},{"$f":"IF(WEEKDAY(NaptáriNap)=HétKezdeteÉrték,CONCATENATE(\"Hét \",WEEKNUM(NaptáriNap),\"/Nap \",NaptáriNap-DATE(YEAR(NaptáriNap),1,0)),CONCATENATE(\"Nap \",NaptáriNap-DATE(YEAR(NaptáriNap),1,0)))","v":"Nap 24"},{"$f":"IF(WEEKDAY(NaptáriNap)=HétKezdeteÉrték,CONCATENATE(\"Hét \",WEEKNUM(NaptáriNap),\"/Nap \",NaptáriNap-DATE(YEAR(NaptáriNap),1,0)),CONCATENATE(\"Nap \",NaptáriNap-DATE(YEAR(NaptáriNap),1,0)))","v":"Nap 25"},{"$f":"IF(WEEKDAY(NaptáriNap)=HétKezdeteÉrték,CONCATENATE(\"Hét \",WEEKNUM(NaptáriNap),\"/Nap \",NaptáriNap-DATE(YEAR(NaptáriNap),1,0)),CONCATENATE(\"Nap \",NaptáriNap-DATE(YEAR(NaptáriNap),1,0)))","v":"Nap 26"},{"$f":"IF(WEEKDAY(NaptáriNap)=HétKezdeteÉrték,CONCATENATE(\"Hét \",WEEKNUM(NaptáriNap),\"/Nap \",NaptáriNap-DATE(YEAR(NaptáriNap),1,0)),CONCATENATE(\"Nap \",NaptáriNap-DATE(YEAR(NaptáriNap),1,0)))","v":"Nap 27"}]
[]
[null,null,{"$f":"NapokÉsHetek+DATE(NaptáriÉv,1,1)-WEEKDAY(DATE(NaptáriÉv,1,1),(HétKezdete=\"H\")+1)+29","v":"2018-01-28"},"2018-01-29","2018-01-30","2018-01-31","2018-02-01","2018-02-02","2018-02-03"]
[null,null,{"$f":"IF(WEEKDAY(NaptáriNap)=HétKezdeteÉrték,CONCATENATE(\"Hét \",WEEKNUM(NaptáriNap),\"/Nap \",NaptáriNap-DATE(YEAR(NaptáriNap),1,0)),CONCATENATE(\"Nap \",NaptáriNap-DATE(YEAR(NaptáriNap),1,0)))","v":"Hét 5/Nap 28"},{"$f":"IF(WEEKDAY(NaptáriNap)=HétKezdeteÉrték,CONCATENATE(\"Hét \",WEEKNUM(NaptáriNap),\"/Nap \",NaptáriNap-DATE(YEAR(NaptáriNap),1,0)),CONCATENATE(\"Nap \",NaptáriNap-DATE(YEAR(NaptáriNap),1,0)))","v":"Nap 29"},{"$f":"IF(WEEKDAY(NaptáriNap)=HétKezdeteÉrték,CONCATENATE(\"Hét \",WEEKNUM(NaptáriNap),\"/Nap \",NaptáriNap-DATE(YEAR(NaptáriNap),1,0)),CONCATENATE(\"Nap \",NaptáriNap-DATE(YEAR(NaptáriNap),1,0)))","v":"Nap 30"},{"$f":"IF(WEEKDAY(NaptáriNap)=HétKezdeteÉrték,CONCATENATE(\"Hét \",WEEKNUM(NaptáriNap),\"/Nap \",NaptáriNap-DATE(YEAR(NaptáriNap),1,0)),CONCATENATE(\"Nap \",NaptáriNap-DATE(YEAR(NaptáriNap),1,0)))","v":"Nap 31"},{"$f":"IF(WEEKDAY(NaptáriNap)=HétKezdeteÉrték,CONCATENATE(\"Hét \",WEEKNUM(NaptáriNap),\"/Nap \",NaptáriNap-DATE(YEAR(NaptáriNap),1,0)),CONCATENATE(\"Nap \",NaptáriNap-DATE(YEAR(NaptáriNap),1,0)))","v":"Nap 32"},{"$f":"IF(WEEKDAY(NaptáriNap)=HétKezdeteÉrték,CONCATENATE(\"Hét \",WEEKNUM(NaptáriNap),\"/Nap \",NaptáriNap-DATE(YEAR(NaptáriNap),1,0)),CONCATENATE(\"Nap \",NaptáriNap-DATE(YEAR(NaptáriNap),1,0)))","v":"Nap 33"},{"$f":"IF(WEEKDAY(NaptáriNap)=HétKezdeteÉrték,CONCATENATE(\"Hét \",WEEKNUM(NaptáriNap),\"/Nap \",NaptáriNap-DATE(YEAR(NaptáriNap),1,0)),CONCATENATE(\"Nap \",NaptáriNap-DATE(YEAR(NaptáriNap),1,0)))","v":"Nap 34"}]
[{"$nulls":4},"JEGYZETEK"]
[]
[null,null,{"$f":"NapokÉsHetek+DATE(NaptáriÉv,1,1)-WEEKDAY(DATE(NaptáriÉv,1,1),(HétKezdete=\"H\")+1)+36","v":"2018-02-04"},"2018-02-05"]
[null,null,{"$f":"IF(WEEKDAY(NaptáriNap)=HétKezdeteÉrték,CONCATENATE(\"Hét \",WEEKNUM(NaptáriNap),\"/Nap \",NaptáriNap-DATE(YEAR(NaptáriNap),1,0)),CONCATENATE(\"Nap \",NaptáriNap-DATE(YEAR(NaptáriNap),1,0)))","v":"Hét 6/Nap 35"},{"$f":"IF(WEEKDAY(NaptáriNap)=HétKezdeteÉrték,CONCATENATE(\"Hét \",WEEKNUM(NaptáriNap),\"/Nap \",NaptáriNap-DATE(YEAR(NaptáriNap),1,0)),CONCATENATE(\"Nap \",NaptáriNap-DATE(YEAR(NaptáriNap),1,0)))","v":"Nap 36"}]

{"sheet":"FEBR.","index":1,"n_rows":20,"n_cols":9,"rows_kept":20,"merged":[[16,2,17,2],[17,4,19,8]]}
[null,"FEBR.",{"$f":"UPPER(TEXT(HétKezdete,\"ddd\"))","v":"V"},{"$f":"UPPER(TEXT(D3,\"aaa\"))","v":"H"},"K","SZE","CS","P","SZO"]
[null,{"$f":"NaptáriÉv","v":2018}]
[null,null,{"$f":"NapokÉsHetek+DATE(NaptáriÉv,2,1)-WEEKDAY(DATE(NaptáriÉv,2,1),(HétKezdete=\"H\")+1)+1","v":"2018-01-28"},"2018-01-29","2018-01-30","2018-01-31","2018-02-01","2018-02-02","2018-02-03"]
[null,null,{"$f":"IF(DAY(NaptáriNap)=1,CONCATENATE(\"Hét \",WEEKNUM(NaptáriNap),\"/Nap \",NaptáriNap-DATE(YEAR(NaptáriNap),1,0)),CONCATENATE(\"Nap \",NaptáriNap-DATE(YEAR(NaptáriNap),1,0)))","v":"Nap 28"},{"$f":"IF(DAY(NaptáriNap)=1,CONCATENATE(\"Hét \",WEEKNUM(NaptáriNap),\"/Nap \",NaptáriNap-DATE(YEAR(NaptáriNap),1,0)),CONCATENATE(\"Nap \",NaptáriNap-DATE(YEAR(NaptáriNap),1,0)))","v":"Nap 29"},{"$f":"IF(DAY(NaptáriNap)=1,CONCATENATE(\"Hét \",WEEKNUM(NaptáriNap),\"/Nap \",NaptáriNap-DATE(YEAR(NaptáriNap),1,0)),CONCATENATE(\"Nap \",NaptáriNap-DATE(YEAR(NaptáriNap),1,0)))","v":"Nap 30"},{"$f":"IF(DAY(NaptáriNap)=1,CONCATENATE(\"Hét \",WEEKNUM(NaptáriNap),\"/Nap \",NaptáriNap-DATE(YEAR(NaptáriNap),1,0)),CONCATENATE(\"Nap \",NaptáriNap-DATE(YEAR(NaptáriNap),1,0)))","v":"Nap 31"},{"$f":"IF(DAY(NaptáriNap)=1,CONCATENATE(\"Hét \",WEEKNUM(NaptáriNap),\"/Nap \",NaptáriNap-DATE(YEAR(NaptáriNap),1,0)),CONCATENATE(\"Nap \",NaptáriNap-DATE(YEAR(NaptáriNap),1,0)))","v":"Hét 5/Nap 32"},{"$f":"IF(DAY(NaptáriNap)=1,CONCATENATE(\"Hét \",WEEKNUM(NaptáriNap),\"/Nap \",NaptáriNap-DATE(YEAR(NaptáriNap),1,0)),CONCATENATE(\"Nap \",NaptáriNap-DATE(YEAR(NaptáriNap),1,0)))","v":"Nap 33"},{"$f":"IF(DAY(NaptáriNap)=1,CONCATENATE(\"Hét \",WEEKNUM(NaptáriNap),\"/Nap \",NaptáriNap-DATE(YEAR(NaptáriNap),1,0)),CONCATENATE(\"Nap \",NaptáriNap-DATE(YEAR(NaptáriNap),1,0)))","v":"Nap 34"}]
[]
[null,null,{"$f":"NapokÉsHetek+DATE(NaptáriÉv,2,1)-WEEKDAY(DATE(NaptáriÉv,2,1),(HétKezdete=\"H\")+1)+8","v":"2018-02-04"},"2018-02-05","2018-02-06","2018-02-07","2018-02-08","2018-02-09","2018-02-10"]
[null,null,{"$f":"IF(WEEKDAY(NaptáriNap)=HétKezdeteÉrték,CONCATENATE(\"Hét \",WEEKNUM(NaptáriNap),\"/Nap \",NaptáriNap-DATE(YEAR(NaptáriNap),1,0)),CONCATENATE(\"Nap \",NaptáriNap-DATE(YEAR(NaptáriNap),1,0)))","v":"Hét 6/Nap 35"},{"$f":"IF(WEEKDAY(NaptáriNap)=HétKezdeteÉrték,CONCATENATE(\"Hét \",WEEKNUM(NaptáriNap),\"/Nap \",NaptáriNap-DATE(YEAR(NaptáriNap),1,0)),CONCATENATE(\"Nap \",NaptáriNap-DATE(YEAR(NaptáriNap),1,0)))","v":"Nap 36"},{"$f":"IF(WEEKDAY(NaptáriNap)=HétKezdeteÉrték,CONCATENATE(\"Hét \",WEEKNUM(NaptáriNap),\"/Nap \",NaptáriNap-DATE(YEAR(NaptáriNap),1,0)),CONCATENATE(\"Nap \",NaptáriNap-DATE(YEAR(NaptáriNap),1,0)))","v":"Nap 37"},{"$f":"IF(WEEKDAY(NaptáriNap)=HétKezdeteÉrték,CONCATENATE(\"Hét \",WEEKNUM(NaptáriNap),\"/Nap \",NaptáriNap-DATE(YEAR(NaptáriNap),1,0)),CONCATENATE(\"Nap \",NaptáriNap-DATE(YEAR(NaptáriNap),1,0)))","v":"Nap 38"},{"$f":"IF(WEEKDAY(NaptáriNap)=HétKezdeteÉrték,CONCATENATE(\"Hét \",WEEKNUM(NaptáriNap),\"/Nap \",NaptáriNap-DATE(YEAR(NaptáriNap),1,0)),CONCATENATE(\"Nap \",NaptáriNap-DATE(YEAR(NaptáriNap),1,0)))","v":"Nap 39"},{"$f":"IF(WEEKDAY(NaptáriNap)=HétKezdeteÉrték,CONCATENATE(\"Hét \",WEEKNUM(NaptáriNap),\"/Nap \",NaptáriNap-DATE(YEAR(NaptáriNap),1,0)),CONCATENATE(\"Nap \",NaptáriNap-DATE(YEAR(NaptáriNap),1,0)))","v":"Nap 40"},{"$f":"IF(WEEKDAY(NaptáriNap)=HétKezdeteÉrték,CONCATENATE(\"Hét \",WEEKNUM(NaptáriNap),\"/Nap \",NaptáriNap-DATE(YEAR(NaptáriNap),1,0)),CONCATENATE(\"Nap \",NaptáriNap-DATE(YEAR(NaptáriNap),1,0)))","v":"Nap 41"}]
[]
[null,null,{"$f":"NapokÉsHetek+DATE(NaptáriÉv,2,1)-WEEKDAY(DATE(NaptáriÉv,2,1),(HétKezdete=\"H\")+1)+15","v":"2018-02-11"},"2018-02-12","2018-02-13","2018-02-14","2018-02-15","2018-02-16","2018-02-17"]
[null,null,{"$f":"IF(WEEKDAY(NaptáriNap)=HétKezdeteÉrték,CONCATENATE(\"Hét \",WEEKNUM(NaptáriNap),\"/Nap \",NaptáriNap-DATE(YEAR(NaptáriNap),1,0)),CONCATENATE(\"Nap \",NaptáriNap-DATE(YEAR(NaptáriNap),1,0)))","v":"Hét 7/Nap 42"},{"$f":"IF(WEEKDAY(NaptáriNap)=HétKezdeteÉrték,CONCATENATE(\"Hét \",WEEKNUM(NaptáriNap),\"/Nap \",NaptáriNap-DATE(YEAR(NaptáriNap),1,0)),CONCATENATE(\"Nap \",NaptáriNap-DATE(YEAR(NaptáriNap),1,0)))","v":"Nap 43"},{"$f":"IF(WEEKDAY(NaptáriNap)=HétKezdeteÉrték,CONCATENATE(\"Hét \",WEEKNUM(NaptáriNap),\"/Nap \",NaptáriNap-DATE(YEAR(NaptáriNap),1,0)),CONCATENATE(\"Nap \",NaptáriNap-DATE(YEAR(NaptáriNap),1,0)))","v":"Nap 44"},{"$f":"IF(WEEKDAY(NaptáriNap)=HétKezdeteÉrték,CONCATENATE(\"Hét \",WEEKNUM(NaptáriNap),\"/Nap \",NaptáriNap-DATE(YEAR(NaptáriNap),1,0)),CONCATENATE(\"Nap \",NaptáriNap-DATE(YEAR(NaptáriNap),1,0)))","v":"Nap 45"},{"$f":"IF(WEEKDAY(NaptáriNap)=HétKezdeteÉrték,CONCATENATE(\"Hét \",WEEKNUM(NaptáriNap),\"/Nap \",NaptáriNap-DATE(YEAR(NaptáriNap),1,0)),CONCATENATE(\"Nap \",NaptáriNap-DATE(YEAR(NaptáriNap),1,0)))","v":"Nap 46"},{"$f":"IF(WEEKDAY(NaptáriNap)=HétKezdeteÉrték,CONCATENATE(\"Hét \",WEEKNUM(NaptáriNap),\"/Nap \",NaptáriNap-DATE(YEAR(NaptáriNap),1,0)),CONCATENATE(\"Nap \",NaptáriNap-DATE(YEAR(NaptáriNap),1,0)))","v":"Nap 47"},{"$f":"IF(WEEKDAY(NaptáriNap)=HétKezdeteÉrték,CONCATENATE(\"Hét \",WEEKNUM(NaptáriNap),\"/Nap \",NaptáriNap-DATE(YEAR(NaptáriNap),1,0)),CONCATENATE(\"Nap \",NaptáriNap-DATE(YEAR(NaptáriNap),1,0)))","v":"Nap 48"}]
[]
[null,null,{"$f":"NapokÉsHetek+DATE(NaptáriÉv,2,1)-WEEKDAY(DATE(NaptáriÉv,2,1),(HétKezdete=\"H\")+1)+22","v":"2018-02-18"},"2018-02-19","2018-02-20","2018-02-21","2018-02-22","2018-02-23","2018-02-24"]
[null,null,{"$f":"IF(WEEKDAY(NaptáriNap)=HétKezdeteÉrték,CONCATENATE(\"Hét \",WEEKNUM(NaptáriNap),\"/Nap \",NaptáriNap-DATE(YEAR(NaptáriNap),1,0)),CONCATENATE(\"Nap \",NaptáriNap-DATE(YEAR(NaptáriNap),1,0)))","v":"Hét 8/Nap 49"},{"$f":"IF(WEEKDAY(NaptáriNap)=HétKezdeteÉrték,CONCATENATE(\"Hét \",WEEKNUM(NaptáriNap),\"/Nap \",NaptáriNap-DATE(YEAR(NaptáriNap),1,0)),CONCATENATE(\"Nap \",NaptáriNap-DATE(YEAR(NaptáriNap),1,0)))","v":"Nap 50"},{"$f":"IF(WEEKDAY(NaptáriNap)=HétKezdeteÉrték,CONCATENATE(\"Hét \",WEEKNUM(NaptáriNap),\"/Nap \",NaptáriNap-DATE(YEAR(NaptáriNap),1,0)),CONCATENATE(\"Nap \",NaptáriNap-DATE(YEAR(NaptáriNap),1,0)))","v":"Nap 51"},{"$f":"IF(WEEKDAY(NaptáriNap)=HétKezdeteÉrték,CONCATENATE(\"Hét \",WEEKNUM(NaptáriNap),\"/Nap \",NaptáriNap-DATE(YEAR(NaptáriNap),1,0)),CONCATENATE(\"Nap \",NaptáriNap-DATE(YEAR(NaptáriNap),1,0)))","v":"Nap 52"},{"$f":"IF(WEEKDAY(NaptáriNap)=HétKezdeteÉrték,CONCATENATE(\"Hét \",WEEKNUM(NaptáriNap),\"/Nap \",NaptáriNap-DATE(YEAR(NaptáriNap),1,0)),CONCATENATE(\"Nap \",NaptáriNap-DATE(YEAR(NaptáriNap),1,0)))","v":"Nap 53"},{"$f":"IF(WEEKDAY(NaptáriNap)=HétKezdeteÉrték,CONCATENATE(\"Hét \",WEEKNUM(NaptáriNap),\"/Nap \",NaptáriNap-DATE(YEAR(NaptáriNap),1,0)),CONCATENATE(\"Nap \",NaptáriNap-DATE(YEAR(NaptáriNap),1,0)))","v":"Nap 54"},{"$f":"IF(WEEKDAY(NaptáriNap)=HétKezdeteÉrték,CONCATENATE(\"Hét \",WEEKNUM(NaptáriNap),\"/Nap \",NaptáriNap-DATE(YEAR(NaptáriNap),1,0)),CONCATENATE(\"Nap \",NaptáriNap-DATE(YEAR(NaptáriNap),1,0)))","v":"Nap 55"}]
[]
[null,null,{"$f":"NapokÉsHetek+DATE(NaptáriÉv,2,1)-WEEKDAY(DATE(NaptáriÉv,2,1),(HétKezdete=\"H\")+1)+29","v":"2018-02-25"},"2018-02-26","2018-02-27","2018-02-28","2018-03-01","2018-03-02","2018-03-03"]
[null,null,{"$f":"IF(WEEKDAY(NaptáriNap)=HétKezdeteÉrték,CONCATENATE(\"Hét \",WEEKNUM(NaptáriNap),\"/Nap \",NaptáriNap-DATE(YEAR(NaptáriNap),1,0)),CONCATENATE(\"Nap \",NaptáriNap-DATE(YEAR(NaptáriNap),1,0)))","v":"Hét 9/Nap 56"},{"$f":"IF(WEEKDAY(NaptáriNap)=HétKezdeteÉrték,CONCATENATE(\"Hét \",WEEKNUM(NaptáriNap),\"/Nap \",NaptáriNap-DATE(YEAR(NaptáriNap),1,0)),CONCATENATE(\"Nap \",NaptáriNap-DATE(YEAR(NaptáriNap),1,0)))","v":"Nap 57"},{"$f":"IF(WEEKDAY(NaptáriNap)=HétKezdeteÉrték,CONCATENATE(\"Hét \",WEEKNUM(NaptáriNap),\"/Nap \",NaptáriNap-DATE(YEAR(NaptáriNap),1,0)),CONCATENATE(\"Nap \",NaptáriNap-DATE(YEAR(NaptáriNap),1,0)))","v":"Nap 58"},{"$f":"IF(WEEKDAY(NaptáriNap)=HétKezdeteÉrték,CONCATENATE(\"Hét \",WEEKNUM(NaptáriNap),\"/Nap \",NaptáriNap-DATE(YEAR(NaptáriNap),1,0)),CONCATENATE(\"Nap \",NaptáriNap-DATE(YEAR(NaptáriNap),1,0)))","v":"Nap 59"},{"$f":"IF(WEEKDAY(NaptáriNap)=HétKezdeteÉrték,CONCATENATE(\"Hét \",WEEKNUM(NaptáriNap),\"/Nap \",NaptáriNap-DATE(YEAR(NaptáriNap),1,0)),CONCATENATE(\"Nap \",NaptáriNap-DATE(YEAR(NaptáriNap),1,0)))","v":"Nap 60"},{"$f":"IF(WEEKDAY(NaptáriNap)=HétKezdeteÉrték,CONCATENATE(\"Hét \",WEEKNUM(NaptáriNap),\"/Nap \",NaptáriNap-DATE(YEAR(NaptáriNap),1,0)),CONCATENATE(\"Nap \",NaptáriNap-DATE(YEAR(NaptáriNap),1,0)))","v":"Nap 61"},{"$f":"IF(WEEKDAY(NaptáriNap)=HétKezdeteÉrték,CONCATENATE(\"Hét \",WEEKNUM(NaptáriNap),\"/Nap \",NaptáriNap-DATE(YEAR(NaptáriNap),1,0)),CONCATENATE(\"Nap \",NaptáriNap-DATE(YEAR(NaptáriNap),1,0)))","v":"Nap 62"}]
[{"$nulls":4},"JEGYZETEK"]
[]
[null,null,{"$f":"NapokÉsHetek+DATE(NaptáriÉv,2,1)-WEEKDAY(DATE(NaptáriÉv,2,1),(HétKezdete=\"H\")+1)+36","v":"2018-03-04"},"2018-03-05"]
[null,null,{"$f":"IF(WEEKDAY(NaptáriNap)=HétKezdeteÉrték,CONCATENATE(\"Hét \",WEEKNUM(NaptáriNap),\"/Nap \",NaptáriNap-DATE(YEAR(NaptáriNap),1,0)),CONCATENATE(\"Nap \",NaptáriNap-DATE(YEAR(NaptáriNap),1,0)))","v":"Hét 10/Nap 63"},{"$f":"IF(WEEKDAY(NaptáriNap)=HétKezdeteÉrték,CONCATENATE(\"Hét \",WEEKNUM(NaptáriNap),\"/Nap \",NaptáriNap-DATE(YEAR(NaptáriNap),1,0)),CONCATENATE(\"Nap \",NaptáriNap-DATE(YEAR(NaptáriNap),1,0)))","v":"Nap 64"}]

{"sheet":"MÁRC.","index":2,"n_rows":20,"n_cols":9,"rows_kept":20,"merged":[[16,2,17,2],[17,4,19,8]]}
[null,"MÁRC.",{"$f":"UPPER(TEXT(HétKezdete,\"ddd\"))","v":"V"},{"$f":"UPPER(TEXT(D3,\"aaa\"))","v":"H"},"K","SZE","CS","P","SZO"]
[null,{"$f":"NaptáriÉv","v":2018}]
[null,null,{"$f":"NapokÉsHetek+DATE(NaptáriÉv,3,1)-WEEKDAY(DATE(NaptáriÉv,3,1),(HétKezdete=\"H\")+1)+1","v":"2018-02-25"},"2018-02-26","2018-02-27","2018-02-28","2018-03-01","2018-03-02","2018-03-03"]
[null,null,{"$f":"IF(DAY(NaptáriNap)=1,CONCATENATE(\"Hét \",WEEKNUM(NaptáriNap),\"/Nap \",NaptáriNap-DATE(YEAR(NaptáriNap),1,0)),CONCATENATE(\"Nap \",NaptáriNap-DATE(YEAR(NaptáriNap),1,0)))","v":"Nap 56"},{"$f":"IF(DAY(NaptáriNap)=1,CONCATENATE(\"Hét \",WEEKNUM(NaptáriNap),\"/Nap \",NaptáriNap-DATE(YEAR(NaptáriNap),1,0)),CONCATENATE(\"Nap \",NaptáriNap-DATE(YEAR(NaptáriNap),1,0)))","v":"Nap 57"},{"$f":"IF(DAY(NaptáriNap)=1,CONCATENATE(\"Hét \",WEEKNUM(NaptáriNap),\"/Nap \",NaptáriNap-DATE(YEAR(NaptáriNap),1,0)),CONCATENATE(\"Nap \",NaptáriNap-DATE(YEAR(NaptáriNap),1,0)))","v":"Nap 58"},{"$f":"IF(DAY(NaptáriNap)=1,CONCATENATE(\"Hét \",WEEKNUM(NaptáriNap),\"/Nap \",NaptáriNap-DATE(YEAR(NaptáriNap),1,0)),CONCATENATE(\"Nap \",NaptáriNap-DATE(YEAR(NaptáriNap),1,0)))","v":"Nap 59"},{"$f":"IF(DAY(NaptáriNap)=1,CONCATENATE(\"Hét \",WEEKNUM(NaptáriNap),\"/Nap \",NaptáriNap-DATE(YEAR(NaptáriNap),1,0)),CONCATENATE(\"Nap \",NaptáriNap-DATE(YEAR(NaptáriNap),1,0)))","v":"Hét 9/Nap 60"},{"$f":"IF(DAY(NaptáriNap)=1,CONCATENATE(\"Hét \",WEEKNUM(NaptáriNap),\"/Nap \",NaptáriNap-DATE(YEAR(NaptáriNap),1,0)),CONCATENATE(\"Nap \",NaptáriNap-DATE(YEAR(NaptáriNap),1,0)))","v":"Nap 61"},{"$f":"IF(DAY(NaptáriNap)=1,CONCATENATE(\"Hét \",WEEKNUM(NaptáriNap),\"/Nap \",NaptáriNap-DATE(YEAR(NaptáriNap),1,0)),CONCATENATE(\"Nap \",NaptáriNap-DATE(YEAR(NaptáriNap),1,0)))","v":"Nap 62"}]
[]
[null,null,{"$f":"NapokÉsHetek+DATE(NaptáriÉv,3,1)-WEEKDAY(DATE(NaptáriÉv,3,1),(HétKezdete=\"H\")+1)+8","v":"2018-03-04"},"2018-03-05","2018-03-06","2018-03-07","2018-03-08","2018-03-09","2018-03-10"]
[null,null,{"$f":"IF(WEEKDAY(NaptáriNap)=HétKezdeteÉrték,CONCATENATE(\"Hét \",WEEKNUM(NaptáriNap),\"/Nap \",NaptáriNap-DATE(YEAR(NaptáriNap),1,0)),CONCATENATE(\"Nap \",NaptáriNap-DATE(YEAR(NaptáriNap),1,0)))","v":"Hét 10/Nap 63"},{"$f":"IF(WEEKDAY(NaptáriNap)=HétKezdeteÉrték,CONCATENATE(\"Hét \",WEEKNUM(NaptáriNap),\"/Nap \",NaptáriNap-DATE(YEAR(NaptáriNap),1,0)),CONCATENATE(\"Nap \",NaptáriNap-DATE(YEAR(NaptáriNap),1,0)))","v":"Nap 64"},{"$f":"IF(WEEKDAY(NaptáriNap)=HétKezdeteÉrték,CONCATENATE(\"Hét \",WEEKNUM(NaptáriNap),\"/Nap \",NaptáriNap-DATE(YEAR(NaptáriNap),1,0)),CONCATENATE(\"Nap \",NaptáriNap-DATE(YEAR(NaptáriNap),1,0)))","v":"Nap 65"},{"$f":"IF(WEEKDAY(NaptáriNap)=HétKezdeteÉrték,CONCATENATE(\"Hét \",WEEKNUM(NaptáriNap),\"/Nap \",NaptáriNap-DATE(YEAR(NaptáriNap),1,0)),CONCATENATE(\"Nap \",NaptáriNap-DATE(YEAR(NaptáriNap),1,0)))","v":"Nap 66"},{"$f":"IF(WEEKDAY(NaptáriNap)=HétKezdeteÉrték,CONCATENATE(\"Hét \",WEEKNUM(NaptáriNap),\"/Nap \",NaptáriNap-DATE(YEAR(NaptáriNap),1,0)),CONCATENATE(\"Nap \",NaptáriNap-DATE(YEAR(NaptáriNap),1,0)))","v":"Nap 67"},{"$f":"IF(WEEKDAY(NaptáriNap)=HétKezdeteÉrték,CONCATENATE(\"Hét \",WEEKNUM(NaptáriNap),\"/Nap \",NaptáriNap-DATE(YEAR(NaptáriNap),1,0)),CONCATENATE(\"Nap \",NaptáriNap-DATE(YEAR(NaptáriNap),1,0)))","v":"Nap 68"},{"$f":"IF(WEEKDAY(NaptáriNap)=HétKezdeteÉrték,CONCATENATE(\"Hét \",WEEKNUM(NaptáriNap),\"/Nap \",NaptáriNap-DATE(YEAR(NaptáriNap),1,0)),CONCATENATE(\"Nap \",NaptáriNap-DATE(YEAR(NaptáriNap),1,0)))","v":"Nap 69"}]
[]
[null,null,{"$f":"NapokÉsHetek+DATE(NaptáriÉv,3,1)-WEEKDAY(DATE(NaptáriÉv,3,1),(HétKezdete=\"H\")+1)+15","v":"2018-03-11"},"2018-03-12","2018-03-13","2018-03-14","2018-03-15","2018-03-16","2018-03-17"]
[null,null,{"$f":"IF(WEEKDAY(NaptáriNap)=HétKezdeteÉrték,CONCATENATE(\"Hét \",WEEKNUM(NaptáriNap),\"/Nap \",NaptáriNap-DATE(YEAR(NaptáriNap),1,0)),CONCATENATE(\"Nap \",NaptáriNap-DATE(YEAR(NaptáriNap),1,0)))","v":"Hét 11/Nap 70"},{"$f":"IF(WEEKDAY(NaptáriNap)=HétKezdeteÉrték,CONCATENATE(\"Hét \",WEEKNUM(NaptáriNap),\"/Nap \",NaptáriNap-DATE(YEAR(NaptáriNap),1,0)),CONCATENATE(\"Nap \",NaptáriNap-DATE(YEAR(NaptáriNap),1,0)))","v":"Nap 71"},{"$f":"IF(WEEKDAY(NaptáriNap)=HétKezdeteÉrték,CONCATENATE(\"Hét \",WEEKNUM(NaptáriNap),\"/Nap \",NaptáriNap-DATE(YEAR(NaptáriNap),1,0)),CONCATENATE(\"Nap \",NaptáriNap-DATE(YEAR(NaptáriNap),1,0)))","v":"Nap 72"},{"$f":"IF(WEEKDAY(NaptáriNap)=HétKezdeteÉrték,CONCATENATE(\"Hét \",WEEKNUM(NaptáriNap),\"/Nap \",NaptáriNap-DATE(YEAR(NaptáriNap),1,0)),CONCATENATE(\"Nap \",NaptáriNap-DATE(YEAR(NaptáriNap),1,0)))","v":"Nap 73"},{"$f":"IF(WEEKDAY(NaptáriNap)=HétKezdeteÉrték,CONCATENATE(\"Hét \",WEEKNUM(NaptáriNap),\"/Nap \",NaptáriNap-DATE(YEAR(NaptáriNap),1,0)),CONCATENATE(\"Nap \",NaptáriNap-DATE(YEAR(NaptáriNap),1,0)))","v":"Nap 74"},{"$f":"IF(WEEKDAY(NaptáriNap)=HétKezdeteÉrték,CONCATENATE(\"Hét \",WEEKNUM(NaptáriNap),\"/Nap \",NaptáriNap-DATE(YEAR(NaptáriNap),1,0)),CONCATENATE(\"Nap \",NaptáriNap-DATE(YEAR(NaptáriNap),1,0)))","v":"Nap 75"},{"$f":"IF(WEEKDAY(NaptáriNap)=HétKezdeteÉrték,CONCATENATE(\"Hét \",WEEKNUM(NaptáriNap),\"/Nap \",NaptáriNap-DATE(YEAR(NaptáriNap),1,0)),CONCATENATE(\"Nap \",NaptáriNap-DATE(YEAR(NaptáriNap),1,0)))","v":"Nap 76"}]
[]
[null,null,{"$f":"NapokÉsHetek+DATE(NaptáriÉv,3,1)-WEEKDAY(DATE(NaptáriÉv,3,1),(HétKezdete=\"H\")+1)+22","v":"2018-03-18"},"2018-03-19","2018-03-20","2018-03-21","2018-03-22","2018-03-23","2018-03-24"]
[null,null,{"$f":"IF(WEEKDAY(NaptáriNap)=HétKezdeteÉrték,CONCATENATE(\"Hét \",WEEKNUM(NaptáriNap),\"/Nap \",NaptáriNap-DATE(YEAR(NaptáriNap),1,0)),CONCATENATE(\"Nap \",NaptáriNap-DATE(YEAR(NaptáriNap),1,0)))","v":"Hét 12/Nap 77"},{"$f":"IF(WEEKDAY(NaptáriNap)=HétKezdeteÉrték,CONCATENATE(\"Hét \",WEEKNUM(NaptáriNap),\"/Nap \",NaptáriNap-DATE(YEAR(NaptáriNap),1,0)),CONCATENATE(\"Nap \",NaptáriNap-DATE(YEAR(NaptáriNap),1,0)))","v":"Nap 78"},{"$f":"IF(WEEKDAY(NaptáriNap)=HétKezdeteÉrték,CONCATENATE(\"Hét \",WEEKNUM(NaptáriNap),\"/Nap \",NaptáriNap-DATE(YEAR(NaptáriNap),1,0)),CONCATENATE(\"Nap \",NaptáriNap-DATE(YEAR(NaptáriNap),1,0)))","v":"Nap 79"},{"$f":"IF(WEEKDAY(NaptáriNap)=HétKezdeteÉrték,CONCATENATE(\"Hét \",WEEKNUM(NaptáriNap),\"/Nap \",NaptáriNap-DATE(YEAR(NaptáriNap),1,0)),CONCATENATE(\"Nap \",NaptáriNap-DATE(YEAR(NaptáriNap),1,0)))","v":"Nap 80"},{"$f":"IF(WEEKDAY(NaptáriNap)=HétKezdeteÉrték,CONCATENATE(\"Hét \",WEEKNUM(NaptáriNap),\"/Nap \",NaptáriNap-DATE(YEAR(NaptáriNap),1,0)),CONCATENATE(\"Nap \",NaptáriNap-DATE(YEAR(NaptáriNap),1,0)))","v":"Nap 81"},{"$f":"IF(WEEKDAY(NaptáriNap)=HétKezdeteÉrték,CONCATENATE(\"Hét \",WEEKNUM(NaptáriNap),\"/Nap \",NaptáriNap-DATE(YEAR(NaptáriNap),1,0)),CONCATENATE(\"Nap \",NaptáriNap-DATE(YEAR(NaptáriNap),1,0)))","v":"Nap 82"},{"$f":"IF(WEEKDAY(NaptáriNap)=HétKezdeteÉrték,CONCATENATE(\"Hét \",WEEKNUM(NaptáriNap),\"/Nap \",NaptáriNap-DATE(YEAR(NaptáriNap),1,0)),CONCATENATE(\"Nap \",NaptáriNap-DATE(YEAR(NaptáriNap),1,0)))","v":"Nap 83"}]
[]
[null,null,{"$f":"NapokÉsHetek+DATE(NaptáriÉv,3,1)-WEEKDAY(DATE(NaptáriÉv,3,1),(HétKezdete=\"H\")+1)+29","v":"2018-03-25"},"2018-03-26","2018-03-27","2018-03-28","2018-03-29","2018-03-30","2018-03-31"]
[null,null,{"$f":"IF(WEEKDAY(NaptáriNap)=HétKezdeteÉrték,CONCATENATE(\"Hét \",WEEKNUM(NaptáriNap),\"/Nap \",NaptáriNap-DATE(YEAR(NaptáriNap),1,0)),CONCATENATE(\"Nap \",NaptáriNap-DATE(YEAR(NaptáriNap),1,0)))","v":"Hét 13/Nap 84"},{"$f":"IF(WEEKDAY(NaptáriNap)=HétKezdeteÉrték,CONCATENATE(\"Hét \",WEEKNUM(NaptáriNap),\"/Nap \",NaptáriNap-DATE(YEAR(NaptáriNap),1,0)),CONCATENATE(\"Nap \",NaptáriNap-DATE(YEAR(NaptáriNap),1,0)))","v":"Nap 85"},{"$f":"IF(WEEKDAY(NaptáriNap)=HétKezdeteÉrték,CONCATENATE(\"Hét \",WEEKNUM(NaptáriNap),\"/Nap \",NaptáriNap-DATE(YEAR(NaptáriNap),1,0)),CONCATENATE(\"Nap \",NaptáriNap-DATE(YEAR(NaptáriNap),1,0)))","v":"Nap 86"},{"$f":"IF(WEEKDAY(NaptáriNap)=HétKezdeteÉrték,CONCATENATE(\"Hét \",WEEKNUM(NaptáriNap),\"/Nap \",NaptáriNap-DATE(YEAR(NaptáriNap),1,0)),CONCATENATE(\"Nap \",NaptáriNap-DATE(YEAR(NaptáriNap),1,0)))","v":"Nap 87"},{"$f":"IF(WEEKDAY(NaptáriNap)=HétKezdeteÉrték,CONCATENATE(\"Hét \",WEEKNUM(NaptáriNap),\"/Nap \",NaptáriNap-DATE(YEAR(NaptáriNap),1,0)),CONCATENATE(\"Nap \",NaptáriNap-DATE(YEAR(NaptáriNap),1,0)))","v":"Nap 88"},{"$f":"IF(WEEKDAY(NaptáriNap)=HétKezdeteÉrték,CONCATENATE(\"Hét \",WEEKNUM(NaptáriNap),\"/Nap \",NaptáriNap-DATE(YEAR(NaptáriNap),1,0)),CONCATENATE(\"Nap \",NaptáriNap-DATE(YEAR(NaptáriNap),1,0)))","v":"Nap 89"},{"$f":"IF(WEEKDAY(NaptáriNap)=HétKezdeteÉrték,CONCATENATE(\"Hét \",WEEKNUM(NaptáriNap),\"/Nap \",NaptáriNap-DATE(YEAR(NaptáriNap),1,0)),CONCATENATE(\"Nap \",NaptáriNap-DATE(YEAR(NaptáriNap),1,0)))","v":"Nap 90"}]
[{"$nulls":4},"JEGYZETEK"]
[]
[null,null,{"$f":"NapokÉsHetek+DATE(NaptáriÉv,3,1)-WEEKDAY(DATE(NaptáriÉv,3,1),(HétKezdete=\"H\")+1)+36","v":"2018-04-01"},"2018-04-02"]
[null,null,{"$f":"IF(WEEKDAY(NaptáriNap)=HétKezdeteÉrték,CONCATENATE(\"Hét \",WEEKNUM(NaptáriNap),\"/Nap \",NaptáriNap-DATE(YEAR(NaptáriNap),1,0)),CONCATENATE(\"Nap \",NaptáriNap-DATE(YEAR(NaptáriNap),1,0)))","v":"Hét 14/Nap 91"},{"$f":"IF(WEEKDAY(NaptáriNap)=HétKezdeteÉrték,CONCATENATE(\"Hét \",WEEKNUM(NaptáriNap),\"/Nap \",NaptáriNap-DATE(YEAR(NaptáriNap),1,0)),CONCATENATE(\"Nap \",NaptáriNap-DATE(YEAR(NaptáriNap),1,0)))","v":"Nap 92"}]

{"sheet":"ÁPR.","index":3,"n_rows":20,"n_cols":9,"rows_kept":20,"merged":[[16,2,17,2],[17,4,19,8]]}
[null,"ÁPR.",{"$f":"UPPER(TEXT(HétKezdete,\"ddd\"))","v":"V"},{"$f":"UPPER(TEXT(D3,\"aaa\"))","v":"H"},"K","SZE","CS","P","SZO"]
[null,{"$f":"NaptáriÉv","v":2018}]
[null,null,{"$f":"NapokÉsHetek+DATE(NaptáriÉv,4,1)-WEEKDAY(DATE(NaptáriÉv,4,1),(HétKezdete=\"H\")+1)+1","v":"2018-04-01"},"2018-04-02","2018-04-03","2018-04-04","2018-04-05","2018-04-06","2018-04-07"]
[null,null,{"$f":"IF(DAY(NaptáriNap)=1,CONCATENATE(\"Hét \",WEEKNUM(NaptáriNap),\"/Nap \",NaptáriNap-DATE(YEAR(NaptáriNap),1,0)),CONCATENATE(\"Nap \",NaptáriNap-DATE(YEAR(NaptáriNap),1,0)))","v":"Hét 14/Nap 91"},{"$f":"IF(DAY(NaptáriNap)=1,CONCATENATE(\"Hét \",WEEKNUM(NaptáriNap),\"/Nap \",NaptáriNap-DATE(YEAR(NaptáriNap),1,0)),CONCATENATE(\"Nap \",NaptáriNap-DATE(YEAR(NaptáriNap),1,0)))","v":"Nap 92"},{"$f":"IF(DAY(NaptáriNap)=1,CONCATENATE(\"Hét \",WEEKNUM(NaptáriNap),\"/Nap \",NaptáriNap-DATE(YEAR(NaptáriNap),1,0)),CONCATENATE(\"Nap \",NaptáriNap-DATE(YEAR(NaptáriNap),1,0)))","v":"Nap 93"},{"$f":"IF(DAY(NaptáriNap)=1,CONCATENATE(\"Hét \",WEEKNUM(NaptáriNap),\"/Nap \",NaptáriNap-DATE(YEAR(NaptáriNap),1,0)),CONCATENATE(\"Nap \",NaptáriNap-DATE(YEAR(NaptáriNap),1,0)))","v":"Nap 94"},{"$f":"IF(DAY(NaptáriNap)=1,CONCATENATE(\"Hét \",WEEKNUM(NaptáriNap),\"/Nap \",NaptáriNap-DATE(YEAR(NaptáriNap),1,0)),CONCATENATE(\"Nap \",NaptáriNap-DATE(YEAR(NaptáriNap),1,0)))","v":"Nap 95"},{"$f":"IF(DAY(NaptáriNap)=1,CONCATENATE(\"Hét \",WEEKNUM(NaptáriNap),\"/Nap \",NaptáriNap-DATE(YEAR(NaptáriNap),1,0)),CONCATENATE(\"Nap \",NaptáriNap-DATE(YEAR(NaptáriNap),1,0)))","v":"Nap 96"},{"$f":"IF(DAY(NaptáriNap)=1,CONCATENATE(\"Hét \",WEEKNUM(NaptáriNap),\"/Nap \",NaptáriNap-DATE(YEAR(NaptáriNap),1,0)),CONCATENATE(\"Nap \",NaptáriNap-DATE(YEAR(NaptáriNap),1,0)))","v":"Nap 97"}]
[]
[null,null,{"$f":"NapokÉsHetek+DATE(NaptáriÉv,4,1)-WEEKDAY(DATE(NaptáriÉv,4,1),(HétKezdete=\"H\")+1)+8","v":"2018-04-08"},"2018-04-09","2018-04-10","2018-04-11","2018-04-12","2018-04-13","2018-04-14"]
[null,null,{"$f":"IF(WEEKDAY(NaptáriNap)=HétKezdeteÉrték,CONCATENATE(\"Hét \",WEEKNUM(NaptáriNap),\"/Nap \",NaptáriNap-DATE(YEAR(NaptáriNap),1,0)),CONCATENATE(\"Nap \",NaptáriNap-DATE(YEAR(NaptáriNap),1,0)))","v":"Hét 15/Nap 98"},{"$f":"IF(WEEKDAY(NaptáriNap)=HétKezdeteÉrték,CONCATENATE(\"Hét \",WEEKNUM(NaptáriNap),\"/Nap \",NaptáriNap-DATE(YEAR(NaptáriNap),1,0)),CONCATENATE(\"Nap \",NaptáriNap-DATE(YEAR(NaptáriNap),1,0)))","v":"Nap 99"},{"$f":"IF(WEEKDAY(NaptáriNap)=HétKezdeteÉrték,CONCATENATE(\"Hét \",WEEKNUM(NaptáriNap),\"/Nap \",NaptáriNap-DATE(YEAR(NaptáriNap),1,0)),CONCATENATE(\"Nap \",NaptáriNap-DATE(YEAR(NaptáriNap),1,0)))","v":"Nap 100"},{"$f":"IF(WEEKDAY(NaptáriNap)=HétKezdeteÉrték,CONCATENATE(\"Hét \",WEEKNUM(NaptáriNap),\"/Nap \",NaptáriNap-DATE(YEAR(NaptáriNap),1,0)),CONCATENATE(\"Nap \",NaptáriNap-DATE(YEAR(NaptáriNap),1,0)))","v":"Nap 101"},{"$f":"IF(WEEKDAY(NaptáriNap)=HétKezdeteÉrték,CONCATENATE(\"Hét \",WEEKNUM(NaptáriNap),\"/Nap \",NaptáriNap-DATE(YEAR(NaptáriNap),1,0)),CONCATENATE(\"Nap \",NaptáriNap-DATE(YEAR(NaptáriNap),1,0)))","v":"Nap 102"},{"$f":"IF(WEEKDAY(NaptáriNap)=HétKezdeteÉrték,CONCATENATE(\"Hét \",WEEKNUM(NaptáriNap),\"/Nap \",NaptáriNap-DATE(YEAR(NaptáriNap),1,0)),CONCATENATE(\"Nap \",NaptáriNap-DATE(YEAR(NaptáriNap),1,0)))","v":"Nap 103"},{"$f":"IF(WEEKDAY(NaptáriNap)=HétKezdeteÉrték,CONCATENATE(\"Hét \",WEEKNUM(NaptáriNap),\"/Nap \",NaptáriNap-DATE(YEAR(NaptáriNap),1,0)),CONCATENATE(\"Nap \",NaptáriNap-DATE(YEAR(NaptáriNap),1,0)))","v":"Nap 104"}]
[]
[null,null,{"$f":"NapokÉsHetek+DATE(NaptáriÉv,4,1)-WEEKDAY(DATE(NaptáriÉv,4,1),(HétKezdete=\"H\")+1)+15","v":"2018-04-15"},"2018-04-16","2018-04-17","2018-04-18","2018-04-19","2018-04-20","2018-04-21"]
[null,null,{"$f":"IF(WEEKDAY(NaptáriNap)=HétKezdeteÉrték,CONCATENATE(\"Hét \",WEEKNUM(NaptáriNap),\"/Nap \",NaptáriNap-DATE(YEAR(NaptáriNap),1,0)),CONCATENATE(\"Nap \",NaptáriNap-DATE(YEAR(NaptáriNap),1,0)))","v":"Hét 16/Nap 105"},{"$f":"IF(WEEKDAY(NaptáriNap)=HétKezdeteÉrték,CONCATENATE(\"Hét \",WEEKNUM(NaptáriNap),\"/Nap \",NaptáriNap-DATE(YEAR(NaptáriNap),1,0)),CONCATENATE(\"Nap \",NaptáriNap-DATE(YEAR(NaptáriNap),1,0)))","v":"Nap 106"},{"$f":"IF(WEEKDAY(NaptáriNap)=HétKezdeteÉrték,CONCATENATE(\"Hét \",WEEKNUM(NaptáriNap),\"/Nap \",NaptáriNap-DATE(YEAR(NaptáriNap),1,0)),CONCATENATE(\"Nap \",NaptáriNap-DATE(YEAR(NaptáriNap),1,0)))","v":"Nap 107"},{"$f":"IF(WEEKDAY(NaptáriNap)=HétKezdeteÉrték,CONCATENATE(\"Hét \",WEEKNUM(NaptáriNap),\"/Nap \",NaptáriNap-DATE(YEAR(NaptáriNap),1,0)),CONCATENATE(\"Nap \",NaptáriNap-DATE(YEAR(NaptáriNap),1,0)))","v":"Nap 108"},{"$f":"IF(WEEKDAY(NaptáriNap)=HétKezdeteÉrték,CONCATENATE(\"Hét \",WEEKNUM(NaptáriNap),\"/Nap \",NaptáriNap-DATE(YEAR(NaptáriNap),1,0)),CONCATENATE(\"Nap \",NaptáriNap-DATE(YEAR(NaptáriNap),1,0)))","v":"Nap 109"},{"$f":"IF(WEEKDAY(NaptáriNap)=HétKezdeteÉrték,CONCATENATE(\"Hét \",WEEKNUM(NaptáriNap),\"/Nap \",NaptáriNap-DATE(YEAR(NaptáriNap),1,0)),CONCATENATE(\"Nap \",NaptáriNap-DATE(YEAR(NaptáriNap),1,0)))","v":"Nap 110"},{"$f":"IF(WEEKDAY(NaptáriNap)=HétKezdeteÉrték,CONCATENATE(\"Hét \",WEEKNUM(NaptáriNap),\"/Nap \",NaptáriNap-DATE(YEAR(NaptáriNap),1,0)),CONCATENATE(\"Nap \",NaptáriNap-DATE(YEAR(NaptáriNap),1,0)))","v":"Nap 111"}]
[]
[null,null,{"$f":"NapokÉsHetek+DATE(NaptáriÉv,4,1)-WEEKDAY(DATE(NaptáriÉv,4,1),(HétKezdete=\"H\")+1)+22","v":"2018-04-22"},"2018-04-23","2018-04-24","2018-04-25","2018-04-26","2018-04-27","2018-04-28"]
[null,null,{"$f":"IF(WEEKDAY(NaptáriNap)=HétKezdeteÉrték,CONCATENATE(\"Hét \",WEEKNUM(NaptáriNap),\"/Nap \",NaptáriNap-DATE(YEAR(NaptáriNap),1,0)),CONCATENATE(\"Nap \",NaptáriNap-DATE(YEAR(NaptáriNap),1,0)))","v":"Hét 17/Nap 112"},{"$f":"IF(WEEKDAY(NaptáriNap)=HétKezdeteÉrték,CONCATENATE(\"Hét \",WEEKNUM(NaptáriNap),\"/Nap \",NaptáriNap-DATE(YEAR(NaptáriNap),1,0)),CONCATENATE(\"Nap \",NaptáriNap-DATE(YEAR(NaptáriNap),1,0)))","v":"Nap 113"},{"$f":"IF(WEEKDAY(NaptáriNap)=HétKezdeteÉrték,CONCATENATE(\"Hét \",WEEKNUM(NaptáriNap),\"/Nap \",NaptáriNap-DATE(YEAR(NaptáriNap),1,0)),CONCATENATE(\"Nap \",NaptáriNap-DATE(YEAR(NaptáriNap),1,0)))","v":"Nap 114"},{"$f":"IF(WEEKDAY(NaptáriNap)=HétKezdeteÉrték,CONCATENATE(\"Hét \",WEEKNUM(NaptáriNap),\"/Nap \",NaptáriNap-DATE(YEAR(NaptáriNap),1,0)),CONCATENATE(\"Nap \",NaptáriNap-DATE(YEAR(NaptáriNap),1,0)))","v":"Nap 115"},{"$f":"IF(WEEKDAY(NaptáriNap)=HétKezdeteÉrték,CONCATENATE(\"Hét \",WEEKNUM(NaptáriNap),\"/Nap \",NaptáriNap-DATE(YEAR(NaptáriNap),1,0)),CONCATENATE(\"Nap \",NaptáriNap-DATE(YEAR(NaptáriNap),1,0)))","v":"Nap 116"},{"$f":"IF(WEEKDAY(NaptáriNap)=HétKezdeteÉrték,CONCATENATE(\"Hét \",WEEKNUM(NaptáriNap),\"/Nap \",NaptáriNap-DATE(YEAR(NaptáriNap),1,0)),CONCATENATE(\"Nap \",NaptáriNap-DATE(YEAR(NaptáriNap),1,0)))","v":"Nap 117"},{"$f":"IF(WEEKDAY(NaptáriNap)=HétKezdeteÉrték,CONCATENATE(\"Hét \",WEEKNUM(NaptáriNap),\"/Nap \",NaptáriNap-DATE(YEAR(NaptáriNap),1,0)),CONCATENATE(\"Nap \",NaptáriNap-DATE(YEAR(NaptáriNap),1,0)))","v":"Nap 118"}]
[]
[null,null,{"$f":"NapokÉsHetek+DATE(NaptáriÉv,4,1)-WEEKDAY(DATE(NaptáriÉv,4,1),(HétKezdete=\"H\")+1)+29","v":"2018-04-29"},"2018-04-30","2018-05-01","2018-05-02","2018-05-03","2018-05-04","2018-05-05"]
[null,null,{"$f":"IF(WEEKDAY(NaptáriNap)=HétKezdeteÉrték,CONCATENATE(\"Hét \",WEEKNUM(NaptáriNap),\"/Nap \",NaptáriNap-DATE(YEAR(NaptáriNap),1,0)),CONCATENATE(\"Nap \",NaptáriNap-DATE(YEAR(NaptáriNap),1,0)))","v":"Hét 18/Nap 119"},{"$f":"IF(WEEKDAY(NaptáriNap)=HétKezdeteÉrték,CONCATENATE(\"Hét \",WEEKNUM(NaptáriNap),\"/Nap \",NaptáriNap-DATE(YEAR(NaptáriNap),1,0)),CONCATENATE(\"Nap \",NaptáriNap-DATE(YEAR(NaptáriNap),1,0)))","v":"Nap 120"},{"$f":"IF(WEEKDAY(NaptáriNap)=HétKezdeteÉrték,CONCATENATE(\"Hét \",WEEKNUM(NaptáriNap),\"/Nap \",NaptáriNap-DATE(YEAR(NaptáriNap),1,0)),CONCATENATE(\"Nap \",NaptáriNap-DATE(YEAR(NaptáriNap),1,0)))","v":"Nap 121"},{"$f":"IF(WEEKDAY(NaptáriNap)=HétKezdeteÉrték,CONCATENATE(\"Hét \",WEEKNUM(NaptáriNap),\"/Nap \",NaptáriNap-DATE(YEAR(NaptáriNap),1,0)),CONCATENATE(\"Nap \",NaptáriNap-DATE(YEAR(NaptáriNap),1,0)))","v":"Nap 122"},{"$f":"IF(WEEKDAY(NaptáriNap)=HétKezdeteÉrték,CONCATENATE(\"Hét \",WEEKNUM(NaptáriNap),\"/Nap \",NaptáriNap-DATE(YEAR(NaptáriNap),1,0)),CONCATENATE(\"Nap \",NaptáriNap-DATE(YEAR(NaptáriNap),1,0)))","v":"Nap 123"},{"$f":"IF(WEEKDAY(NaptáriNap)=HétKezdeteÉrték,CONCATENATE(\"Hét \",WEEKNUM(NaptáriNap),\"/Nap \",NaptáriNap-DATE(YEAR(NaptáriNap),1,0)),CONCATENATE(\"Nap \",NaptáriNap-DATE(YEAR(NaptáriNap),1,0)))","v":"Nap 124"},{"$f":"IF(WEEKDAY(NaptáriNap)=HétKezdeteÉrték,CONCATENATE(\"Hét \",WEEKNUM(NaptáriNap),\"/Nap \",NaptáriNap-DATE(YEAR(NaptáriNap),1,0)),CONCATENATE(\"Nap \",NaptáriNap-DATE(YEAR(NaptáriNap),1,0)))","v":"Nap 125"}]
[{"$nulls":4},"JEGYZETEK"]
[]
[null,null,{"$f":"NapokÉsHetek+DATE(NaptáriÉv,4,1)-WEEKDAY(DATE(NaptáriÉv,4,1),(HétKezdete=\"H\")+1)+36","v":"2018-05-06"},"2018-05-07"]
[null,null,{"$f":"IF(WEEKDAY(NaptáriNap)=HétKezdeteÉrték,CONCATENATE(\"Hét \",WEEKNUM(NaptáriNap),\"/Nap \",NaptáriNap-DATE(YEAR(NaptáriNap),1,0)),CONCATENATE(\"Nap \",NaptáriNap-DATE(YEAR(NaptáriNap),1,0)))","v":"Hét 19/Nap 126"},{"$f":"IF(WEEKDAY(NaptáriNap)=HétKezdeteÉrték,CONCATENATE(\"Hét \",WEEKNUM(NaptáriNap),\"/Nap \",NaptáriNap-DATE(YEAR(NaptáriNap),1,0)),CONCATENATE(\"Nap \",NaptáriNap-DATE(YEAR(NaptáriNap),1,0)))","v":"Nap 127"}]

{"sheet":"MÁJ.","index":4,"n_rows":20,"n_cols":9,"rows_kept":20,"merged":[[16,2,17,2],[17,4,19,8]]}
[null,"MÁJ.",{"$f":"UPPER(TEXT(HétKezdete,\"ddd\"))","v":"V"},{"$f":"UPPER(TEXT(D3,\"aaa\"))","v":"H"},"K","SZE","CS","P","SZO"]
[null,{"$f":"NaptáriÉv","v":2018}]
[null,null,{"$f":"NapokÉsHetek+DATE(NaptáriÉv,5,1)-WEEKDAY(DATE(NaptáriÉv,5,1),(HétKezdete=\"H\")+1)+1","v":"2018-04-29"},"2018-04-30","2018-05-01","2018-05-02","2018-05-03","2018-05-04","2018-05-05"]
[null,null,{"$f":"IF(DAY(NaptáriNap)=1,CONCATENATE(\"Hét \",WEEKNUM(NaptáriNap),\"/Nap \",NaptáriNap-DATE(YEAR(NaptáriNap),1,0)),CONCATENATE(\"Nap \",NaptáriNap-DATE(YEAR(NaptáriNap),1,0)))","v":"Nap 119"},{"$f":"IF(DAY(NaptáriNap)=1,CONCATENATE(\"Hét \",WEEKNUM(NaptáriNap),\"/Nap \",NaptáriNap-DATE(YEAR(NaptáriNap),1,0)),CONCATENATE(\"Nap \",NaptáriNap-DATE(YEAR(NaptáriNap),1,0)))","v":"Nap 120"},{"$f":"IF(DAY(NaptáriNap)=1,CONCATENATE(\"Hét \",WEEKNUM(NaptáriNap),\"/Nap \",NaptáriNap-DATE(YEAR(NaptáriNap),1,0)),CONCATENATE(\"Nap \",NaptáriNap-DATE(YEAR(NaptáriNap),1,0)))","v":"Hét 18/Nap 121"},{"$f":"IF(DAY(NaptáriNap)=1,CONCATENATE(\"Hét \",WEEKNUM(NaptáriNap),\"/Nap \",NaptáriNap-DATE(YEAR(NaptáriNap),1,0)),CONCATENATE(\"Nap \",NaptáriNap-DATE(YEAR(NaptáriNap),1,0)))","v":"Nap 122"},{"$f":"IF(DAY(NaptáriNap)=1,CONCATENATE(\"Hét \",WEEKNUM(NaptáriNap),\"/Nap \",NaptáriNap-DATE(YEAR(NaptáriNap),1,0)),CONCATENATE(\"Nap \",NaptáriNap-DATE(YEAR(NaptáriNap),1,0)))","v":"Nap 123"},{"$f":"IF(DAY(NaptáriNap)=1,CONCATENATE(\"Hét \",WEEKNUM(NaptáriNap),\"/Nap \",NaptáriNap-DATE(YEAR(NaptáriNap),1,0)),CONCATENATE(\"Nap \",NaptáriNap-DATE(YEAR(NaptáriNap),1,0)))","v":"Nap 124"},{"$f":"IF(DAY(NaptáriNap)=1,CONCATENATE(\"Hét \",WEEKNUM(NaptáriNap),\"/Nap \",NaptáriNap-DATE(YEAR(NaptáriNap),1,0)),CONCATENATE(\"Nap \",NaptáriNap-DATE(YEAR(NaptáriNap),1,0)))","v":"Nap 125"}]
[]
[null,null,{"$f":"NapokÉsHetek+DATE(NaptáriÉv,5,1)-WEEKDAY(DATE(NaptáriÉv,5,1),(HétKezdete=\"H\")+1)+8","v":"2018-05-06"},"2018-05-07","2018-05-08","2018-05-09","2018-05-10","2018-05-11","2018-05-12"]
[null,null,{"$f":"IF(WEEKDAY(NaptáriNap)=HétKezdeteÉrték,CONCATENATE(\"Hét \",WEEKNUM(NaptáriNap),\"/Nap \",NaptáriNap-DATE(YEAR(NaptáriNap),1,0)),CONCATENATE(\"Nap \",NaptáriNap-DATE(YEAR(NaptáriNap),1,0)))","v":"Hét 19/Nap 126"},{"$f":"IF(WEEKDAY(NaptáriNap)=HétKezdeteÉrték,CONCATENATE(\"Hét \",WEEKNUM(NaptáriNap),\"/Nap \",NaptáriNap-DATE(YEAR(NaptáriNap),1,0)),CONCATENATE(\"Nap \",NaptáriNap-DATE(YEAR(NaptáriNap),1,0)))","v":"Nap 127"},{"$f":"IF(WEEKDAY(NaptáriNap)=HétKezdeteÉrték,CONCATENATE(\"Hét \",WEEKNUM(NaptáriNap),\"/Nap \",NaptáriNap-DATE(YEAR(NaptáriNap),1,0)),CONCATENATE(\"Nap \",NaptáriNap-DATE(YEAR(NaptáriNap),1,0)))","v":"Nap 128"},{"$f":"IF(WEEKDAY(NaptáriNap)=HétKezdeteÉrték,CONCATENATE(\"Hét \",WEEKNUM(NaptáriNap),\"/Nap \",NaptáriNap-DATE(YEAR(NaptáriNap),1,0)),CONCATENATE(\"Nap \",NaptáriNap-DATE(YEAR(NaptáriNap),1,0)))","v":"Nap 129"},{"$f":"IF(WEEKDAY(NaptáriNap)=HétKezdeteÉrték,CONCATENATE(\"Hét \",WEEKNUM(NaptáriNap),\"/Nap \",NaptáriNap-DATE(YEAR(NaptáriNap),1,0)),CONCATENATE(\"Nap \",NaptáriNap-DATE(YEAR(NaptáriNap),1,0)))","v":"Nap 130"},{"$f":"IF(WEEKDAY(NaptáriNap)=HétKezdeteÉrték,CONCATENATE(\"Hét \",WEEKNUM(NaptáriNap),\"/Nap \",NaptáriNap-DATE(YEAR(NaptáriNap),1,0)),CONCATENATE(\"Nap \",NaptáriNap-DATE(YEAR(NaptáriNap),1,0)))","v":"Nap 131"},{"$f":"IF(WEEKDAY(NaptáriNap)=HétKezdeteÉrték,CONCATENATE(\"Hét \",WEEKNUM(NaptáriNap),\"/Nap \",NaptáriNap-DATE(YEAR(NaptáriNap),1,0)),CONCATENATE(\"Nap \",NaptáriNap-DATE(YEAR(NaptáriNap),1,0)))","v":"Nap 132"}]
[]
[null,null,{"$f":"NapokÉsHetek+DATE(NaptáriÉv,5,1)-WEEKDAY(DATE(NaptáriÉv,5,1),(HétKezdete=\"H\")+1)+15","v":"2018-05-13"},"2018-05-14","2018-05-15","2018-05-16","2018-05-17","2018-05-18","2018-05-19"]
[null,null,{"$f":"IF(WEEKDAY(NaptáriNap)=HétKezdeteÉrték,CONCATENATE(\"Hét \",WEEKNUM(NaptáriNap),\"/Nap \",NaptáriNap-DATE(YEAR(NaptáriNap),1,0)),CONCATENATE(\"Nap \",NaptáriNap-DATE(YEAR(NaptáriNap),1,0)))","v":"Hét 20/Nap 133"},{"$f":"IF(WEEKDAY(NaptáriNap)=HétKezdeteÉrték,CONCATENATE(\"Hét \",WEEKNUM(NaptáriNap),\"/Nap \",NaptáriNap-DATE(YEAR(NaptáriNap),1,0)),CONCATENATE(\"Nap \",NaptáriNap-DATE(YEAR(NaptáriNap),1,0)))","v":"Nap 134"},{"$f":"IF(WEEKDAY(NaptáriNap)=HétKezdeteÉrték,CONCATENATE(\"Hét \",WEEKNUM(NaptáriNap),\"/Nap \",NaptáriNap-DATE(YEAR(NaptáriNap),1,0)),CONCATENATE(\"Nap \",NaptáriNap-DATE(YEAR(NaptáriNap),1,0)))","v":"Nap 135"},{"$f":"IF(WEEKDAY(NaptáriNap)=HétKezdeteÉrték,CONCATENATE(\"Hét \",WEEKNUM(NaptáriNap),\"/Nap \",NaptáriNap-DATE(YEAR(NaptáriNap),1,0)),CONCATENATE(\"Nap \",NaptáriNap-DATE(YEAR(NaptáriNap),1,0)))","v":"Nap 136"},{"$f":"IF(WEEKDAY(NaptáriNap)=HétKezdeteÉrték,CONCATENATE(\"Hét \",WEEKNUM(NaptáriNap),\"/Nap \",NaptáriNap-DATE(YEAR(NaptáriNap),1,0)),CONCATENATE(\"Nap \",NaptáriNap-DATE(YEAR(NaptáriNap),1,0)))","v":"Nap 137"},{"$f":"IF(WEEKDAY(NaptáriNap)=HétKezdeteÉrték,CONCATENATE(\"Hét \",WEEKNUM(NaptáriNap),\"/Nap \",NaptáriNap-DATE(YEAR(NaptáriNap),1,0)),CONCATENATE(\"Nap \",NaptáriNap-DATE(YEAR(NaptáriNap),1,0)))","v":"Nap 138"},{"$f":"IF(WEEKDAY(NaptáriNap)=HétKezdeteÉrték,CONCATENATE(\"Hét \",WEEKNUM(NaptáriNap),\"/Nap \",NaptáriNap-DATE(YEAR(NaptáriNap),1,0)),CONCATENATE(\"Nap \",NaptáriNap-DATE(YEAR(NaptáriNap),1,0)))","v":"Nap 139"}]
[]
[null,null,{"$f":"NapokÉsHetek+DATE(NaptáriÉv,5,1)-WEEKDAY(DATE(NaptáriÉv,5,1),(HétKezdete=\"H\")+1)+22","v":"2018-05-20"},"2018-05-21","2018-05-22","2018-05-23","2018-05-24","2018-05-25","2018-05-26"]
[null,null,{"$f":"IF(WEEKDAY(NaptáriNap)=HétKezdeteÉrték,CONCATENATE(\"Hét \",WEEKNUM(NaptáriNap),\"/Nap \",NaptáriNap-DATE(YEAR(NaptáriNap),1,0)),CONCATENATE(\"Nap \",NaptáriNap-DATE(YEAR(NaptáriNap),1,0)))","v":"Hét 21/Nap 140"},{"$f":"IF(WEEKDAY(NaptáriNap)=HétKezdeteÉrték,CONCATENATE(\"Hét \",WEEKNUM(NaptáriNap),\"/Nap \",NaptáriNap-DATE(YEAR(NaptáriNap),1,0)),CONCATENATE(\"Nap \",NaptáriNap-DATE(YEAR(NaptáriNap),1,0)))","v":"Nap 141"},{"$f":"IF(WEEKDAY(NaptáriNap)=HétKezdeteÉrték,CONCATENATE(\"Hét \",WEEKNUM(NaptáriNap),\"/Nap \",NaptáriNap-DATE(YEAR(NaptáriNap),1,0)),CONCATENATE(\"Nap \",NaptáriNap-DATE(YEAR(NaptáriNap),1,0)))","v":"Nap 142"},{"$f":"IF(WEEKDAY(NaptáriNap)=HétKezdeteÉrték,CONCATENATE(\"Hét \",WEEKNUM(NaptáriNap),\"/Nap \",NaptáriNap-DATE(YEAR(NaptáriNap),1,0)),CONCATENATE(\"Nap \",NaptáriNap-DATE(YEAR(NaptáriNap),1,0)))","v":"Nap 143"},{"$f":"IF(WEEKDAY(NaptáriNap)=HétKezdeteÉrték,CONCATENATE(\"Hét \",WEEKNUM(NaptáriNap),\"/Nap \",NaptáriNap-DATE(YEAR(NaptáriNap),1,0)),CONCATENATE(\"Nap \",NaptáriNap-DATE(YEAR(NaptáriNap),1,0)))","v":"Nap 144"},{"$f":"IF(WEEKDAY(NaptáriNap)=HétKezdeteÉrték,CONCATENATE(\"Hét \",WEEKNUM(NaptáriNap),\"/Nap \",NaptáriNap-DATE(YEAR(NaptáriNap),1,0)),CONCATENATE(\"Nap \",NaptáriNap-DATE(YEAR(NaptáriNap),1,0)))","v":"Nap 145"},{"$f":"IF(WEEKDAY(NaptáriNap)=HétKezdeteÉrték,CONCATENATE(\"Hét \",WEEKNUM(NaptáriNap),\"/Nap \",NaptáriNap-DATE(YEAR(NaptáriNap),1,0)),CONCATENATE(\"Nap \",NaptáriNap-DATE(YEAR(NaptáriNap),1,0)))","v":"Nap 146"}]
[]
[null,null,{"$f":"NapokÉsHetek+DATE(NaptáriÉv,5,1)-WEEKDAY(DATE(NaptáriÉv,5,1),(HétKezdete=\"H\")+1)+29","v":"2018-05-27"},"2018-05-28","2018-05-29","2018-05-30","2018-05-31","2018-06-01","2018-06-02"]
[null,null,{"$f":"IF(WEEKDAY(NaptáriNap)=HétKezdeteÉrték,CONCATENATE(\"Hét \",WEEKNUM(NaptáriNap),\"/Nap \",NaptáriNap-DATE(YEAR(NaptáriNap),1,0)),CONCATENATE(\"Nap \",NaptáriNap-DATE(YEAR(NaptáriNap),1,0)))","v":"Hét 22/Nap 147"},{"$f":"IF(WEEKDAY(NaptáriNap)=HétKezdeteÉrték,CONCATENATE(\"Hét \",WEEKNUM(NaptáriNap),\"/Nap \",NaptáriNap-DATE(YEAR(NaptáriNap),1,0)),CONCATENATE(\"Nap \",NaptáriNap-DATE(YEAR(NaptáriNap),1,0)))","v":"Nap 148"},{"$f":"IF(WEEKDAY(NaptáriNap)=HétKezdeteÉrték,CONCATENATE(\"Hét \",WEEKNUM(NaptáriNap),\"/Nap \",NaptáriNap-DATE(YEAR(NaptáriNap),1,0)),CONCATENATE(\"Nap \",NaptáriNap-DATE(YEAR(NaptáriNap),1,0)))","v":"Nap 149"},{"$f":"IF(WEEKDAY(NaptáriNap)=HétKezdeteÉrték,CONCATENATE(\"Hét \",WEEKNUM(NaptáriNap),\"/Nap \",NaptáriNap-DATE(YEAR(NaptáriNap),1,0)),CONCATENATE(\"Nap \",NaptáriNap-DATE(YEAR(NaptáriNap),1,0)))","v":"Nap 150"},{"$f":"IF(WEEKDAY(NaptáriNap)=HétKezdeteÉrték,CONCATENATE(\"Hét \",WEEKNUM(NaptáriNap),\"/Nap \",NaptáriNap-DATE(YEAR(NaptáriNap),1,0)),CONCATENATE(\"Nap \",NaptáriNap-DATE(YEAR(NaptáriNap),1,0)))","v":"Nap 151"},{"$f":"IF(WEEKDAY(NaptáriNap)=HétKezdeteÉrték,CONCATENATE(\"Hét \",WEEKNUM(NaptáriNap),\"/Nap \",NaptáriNap-DATE(YEAR(NaptáriNap),1,0)),CONCATENATE(\"Nap \",NaptáriNap-DATE(YEAR(NaptáriNap),1,0)))","v":"Nap 152"},{"$f":"IF(WEEKDAY(NaptáriNap)=HétKezdeteÉrték,CONCATENATE(\"Hét \",WEEKNUM(NaptáriNap),\"/Nap \",NaptáriNap-DATE(YEAR(NaptáriNap),1,0)),CONCATENATE(\"Nap \",NaptáriNap-DATE(YEAR(NaptáriNap),1,0)))","v":"Nap 153"}]
[{"$nulls":4},"JEGYZETEK"]
[]
[null,null,{"$f":"NapokÉsHetek+DATE(NaptáriÉv,5,1)-WEEKDAY(DATE(NaptáriÉv,5,1),(HétKezdete=\"H\")+1)+36","v":"2018-06-03"},"2018-06-04"]
[null,null,{"$f":"IF(WEEKDAY(NaptáriNap)=HétKezdeteÉrték,CONCATENATE(\"Hét \",WEEKNUM(NaptáriNap),\"/Nap \",NaptáriNap-DATE(YEAR(NaptáriNap),1,0)),CONCATENATE(\"Nap \",NaptáriNap-DATE(YEAR(NaptáriNap),1,0)))","v":"Hét 23/Nap 154"},{"$f":"IF(WEEKDAY(NaptáriNap)=HétKezdeteÉrték,CONCATENATE(\"Hét \",WEEKNUM(NaptáriNap),\"/Nap \",NaptáriNap-DATE(YEAR(NaptáriNap),1,0)),CONCATENATE(\"Nap \",NaptáriNap-DATE(YEAR(NaptáriNap),1,0)))","v":"Nap 155"}]

{"sheet":"JÚN.","index":5,"n_rows":20,"n_cols":9,"rows_kept":20,"merged":[[16,2,17,2],[17,4,19,8]]}
[null,"JÚN.",{"$f":"UPPER(TEXT(HétKezdete,\"ddd\"))","v":"V"},{"$f":"UPPER(TEXT(D3,\"aaa\"))","v":"H"},"K","SZE","CS","P","SZO"]
[null,{"$f":"NaptáriÉv","v":2018}]
[null,null,{"$f":"NapokÉsHetek+DATE(NaptáriÉv,6,1)-WEEKDAY(DATE(NaptáriÉv,6,1),(HétKezdete=\"H\")+1)+1","v":"2018-05-27"},"2018-05-28","2018-05-29","2018-05-30","2018-05-31","2018-06-01","2018-06-02"]
[null,null,{"$f":"IF(DAY(NaptáriNap)=1,CONCATENATE(\"Hét \",WEEKNUM(NaptáriNap),\"/Nap \",NaptáriNap-DATE(YEAR(NaptáriNap),1,0)),CONCATENATE(\"Nap \",NaptáriNap-DATE(YEAR(NaptáriNap),1,0)))","v":"Nap 147"},{"$f":"IF(DAY(NaptáriNap)=1,CONCATENATE(\"Hét \",WEEKNUM(NaptáriNap),\"/Nap \",NaptáriNap-DATE(YEAR(NaptáriNap),1,0)),CONCATENATE(\"Nap \",NaptáriNap-DATE(YEAR(NaptáriNap),1,0)))","v":"Nap 148"},{"$f":"IF(DAY(NaptáriNap)=1,CONCATENATE(\"Hét \",WEEKNUM(NaptáriNap),\"/Nap \",NaptáriNap-DATE(YEAR(NaptáriNap),1,0)),CONCATENATE(\"Nap \",NaptáriNap-DATE(YEAR(NaptáriNap),1,0)))","v":"Nap 149"},{"$f":"IF(DAY(NaptáriNap)=1,CONCATENATE(\"Hét \",WEEKNUM(NaptáriNap),\"/Nap \",NaptáriNap-DATE(YEAR(NaptáriNap),1,0)),CONCATENATE(\"Nap \",NaptáriNap-DATE(YEAR(NaptáriNap),1,0)))","v":"Nap 150"},{"$f":"IF(DAY(NaptáriNap)=1,CONCATENATE(\"Hét \",WEEKNUM(NaptáriNap),\"/Nap \",NaptáriNap-DATE(YEAR(NaptáriNap),1,0)),CONCATENATE(\"Nap \",NaptáriNap-DATE(YEAR(NaptáriNap),1,0)))","v":"Nap 151"},{"$f":"IF(DAY(NaptáriNap)=1,CONCATENATE(\"Hét \",WEEKNUM(NaptáriNap),\"/Nap \",NaptáriNap-DATE(YEAR(NaptáriNap),1,0)),CONCATENATE(\"Nap \",NaptáriNap-DATE(YEAR(NaptáriNap),1,0)))","v":"Hét 22/Nap 152"},{"$f":"IF(DAY(NaptáriNap)=1,CONCATENATE(\"Hét \",WEEKNUM(NaptáriNap),\"/Nap \",NaptáriNap-DATE(YEAR(NaptáriNap),1,0)),CONCATENATE(\"Nap \",NaptáriNap-DATE(YEAR(NaptáriNap),1,0)))","v":"Nap 153"}]
[]
[null,null,{"$f":"NapokÉsHetek+DATE(NaptáriÉv,6,1)-WEEKDAY(DATE(NaptáriÉv,6,1),(HétKezdete=\"H\")+1)+8","v":"2018-06-03"},"2018-06-04","2018-06-05","2018-06-06","2018-06-07","2018-06-08","2018-06-09"]
[null,null,{"$f":"IF(WEEKDAY(NaptáriNap)=HétKezdeteÉrték,CONCATENATE(\"Hét \",WEEKNUM(NaptáriNap),\"/Nap \",NaptáriNap-DATE(YEAR(NaptáriNap),1,0)),CONCATENATE(\"Nap \",NaptáriNap-DATE(YEAR(NaptáriNap),1,0)))","v":"Hét 23/Nap 154"},{"$f":"IF(WEEKDAY(NaptáriNap)=HétKezdeteÉrték,CONCATENATE(\"Hét \",WEEKNUM(NaptáriNap),\"/Nap \",NaptáriNap-DATE(YEAR(NaptáriNap),1,0)),CONCATENATE(\"Nap \",NaptáriNap-DATE(YEAR(NaptáriNap),1,0)))","v":"Nap 155"},{"$f":"IF(WEEKDAY(NaptáriNap)=HétKezdeteÉrték,CONCATENATE(\"Hét \",WEEKNUM(NaptáriNap),\"/Nap \",NaptáriNap-DATE(YEAR(NaptáriNap),1,0)),CONCATENATE(\"Nap \",NaptáriNap-DATE(YEAR(NaptáriNap),1,0)))","v":"Nap 156"},{"$f":"IF(WEEKDAY(NaptáriNap)=HétKezdeteÉrték,CONCATENATE(\"Hét \",WEEKNUM(NaptáriNap),\"/Nap \",NaptáriNap-DATE(YEAR(NaptáriNap),1,0)),CONCATENATE(\"Nap \",NaptáriNap-DATE(YEAR(NaptáriNap),1,0)))","v":"Nap 157"},{"$f":"IF(WEEKDAY(NaptáriNap)=HétKezdeteÉrték,CONCATENATE(\"Hét \",WEEKNUM(NaptáriNap),\"/Nap \",NaptáriNap-DATE(YEAR(NaptáriNap),1,0)),CONCATENATE(\"Nap \",NaptáriNap-DATE(YEAR(NaptáriNap),1,0)))","v":"Nap 158"},{"$f":"IF(WEEKDAY(NaptáriNap)=HétKezdeteÉrték,CONCATENATE(\"Hét \",WEEKNUM(NaptáriNap),\"/Nap \",NaptáriNap-DATE(YEAR(NaptáriNap),1,0)),CONCATENATE(\"Nap \",NaptáriNap-DATE(YEAR(NaptáriNap),1,0)))","v":"Nap 159"},{"$f":"IF(WEEKDAY(NaptáriNap)=HétKezdeteÉrték,CONCATENATE(\"Hét \",WEEKNUM(NaptáriNap),\"/Nap \",NaptáriNap-DATE(YEAR(NaptáriNap),1,0)),CONCATENATE(\"Nap \",NaptáriNap-DATE(YEAR(NaptáriNap),1,0)))","v":"Nap 160"}]
[]
[null,null,{"$f":"NapokÉsHetek+DATE(NaptáriÉv,6,1)-WEEKDAY(DATE(NaptáriÉv,6,1),(HétKezdete=\"H\")+1)+15","v":"2018-06-10"},"2018-06-11","2018-06-12","2018-06-13","2018-06-14","2018-06-15","2018-06-16"]
[null,null,{"$f":"IF(WEEKDAY(NaptáriNap)=HétKezdeteÉrték,CONCATENATE(\"Hét \",WEEKNUM(NaptáriNap),\"/Nap \",NaptáriNap-DATE(YEAR(NaptáriNap),1,0)),CONCATENATE(\"Nap \",NaptáriNap-DATE(YEAR(NaptáriNap),1,0)))","v":"Hét 24/Nap 161"},{"$f":"IF(WEEKDAY(NaptáriNap)=HétKezdeteÉrték,CONCATENATE(\"Hét \",WEEKNUM(NaptáriNap),\"/Nap \",NaptáriNap-DATE(YEAR(NaptáriNap),1,0)),CONCATENATE(\"Nap \",NaptáriNap-DATE(YEAR(NaptáriNap),1,0)))","v":"Nap 162"},{"$f":"IF(WEEKDAY(NaptáriNap)=HétKezdeteÉrték,CONCATENATE(\"Hét \",WEEKNUM(NaptáriNap),\"/Nap \",NaptáriNap-DATE(YEAR(NaptáriNap),1,0)),CONCATENATE(\"Nap \",NaptáriNap-DATE(YEAR(NaptáriNap),1,0)))","v":"Nap 163"},{"$f":"IF(WEEKDAY(NaptáriNap)=HétKezdeteÉrték,CONCATENATE(\"Hét \",WEEKNUM(NaptáriNap),\"/Nap \",NaptáriNap-DATE(YEAR(NaptáriNap),1,0)),CONCATENATE(\"Nap \",NaptáriNap-DATE(YEAR(NaptáriNap),1,0)))","v":"Nap 164"},{"$f":"IF(WEEKDAY(NaptáriNap)=HétKezdeteÉrték,CONCATENATE(\"Hét \",WEEKNUM(NaptáriNap),\"/Nap \",NaptáriNap-DATE(YEAR(NaptáriNap),1,0)),CONCATENATE(\"Nap \",NaptáriNap-DATE(YEAR(NaptáriNap),1,0)))","v":"Nap 165"},{"$f":"IF(WEEKDAY(NaptáriNap)=HétKezdeteÉrték,CONCATENATE(\"Hét \",WEEKNUM(NaptáriNap),\"/Nap \",NaptáriNap-DATE(YEAR(NaptáriNap),1,0)),CONCATENATE(\"Nap \",NaptáriNap-DATE(YEAR(NaptáriNap),1,0)))","v":"Nap 166"},{"$f":"IF(WEEKDAY(NaptáriNap)=HétKezdeteÉrték,CONCATENATE(\"Hét \",WEEKNUM(NaptáriNap),\"/Nap \",NaptáriNap-DATE(YEAR(NaptáriNap),1,0)),CONCATENATE(\"Nap \",NaptáriNap-DATE(YEAR(NaptáriNap),1,0)))","v":"Nap 167"}]
[]
[null,null,{"$f":"NapokÉsHetek+DATE(NaptáriÉv,6,1)-WEEKDAY(DATE(NaptáriÉv,6,1),(HétKezdete=\"H\")+1)+22","v":"2018-06-17"},"2018-06-18","2018-06-19","2018-06-20","2018-06-21","2018-06-22","2018-06-23"]
[null,null,{"$f":"IF(WEEKDAY(NaptáriNap)=HétKezdeteÉrték,CONCATENATE(\"Hét \",WEEKNUM(NaptáriNap),\"/Nap \",NaptáriNap-DATE(YEAR(NaptáriNap),1,0)),CONCATENATE(\"Nap \",NaptáriNap-DATE(YEAR(NaptáriNap),1,0)))","v":"Hét 25/Nap 168"},{"$f":"IF(WEEKDAY(NaptáriNap)=HétKezdeteÉrték,CONCATENATE(\"Hét \",WEEKNUM(NaptáriNap),\"/Nap \",NaptáriNap-DATE(YEAR(NaptáriNap),1,0)),CONCATENATE(\"Nap \",NaptáriNap-DATE(YEAR(NaptáriNap),1,0)))","v":"Nap 169"},{"$f":"IF(WEEKDAY(NaptáriNap)=HétKezdeteÉrték,CONCATENATE(\"Hét \",WEEKNUM(NaptáriNap),\"/Nap \",NaptáriNap-DATE(YEAR(NaptáriNap),1,0)),CONCATENATE(\"Nap \",NaptáriNap-DATE(YEAR(NaptáriNap),1,0)))","v":"Nap 170"},{"$f":"IF(WEEKDAY(NaptáriNap)=HétKezdeteÉrték,CONCATENATE(\"Hét \",WEEKNUM(NaptáriNap),\"/Nap \",NaptáriNap-DATE(YEAR(NaptáriNap),1,0)),CONCATENATE(\"Nap \",NaptáriNap-DATE(YEAR(NaptáriNap),1,0)))","v":"Nap 171"},{"$f":"IF(WEEKDAY(NaptáriNap)=HétKezdeteÉrték,CONCATENATE(\"Hét \",WEEKNUM(NaptáriNap),\"/Nap \",NaptáriNap-DATE(YEAR(NaptáriNap),1,0)),CONCATENATE(\"Nap \",NaptáriNap-DATE(YEAR(NaptáriNap),1,0)))","v":"Nap 172"},{"$f":"IF(WEEKDAY(NaptáriNap)=HétKezdeteÉrték,CONCATENATE(\"Hét \",WEEKNUM(NaptáriNap),\"/Nap \",NaptáriNap-DATE(YEAR(NaptáriNap),1,0)),CONCATENATE(\"Nap \",NaptáriNap-DATE(YEAR(NaptáriNap),1,0)))","v":"Nap 173"},{"$f":"IF(WEEKDAY(NaptáriNap)=HétKezdeteÉrték,CONCATENATE(\"Hét \",WEEKNUM(NaptáriNap),\"/Nap \",NaptáriNap-DATE(YEAR(NaptáriNap),1,0)),CONCATENATE(\"Nap \",NaptáriNap-DATE(YEAR(NaptáriNap),1,0)))","v":"Nap 174"}]
[]
[null,null,{"$f":"NapokÉsHetek+DATE(NaptáriÉv,6,1)-WEEKDAY(DATE(NaptáriÉv,6,1),(HétKezdete=\"H\")+1)+29","v":"2018-06-24"},"2018-06-25","2018-06-26","2018-06-27","2018-06-28","2018-06-29","2018-06-30"]
[null,null,{"$f":"IF(WEEKDAY(NaptáriNap)=HétKezdeteÉrték,CONCATENATE(\"Hét \",WEEKNUM(NaptáriNap),\"/Nap \",NaptáriNap-DATE(YEAR(NaptáriNap),1,0)),CONCATENATE(\"Nap \",NaptáriNap-DATE(YEAR(NaptáriNap),1,0)))","v":"Hét 26/Nap 175"},{"$f":"IF(WEEKDAY(NaptáriNap)=HétKezdeteÉrték,CONCATENATE(\"Hét \",WEEKNUM(NaptáriNap),\"/Nap \",NaptáriNap-DATE(YEAR(NaptáriNap),1,0)),CONCATENATE(\"Nap \",NaptáriNap-DATE(YEAR(NaptáriNap),1,0)))","v":"Nap 176"},{"$f":"IF(WEEKDAY(NaptáriNap)=HétKezdeteÉrték,CONCATENATE(\"Hét \",WEEKNUM(NaptáriNap),\"/Nap \",NaptáriNap-DATE(YEAR(NaptáriNap),1,0)),CONCATENATE(\"Nap \",NaptáriNap-DATE(YEAR(NaptáriNap),1,0)))","v":"Nap 177"},{"$f":"IF(WEEKDAY(NaptáriNap)=HétKezdeteÉrték,CONCATENATE(\"Hét \",WEEKNUM(NaptáriNap),\"/Nap \",NaptáriNap-DATE(YEAR(NaptáriNap),1,0)),CONCATENATE(\"Nap \",NaptáriNap-DATE(YEAR(NaptáriNap),1,0)))","v":"Nap 178"},{"$f":"IF(WEEKDAY(NaptáriNap)=HétKezdeteÉrték,CONCATENATE(\"Hét \",WEEKNUM(NaptáriNap),\"/Nap \",NaptáriNap-DATE(YEAR(NaptáriNap),1,0)),CONCATENATE(\"Nap \",NaptáriNap-DATE(YEAR(NaptáriNap),1,0)))","v":"Nap 179"},{"$f":"IF(WEEKDAY(NaptáriNap)=HétKezdeteÉrték,CONCATENATE(\"Hét \",WEEKNUM(NaptáriNap),\"/Nap \",NaptáriNap-DATE(YEAR(NaptáriNap),1,0)),CONCATENATE(\"Nap \",NaptáriNap-DATE(YEAR(NaptáriNap),1,0)))","v":"Nap 180"},{"$f":"IF(WEEKDAY(NaptáriNap)=HétKezdeteÉrték,CONCATENATE(\"Hét \",WEEKNUM(NaptáriNap),\"/Nap \",NaptáriNap-DATE(YEAR(NaptáriNap),1,0)),CONCATENATE(\"Nap \",NaptáriNap-DATE(YEAR(NaptáriNap),1,0)))","v":"Nap 181"}]
[{"$nulls":4},"JEGYZETEK"]
[]
[null,null,{"$f":"NapokÉsHetek+DATE(NaptáriÉv,6,1)-WEEKDAY(DATE(NaptáriÉv,6,1),(HétKezdete=\"H\")+1)+36","v":"2018-07-01"},"2018-07-02"]
[null,null,{"$f":"IF(WEEKDAY(NaptáriNap)=HétKezdeteÉrték,CONCATENATE(\"Hét \",WEEKNUM(NaptáriNap),\"/Nap \",NaptáriNap-DATE(YEAR(NaptáriNap),1,0)),CONCATENATE(\"Nap \",NaptáriNap-DATE(YEAR(NaptáriNap),1,0)))","v":"Hét 27/Nap 182"},{"$f":"IF(WEEKDAY(NaptáriNap)=HétKezdeteÉrték,CONCATENATE(\"Hét \",WEEKNUM(NaptáriNap),\"/Nap \",NaptáriNap-DATE(YEAR(NaptáriNap),1,0)),CONCATENATE(\"Nap \",NaptáriNap-DATE(YEAR(NaptáriNap),1,0)))","v":"Nap 183"}]

{"sheet":"JÚL.","index":6,"n_rows":20,"n_cols":9,"rows_kept":20,"merged":[[16,2,17,2],[17,4,19,8]]}
[null,"JÚL.",{"$f":"UPPER(TEXT(HétKezdete,\"ddd\"))","v":"V"},{"$f":"UPPER(TEXT(D3,\"aaa\"))","v":"H"},"K","SZE","CS","P","SZO"]
[null,{"$f":"NaptáriÉv","v":2018}]
[null,null,{"$f":"NapokÉsHetek+DATE(NaptáriÉv,7,1)-WEEKDAY(DATE(NaptáriÉv,7,1),(HétKezdete=\"H\")+1)+1","v":"2018-07-01"},"2018-07-02","2018-07-03","2018-07-04","2018-07-05","2018-07-06","2018-07-07"]
[null,null,{"$f":"IF(DAY(NaptáriNap)=1,CONCATENATE(\"Hét \",WEEKNUM(NaptáriNap),\"/Nap \",NaptáriNap-DATE(YEAR(NaptáriNap),1,0)),CONCATENATE(\"Nap \",NaptáriNap-DATE(YEAR(NaptáriNap),1,0)))","v":"Hét 27/Nap 182"},{"$f":"IF(DAY(NaptáriNap)=1,CONCATENATE(\"Hét \",WEEKNUM(NaptáriNap),\"/Nap \",NaptáriNap-DATE(YEAR(NaptáriNap),1,0)),CONCATENATE(\"Nap \",NaptáriNap-DATE(YEAR(NaptáriNap),1,0)))","v":"Nap 183"},{"$f":"IF(DAY(NaptáriNap)=1,CONCATENATE(\"Hét \",WEEKNUM(NaptáriNap),\"/Nap \",NaptáriNap-DATE(YEAR(NaptáriNap),1,0)),CONCATENATE(\"Nap \",NaptáriNap-DATE(YEAR(NaptáriNap),1,0)))","v":"Nap 184"},{"$f":"IF(DAY(NaptáriNap)=1,CONCATENATE(\"Hét \",WEEKNUM(NaptáriNap),\"/Nap \",NaptáriNap-DATE(YEAR(NaptáriNap),1,0)),CONCATENATE(\"Nap \",NaptáriNap-DATE(YEAR(NaptáriNap),1,0)))","v":"Nap 185"},{"$f":"IF(DAY(NaptáriNap)=1,CONCATENATE(\"Hét \",WEEKNUM(NaptáriNap),\"/Nap \",NaptáriNap-DATE(YEAR(NaptáriNap),1,0)),CONCATENATE(\"Nap \",NaptáriNap-DATE(YEAR(NaptáriNap),1,0)))","v":"Nap 186"},{"$f":"IF(DAY(NaptáriNap)=1,CONCATENATE(\"Hét \",WEEKNUM(NaptáriNap),\"/Nap \",NaptáriNap-DATE(YEAR(NaptáriNap),1,0)),CONCATENATE(\"Nap \",NaptáriNap-DATE(YEAR(NaptáriNap),1,0)))","v":"Nap 187"},{"$f":"IF(DAY(NaptáriNap)=1,CONCATENATE(\"Hét \",WEEKNUM(NaptáriNap),\"/Nap \",NaptáriNap-DATE(YEAR(NaptáriNap),1,0)),CONCATENATE(\"Nap \",NaptáriNap-DATE(YEAR(NaptáriNap),1,0)))","v":"Nap 188"}]
[]
[null,null,{"$f":"NapokÉsHetek+DATE(NaptáriÉv,7,1)-WEEKDAY(DATE(NaptáriÉv,7,1),(HétKezdete=\"H\")+1)+8","v":"2018-07-08"},"2018-07-09","2018-07-10","2018-07-11","2018-07-12","2018-07-13","2018-07-14"]
[null,null,{"$f":"IF(WEEKDAY(NaptáriNap)=HétKezdeteÉrték,CONCATENATE(\"Hét \",WEEKNUM(NaptáriNap),\"/Nap \",NaptáriNap-DATE(YEAR(NaptáriNap),1,0)),CONCATENATE(\"Nap \",NaptáriNap-DATE(YEAR(NaptáriNap),1,0)))","v":"Hét 28/Nap 189"},{"$f":"IF(WEEKDAY(NaptáriNap)=HétKezdeteÉrték,CONCATENATE(\"Hét \",WEEKNUM(NaptáriNap),\"/Nap \",NaptáriNap-DATE(YEAR(NaptáriNap),1,0)),CONCATENATE(\"Nap \",NaptáriNap-DATE(YEAR(NaptáriNap),1,0)))","v":"Nap 190"},{"$f":"IF(WEEKDAY(NaptáriNap)=HétKezdeteÉrték,CONCATENATE(\"Hét \",WEEKNUM(NaptáriNap),\"/Nap \",NaptáriNap-DATE(YEAR(NaptáriNap),1,0)),CONCATENATE(\"Nap \",NaptáriNap-DATE(YEAR(NaptáriNap),1,0)))","v":"Nap 191"},{"$f":"IF(WEEKDAY(NaptáriNap)=HétKezdeteÉrték,CONCATENATE(\"Hét \",WEEKNUM(NaptáriNap),\"/Nap \",NaptáriNap-DATE(YEAR(NaptáriNap),1,0)),CONCATENATE(\"Nap \",NaptáriNap-DATE(YEAR(NaptáriNap),1,0)))","v":"Nap 192"},{"$f":"IF(WEEKDAY(NaptáriNap)=HétKezdeteÉrték,CONCATENATE(\"Hét \",WEEKNUM(NaptáriNap),\"/Nap \",NaptáriNap-DATE(YEAR(NaptáriNap),1,0)),CONCATENATE(\"Nap \",NaptáriNap-DATE(YEAR(NaptáriNap),1,0)))","v":"Nap 193"},{"$f":"IF(WEEKDAY(NaptáriNap)=HétKezdeteÉrték,CONCATENATE(\"Hét \",WEEKNUM(NaptáriNap),\"/Nap \",NaptáriNap-DATE(YEAR(NaptáriNap),1,0)),CONCATENATE(\"Nap \",NaptáriNap-DATE(YEAR(NaptáriNap),1,0)))","v":"Nap 194"},{"$f":"IF(WEEKDAY(NaptáriNap)=HétKezdeteÉrték,CONCATENATE(\"Hét \",WEEKNUM(NaptáriNap),\"/Nap \",NaptáriNap-DATE(YEAR(NaptáriNap),1,0)),CONCATENATE(\"Nap \",NaptáriNap-DATE(YEAR(NaptáriNap),1,0)))","v":"Nap 195"}]
[]
[null,null,{"$f":"NapokÉsHetek+DATE(NaptáriÉv,7,1)-WEEKDAY(DATE(NaptáriÉv,7,1),(HétKezdete=\"H\")+1)+15","v":"2018-07-15"},"2018-07-16","2018-07-17","2018-07-18","2018-07-19","2018-07-20","2018-07-21"]
[null,null,{"$f":"IF(WEEKDAY(NaptáriNap)=HétKezdeteÉrték,CONCATENATE(\"Hét \",WEEKNUM(NaptáriNap),\"/Nap \",NaptáriNap-DATE(YEAR(NaptáriNap),1,0)),CONCATENATE(\"Nap \",NaptáriNap-DATE(YEAR(NaptáriNap),1,0)))","v":"Hét 29/Nap 196"},{"$f":"IF(WEEKDAY(NaptáriNap)=HétKezdeteÉrték,CONCATENATE(\"Hét \",WEEKNUM(NaptáriNap),\"/Nap \",NaptáriNap-DATE(YEAR(NaptáriNap),1,0)),CONCATENATE(\"Nap \",NaptáriNap-DATE(YEAR(NaptáriNap),1,0)))","v":"Nap 197"},{"$f":"IF(WEEKDAY(NaptáriNap)=HétKezdeteÉrték,CONCATENATE(\"Hét \",WEEKNUM(NaptáriNap),\"/Nap \",NaptáriNap-DATE(YEAR(NaptáriNap),1,0)),CONCATENATE(\"Nap \",NaptáriNap-DATE(YEAR(NaptáriNap),1,0)))","v":"Nap 198"},{"$f":"IF(WEEKDAY(NaptáriNap)=HétKezdeteÉrték,CONCATENATE(\"Hét \",WEEKNUM(NaptáriNap),\"/Nap \",NaptáriNap-DATE(YEAR(NaptáriNap),1,0)),CONCATENATE(\"Nap \",NaptáriNap-DATE(YEAR(NaptáriNap),1,0)))","v":"Nap 199"},{"$f":"IF(WEEKDAY(NaptáriNap)=HétKezdeteÉrték,CONCATENATE(\"Hét \",WEEKNUM(NaptáriNap),\"/Nap \",NaptáriNap-DATE(YEAR(NaptáriNap),1,0)),CONCATENATE(\"Nap \",NaptáriNap-DATE(YEAR(NaptáriNap),1,0)))","v":"Nap 200"},{"$f":"IF(WEEKDAY(NaptáriNap)=HétKezdeteÉrték,CONCATENATE(\"Hét \",WEEKNUM(NaptáriNap),\"/Nap \",NaptáriNap-DATE(YEAR(NaptáriNap),1,0)),CONCATENATE(\"Nap \",NaptáriNap-DATE(YEAR(NaptáriNap),1,0)))","v":"Nap 201"},{"$f":"IF(WEEKDAY(NaptáriNap)=HétKezdeteÉrték,CONCATENATE(\"Hét \",WEEKNUM(NaptáriNap),\"/Nap \",NaptáriNap-DATE(YEAR(NaptáriNap),1,0)),CONCATENATE(\"Nap \",NaptáriNap-DATE(YEAR(NaptáriNap),1,0)))","v":"Nap 202"}]
[]
[null,null,{"$f":"NapokÉsHetek+DATE(NaptáriÉv,7,1)-WEEKDAY(DATE(NaptáriÉv,7,1),(HétKezdete=\"H\")+1)+22","v":"2018-07-22"},"2018-07-23","2018-07-24","2018-07-25","2018-07-26","2018-07-27","2018-07-28"]
[null,null,{"$f":"IF(WEEKDAY(NaptáriNap)=HétKezdeteÉrték,CONCATENATE(\"Hét \",WEEKNUM(NaptáriNap),\"/Nap \",NaptáriNap-DATE(YEAR(NaptáriNap),1,0)),CONCATENATE(\"Nap \",NaptáriNap-DATE(YEAR(NaptáriNap),1,0)))","v":"Hét 30/Nap 203"},{"$f":"IF(WEEKDAY(NaptáriNap)=HétKezdeteÉrték,CONCATENATE(\"Hét \",WEEKNUM(NaptáriNap),\"/Nap \",NaptáriNap-DATE(YEAR(NaptáriNap),1,0)),CONCATENATE(\"Nap \",NaptáriNap-DATE(YEAR(NaptáriNap),1,0)))","v":"Nap 204"},{"$f":"IF(WEEKDAY(NaptáriNap)=HétKezdeteÉrték,CONCATENATE(\"Hét \",WEEKNUM(NaptáriNap),\"/Nap \",NaptáriNap-DATE(YEAR(NaptáriNap),1,0)),CONCATENATE(\"Nap \",NaptáriNap-DATE(YEAR(NaptáriNap),1,0)))","v":"Nap 205"},{"$f":"IF(WEEKDAY(NaptáriNap)=HétKezdeteÉrték,CONCATENATE(\"Hét \",WEEKNUM(NaptáriNap),\"/Nap \",NaptáriNap-DATE(YEAR(NaptáriNap),1,0)),CONCATENATE(\"Nap \",NaptáriNap-DATE(YEAR(NaptáriNap),1,0)))","v":"Nap 206"},{"$f":"IF(WEEKDAY(NaptáriNap)=HétKezdeteÉrték,CONCATENATE(\"Hét \",WEEKNUM(NaptáriNap),\"/Nap \",NaptáriNap-DATE(YEAR(NaptáriNap),1,0)),CONCATENATE(\"Nap \",NaptáriNap-DATE(YEAR(NaptáriNap),1,0)))","v":"Nap 207"},{"$f":"IF(WEEKDAY(NaptáriNap)=HétKezdeteÉrték,CONCATENATE(\"Hét \",WEEKNUM(NaptáriNap),\"/Nap \",NaptáriNap-DATE(YEAR(NaptáriNap),1,0)),CONCATENATE(\"Nap \",NaptáriNap-DATE(YEAR(NaptáriNap),1,0)))","v":"Nap 208"},{"$f":"IF(WEEKDAY(NaptáriNap)=HétKezdeteÉrték,CONCATENATE(\"Hét \",WEEKNUM(NaptáriNap),\"/Nap \",NaptáriNap-DATE(YEAR(NaptáriNap),1,0)),CONCATENATE(\"Nap \",NaptáriNap-DATE(YEAR(NaptáriNap),1,0)))","v":"Nap 209"}]
[]
[null,null,{"$f":"NapokÉsHetek+DATE(NaptáriÉv,7,1)-WEEKDAY(DATE(NaptáriÉv,7,1),(HétKezdete=\"H\")+1)+29","v":"2018-07-29"},"2018-07-30","2018-07-31","2018-08-01","2018-08-02","2018-08-03","2018-08-04"]
[null,null,{"$f":"IF(WEEKDAY(NaptáriNap)=HétKezdeteÉrték,CONCATENATE(\"Hét \",WEEKNUM(NaptáriNap),\"/Nap \",NaptáriNap-DATE(YEAR(NaptáriNap),1,0)),CONCATENATE(\"Nap \",NaptáriNap-DATE(YEAR(NaptáriNap),1,0)))","v":"Hét 31/Nap 210"},{"$f":"IF(WEEKDAY(NaptáriNap)=HétKezdeteÉrték,CONCATENATE(\"Hét \",WEEKNUM(NaptáriNap),\"/Nap \",NaptáriNap-DATE(YEAR(NaptáriNap),1,0)),CONCATENATE(\"Nap \",NaptáriNap-DATE(YEAR(NaptáriNap),1,0)))","v":"Nap 211"},{"$f":"IF(WEEKDAY(NaptáriNap)=HétKezdeteÉrték,CONCATENATE(\"Hét \",WEEKNUM(NaptáriNap),\"/Nap \",NaptáriNap-DATE(YEAR(NaptáriNap),1,0)),CONCATENATE(\"Nap \",NaptáriNap-DATE(YEAR(NaptáriNap),1,0)))","v":"Nap 212"},{"$f":"IF(WEEKDAY(NaptáriNap)=HétKezdeteÉrték,CONCATENATE(\"Hét \",WEEKNUM(NaptáriNap),\"/Nap \",NaptáriNap-DATE(YEAR(NaptáriNap),1,0)),CONCATENATE(\"Nap \",NaptáriNap-DATE(YEAR(NaptáriNap),1,0)))","v":"Nap 213"},{"$f":"IF(WEEKDAY(NaptáriNap)=HétKezdeteÉrték,CONCATENATE(\"Hét \",WEEKNUM(NaptáriNap),\"/Nap \",NaptáriNap-DATE(YEAR(NaptáriNap),1,0)),CONCATENATE(\"Nap \",NaptáriNap-DATE(YEAR(NaptáriNap),1,0)))","v":"Nap 214"},{"$f":"IF(WEEKDAY(NaptáriNap)=HétKezdeteÉrték,CONCATENATE(\"Hét \",WEEKNUM(NaptáriNap),\"/Nap \",NaptáriNap-DATE(YEAR(NaptáriNap),1,0)),CONCATENATE(\"Nap \",NaptáriNap-DATE(YEAR(NaptáriNap),1,0)))","v":"Nap 215"},{"$f":"IF(WEEKDAY(NaptáriNap)=HétKezdeteÉrték,CONCATENATE(\"Hét \",WEEKNUM(NaptáriNap),\"/Nap \",NaptáriNap-DATE(YEAR(NaptáriNap),1,0)),CONCATENATE(\"Nap \",NaptáriNap-DATE(YEAR(NaptáriNap),1,0)))","v":"Nap 216"}]
[{"$nulls":4},"JEGYZETEK"]
[]
[null,null,{"$f":"NapokÉsHetek+DATE(NaptáriÉv,7,1)-WEEKDAY(DATE(NaptáriÉv,7,1),(HétKezdete=\"H\")+1)+36","v":"2018-08-05"},"2018-08-06"]
[null,null,{"$f":"IF(WEEKDAY(NaptáriNap)=HétKezdeteÉrték,CONCATENATE(\"Hét \",WEEKNUM(NaptáriNap),\"/Nap \",NaptáriNap-DATE(YEAR(NaptáriNap),1,0)),CONCATENATE(\"Nap \",NaptáriNap-DATE(YEAR(NaptáriNap),1,0)))","v":"Hét 32/Nap 217"},{"$f":"IF(WEEKDAY(NaptáriNap)=HétKezdeteÉrték,CONCATENATE(\"Hét \",WEEKNUM(NaptáriNap),\"/Nap \",NaptáriNap-DATE(YEAR(NaptáriNap),1,0)),CONCATENATE(\"Nap \",NaptáriNap-DATE(YEAR(NaptáriNap),1,0)))","v":"Nap 218"}]

{"sheet":"AUG.","index":7,"n_rows":20,"n_cols":9,"rows_kept":20,"merged":[[16,2,17,2],[17,4,19,8]]}
[null,"AUG.",{"$f":"UPPER(TEXT(HétKezdete,\"ddd\"))","v":"V"},{"$f":"UPPER(TEXT(D3,\"aaa\"))","v":"H"},"K","SZE","CS","P","SZO"]
[null,{"$f":"NaptáriÉv","v":2018}]
[null,null,{"$f":"NapokÉsHetek+DATE(NaptáriÉv,8,1)-WEEKDAY(DATE(NaptáriÉv,8,1),(HétKezdete=\"H\")+1)+1","v":"2018-07-29"},"2018-07-30","2018-07-31","2018-08-01","2018-08-02","2018-08-03","2018-08-04"]
[null,null,{"$f":"IF(DAY(NaptáriNap)=1,CONCATENATE(\"Hét \",WEEKNUM(NaptáriNap),\"/Nap \",NaptáriNap-DATE(YEAR(NaptáriNap),1,0)),CONCATENATE(\"Nap \",NaptáriNap-DATE(YEAR(NaptáriNap),1,0)))","v":"Nap 210"},{"$f":"IF(DAY(NaptáriNap)=1,CONCATENATE(\"Hét \",WEEKNUM(NaptáriNap),\"/Nap \",NaptáriNap-DATE(YEAR(NaptáriNap),1,0)),CONCATENATE(\"Nap \",NaptáriNap-DATE(YEAR(NaptáriNap),1,0)))","v":"Nap 211"},{"$f":"IF(DAY(NaptáriNap)=1,CONCATENATE(\"Hét \",WEEKNUM(NaptáriNap),\"/Nap \",NaptáriNap-DATE(YEAR(NaptáriNap),1,0)),CONCATENATE(\"Nap \",NaptáriNap-DATE(YEAR(NaptáriNap),1,0)))","v":"Nap 212"},{"$f":"IF(DAY(NaptáriNap)=1,CONCATENATE(\"Hét \",WEEKNUM(NaptáriNap),\"/Nap \",NaptáriNap-DATE(YEAR(NaptáriNap),1,0)),CONCATENATE(\"Nap \",NaptáriNap-DATE(YEAR(NaptáriNap),1,0)))","v":"Hét 31/Nap 213"},{"$f":"IF(DAY(NaptáriNap)=1,CONCATENATE(\"Hét \",WEEKNUM(NaptáriNap),\"/Nap \",NaptáriNap-DATE(YEAR(NaptáriNap),1,0)),CONCATENATE(\"Nap \",NaptáriNap-DATE(YEAR(NaptáriNap),1,0)))","v":"Nap 214"},{"$f":"IF(DAY(NaptáriNap)=1,CONCATENATE(\"Hét \",WEEKNUM(NaptáriNap),\"/Nap \",NaptáriNap-DATE(YEAR(NaptáriNap),1,0)),CONCATENATE(\"Nap \",NaptáriNap-DATE(YEAR(NaptáriNap),1,0)))","v":"Nap 215"},{"$f":"IF(DAY(NaptáriNap)=1,CONCATENATE(\"Hét \",WEEKNUM(NaptáriNap),\"/Nap \",NaptáriNap-DATE(YEAR(NaptáriNap),1,0)),CONCATENATE(\"Nap \",NaptáriNap-DATE(YEAR(NaptáriNap),1,0)))","v":"Nap 216"}]
[]
[null,null,{"$f":"NapokÉsHetek+DATE(NaptáriÉv,8,1)-WEEKDAY(DATE(NaptáriÉv,8,1),(HétKezdete=\"H\")+1)+8","v":"2018-08-05"},"2018-08-06","2018-08-07","2018-08-08","2018-08-09","2018-08-10","2018-08-11"]
[null,null,{"$f":"IF(WEEKDAY(NaptáriNap)=HétKezdeteÉrték,CONCATENATE(\"Hét \",WEEKNUM(NaptáriNap),\"/Nap \",NaptáriNap-DATE(YEAR(NaptáriNap),1,0)),CONCATENATE(\"Nap \",NaptáriNap-DATE(YEAR(NaptáriNap),1,0)))","v":"Hét 32/Nap 217"},{"$f":"IF(WEEKDAY(NaptáriNap)=HétKezdeteÉrték,CONCATENATE(\"Hét \",WEEKNUM(NaptáriNap),\"/Nap \",NaptáriNap-DATE(YEAR(NaptáriNap),1,0)),CONCATENATE(\"Nap \",NaptáriNap-DATE(YEAR(NaptáriNap),1,0)))","v":"Nap 218"},{"$f":"IF(WEEKDAY(NaptáriNap)=HétKezdeteÉrték,CONCATENATE(\"Hét \",WEEKNUM(NaptáriNap),\"/Nap \",NaptáriNap-DATE(YEAR(NaptáriNap),1,0)),CONCATENATE(\"Nap \",NaptáriNap-DATE(YEAR(NaptáriNap),1,0)))","v":"Nap 219"},{"$f":"IF(WEEKDAY(NaptáriNap)=HétKezdeteÉrték,CONCATENATE(\"Hét \",WEEKNUM(NaptáriNap),\"/Nap \",NaptáriNap-DATE(YEAR(NaptáriNap),1,0)),CONCATENATE(\"Nap \",NaptáriNap-DATE(YEAR(NaptáriNap),1,0)))","v":"Nap 220"},{"$f":"IF(WEEKDAY(NaptáriNap)=HétKezdeteÉrték,CONCATENATE(\"Hét \",WEEKNUM(NaptáriNap),\"/Nap \",NaptáriNap-DATE(YEAR(NaptáriNap),1,0)),CONCATENATE(\"Nap \",NaptáriNap-DATE(YEAR(NaptáriNap),1,0)))","v":"Nap 221"},{"$f":"IF(WEEKDAY(NaptáriNap)=HétKezdeteÉrték,CONCATENATE(\"Hét \",WEEKNUM(NaptáriNap),\"/Nap \",NaptáriNap-DATE(YEAR(NaptáriNap),1,0)),CONCATENATE(\"Nap \",NaptáriNap-DATE(YEAR(NaptáriNap),1,0)))","v":"Nap 222"},{"$f":"IF(WEEKDAY(NaptáriNap)=HétKezdeteÉrték,CONCATENATE(\"Hét \",WEEKNUM(NaptáriNap),\"/Nap \",NaptáriNap-DATE(YEAR(NaptáriNap),1,0)),CONCATENATE(\"Nap \",NaptáriNap-DATE(YEAR(NaptáriNap),1,0)))","v":"Nap 223"}]
[]
[null,null,{"$f":"NapokÉsHetek+DATE(NaptáriÉv,8,1)-WEEKDAY(DATE(NaptáriÉv,8,1),(HétKezdete=\"H\")+1)+15","v":"2018-08-12"},"2018-08-13","2018-08-14","2018-08-15","2018-08-16","2018-08-17","2018-08-18"]
[null,null,{"$f":"IF(WEEKDAY(NaptáriNap)=HétKezdeteÉrték,CONCATENATE(\"Hét \",WEEKNUM(NaptáriNap),\"/Nap \",NaptáriNap-DATE(YEAR(NaptáriNap),1,0)),CONCATENATE(\"Nap \",NaptáriNap-DATE(YEAR(NaptáriNap),1,0)))","v":"Hét 33/Nap 224"},{"$f":"IF(WEEKDAY(NaptáriNap)=HétKezdeteÉrték,CONCATENATE(\"Hét \",WEEKNUM(NaptáriNap),\"/Nap \",NaptáriNap-DATE(YEAR(NaptáriNap),1,0)),CONCATENATE(\"Nap \",NaptáriNap-DATE(YEAR(NaptáriNap),1,0)))","v":"Nap 225"},{"$f":"IF(WEEKDAY(NaptáriNap)=HétKezdeteÉrték,CONCATENATE(\"Hét \",WEEKNUM(NaptáriNap),\"/Nap \",NaptáriNap-DATE(YEAR(NaptáriNap),1,0)),CONCATENATE(\"Nap \",NaptáriNap-DATE(YEAR(NaptáriNap),1,0)))","v":"Nap 226"},{"$f":"IF(WEEKDAY(NaptáriNap)=HétKezdeteÉrték,CONCATENATE(\"Hét \",WEEKNUM(NaptáriNap),\"/Nap \",NaptáriNap-DATE(YEAR(NaptáriNap),1,0)),CONCATENATE(\"Nap \",NaptáriNap-DATE(YEAR(NaptáriNap),1,0)))","v":"Nap 227"},{"$f":"IF(WEEKDAY(NaptáriNap)=HétKezdeteÉrték,CONCATENATE(\"Hét \",WEEKNUM(NaptáriNap),\"/Nap \",NaptáriNap-DATE(YEAR(NaptáriNap),1,0)),CONCATENATE(\"Nap \",NaptáriNap-DATE(YEAR(NaptáriNap),1,0)))","v":"Nap 228"},{"$f":"IF(WEEKDAY(NaptáriNap)=HétKezdeteÉrték,CONCATENATE(\"Hét \",WEEKNUM(NaptáriNap),\"/Nap \",NaptáriNap-DATE(YEAR(NaptáriNap),1,0)),CONCATENATE(\"Nap \",NaptáriNap-DATE(YEAR(NaptáriNap),1,0)))","v":"Nap 229"},{"$f":"IF(WEEKDAY(NaptáriNap)=HétKezdeteÉrték,CONCATENATE(\"Hét \",WEEKNUM(NaptáriNap),\"/Nap \",NaptáriNap-DATE(YEAR(NaptáriNap),1,0)),CONCATENATE(\"Nap \",NaptáriNap-DATE(YEAR(NaptáriNap),1,0)))","v":"Nap 230"}]
[]
[null,null,{"$f":"NapokÉsHetek+DATE(NaptáriÉv,8,1)-WEEKDAY(DATE(NaptáriÉv,8,1),(HétKezdete=\"H\")+1)+22","v":"2018-08-19"},"2018-08-20","2018-08-21","2018-08-22","2018-08-23","2018-08-24","2018-08-25"]
[null,null,{"$f":"IF(WEEKDAY(NaptáriNap)=HétKezdeteÉrték,CONCATENATE(\"Hét \",WEEKNUM(NaptáriNap),\"/Nap \",NaptáriNap-DATE(YEAR(NaptáriNap),1,0)),CONCATENATE(\"Nap \",NaptáriNap-DATE(YEAR(NaptáriNap),1,0)))","v":"Hét 34/Nap 231"},{"$f":"IF(WEEKDAY(NaptáriNap)=HétKezdeteÉrték,CONCATENATE(\"Hét \",WEEKNUM(NaptáriNap),\"/Nap \",NaptáriNap-DATE(YEAR(NaptáriNap),1,0)),CONCATENATE(\"Nap \",NaptáriNap-DATE(YEAR(NaptáriNap),1,0)))","v":"Nap 232"},{"$f":"IF(WEEKDAY(NaptáriNap)=HétKezdeteÉrték,CONCATENATE(\"Hét \",WEEKNUM(NaptáriNap),\"/Nap \",NaptáriNap-DATE(YEAR(NaptáriNap),1,0)),CONCATENATE(\"Nap \",NaptáriNap-DATE(YEAR(NaptáriNap),1,0)))","v":"Nap 233"},{"$f":"IF(WEEKDAY(NaptáriNap)=HétKezdeteÉrték,CONCATENATE(\"Hét \",WEEKNUM(NaptáriNap),\"/Nap \",NaptáriNap-DATE(YEAR(NaptáriNap),1,0)),CONCATENATE(\"Nap \",NaptáriNap-DATE(YEAR(NaptáriNap),1,0)))","v":"Nap 234"},{"$f":"IF(WEEKDAY(NaptáriNap)=HétKezdeteÉrték,CONCATENATE(\"Hét \",WEEKNUM(NaptáriNap),\"/Nap \",NaptáriNap-DATE(YEAR(NaptáriNap),1,0)),CONCATENATE(\"Nap \",NaptáriNap-DATE(YEAR(NaptáriNap),1,0)))","v":"Nap 235"},{"$f":"IF(WEEKDAY(NaptáriNap)=HétKezdeteÉrték,CONCATENATE(\"Hét \",WEEKNUM(NaptáriNap),\"/Nap \",NaptáriNap-DATE(YEAR(NaptáriNap),1,0)),CONCATENATE(\"Nap \",NaptáriNap-DATE(YEAR(NaptáriNap),1,0)))","v":"Nap 236"},{"$f":"IF(WEEKDAY(NaptáriNap)=HétKezdeteÉrték,CONCATENATE(\"Hét \",WEEKNUM(NaptáriNap),\"/Nap \",NaptáriNap-DATE(YEAR(NaptáriNap),1,0)),CONCATENATE(\"Nap \",NaptáriNap-DATE(YEAR(NaptáriNap),1,0)))","v":"Nap 237"}]
[]
[null,null,{"$f":"NapokÉsHetek+DATE(NaptáriÉv,8,1)-WEEKDAY(DATE(NaptáriÉv,8,1),(HétKezdete=\"H\")+1)+29","v":"2018-08-26"},"2018-08-27","2018-08-28","2018-08-29","2018-08-30","2018-08-31","2018-09-01"]
[null,null,{"$f":"IF(WEEKDAY(NaptáriNap)=HétKezdeteÉrték,CONCATENATE(\"Hét \",WEEKNUM(NaptáriNap),\"/Nap \",NaptáriNap-DATE(YEAR(NaptáriNap),1,0)),CONCATENATE(\"Nap \",NaptáriNap-DATE(YEAR(NaptáriNap),1,0)))","v":"Hét 35/Nap 238"},{"$f":"IF(WEEKDAY(NaptáriNap)=HétKezdeteÉrték,CONCATENATE(\"Hét \",WEEKNUM(NaptáriNap),\"/Nap \",NaptáriNap-DATE(YEAR(NaptáriNap),1,0)),CONCATENATE(\"Nap \",NaptáriNap-DATE(YEAR(NaptáriNap),1,0)))","v":"Nap 239"},{"$f":"IF(WEEKDAY(NaptáriNap)=HétKezdeteÉrték,CONCATENATE(\"Hét \",WEEKNUM(NaptáriNap),\"/Nap \",NaptáriNap-DATE(YEAR(NaptáriNap),1,0)),CONCATENATE(\"Nap \",NaptáriNap-DATE(YEAR(NaptáriNap),1,0)))","v":"Nap 240"},{"$f":"IF(WEEKDAY(NaptáriNap)=HétKezdeteÉrték,CONCATENATE(\"Hét \",WEEKNUM(NaptáriNap),\"/Nap \",NaptáriNap-DATE(YEAR(NaptáriNap),1,0)),CONCATENATE(\"Nap \",NaptáriNap-DATE(YEAR(NaptáriNap),1,0)))","v":"Nap 241"},{"$f":"IF(WEEKDAY(NaptáriNap)=HétKezdeteÉrték,CONCATENATE(\"Hét \",WEEKNUM(NaptáriNap),\"/Nap \",NaptáriNap-DATE(YEAR(NaptáriNap),1,0)),CONCATENATE(\"Nap \",NaptáriNap-DATE(YEAR(NaptáriNap),1,0)))","v":"Nap 242"},{"$f":"IF(WEEKDAY(NaptáriNap)=HétKezdeteÉrték,CONCATENATE(\"Hét \",WEEKNUM(NaptáriNap),\"/Nap \",NaptáriNap-DATE(YEAR(NaptáriNap),1,0)),CONCATENATE(\"Nap \",NaptáriNap-DATE(YEAR(NaptáriNap),1,0)))","v":"Nap 243"},{"$f":"IF(WEEKDAY(NaptáriNap)=HétKezdeteÉrték,CONCATENATE(\"Hét \",WEEKNUM(NaptáriNap),\"/Nap \",NaptáriNap-DATE(YEAR(NaptáriNap),1,0)),CONCATENATE(\"Nap \",NaptáriNap-DATE(YEAR(NaptáriNap),1,0)))","v":"Nap 244"}]
[{"$nulls":4},"JEGYZETEK"]
[]
[null,null,{"$f":"NapokÉsHetek+DATE(NaptáriÉv,8,1)-WEEKDAY(DATE(NaptáriÉv,8,1),(HétKezdete=\"H\")+1)+36","v":"2018-09-02"},"2018-09-03"]
[null,null,{"$f":"IF(WEEKDAY(NaptáriNap)=HétKezdeteÉrték,CONCATENATE(\"Hét \",WEEKNUM(NaptáriNap),\"/Nap \",NaptáriNap-DATE(YEAR(NaptáriNap),1,0)),CONCATENATE(\"Nap \",NaptáriNap-DATE(YEAR(NaptáriNap),1,0)))","v":"Hét 36/Nap 245"},{"$f":"IF(WEEKDAY(NaptáriNap)=HétKezdeteÉrték,CONCATENATE(\"Hét \",WEEKNUM(NaptáriNap),\"/Nap \",NaptáriNap-DATE(YEAR(NaptáriNap),1,0)),CONCATENATE(\"Nap \",NaptáriNap-DATE(YEAR(NaptáriNap),1,0)))","v":"Nap 246"}]

{"sheet":"SZEPT.","index":8,"n_rows":20,"n_cols":9,"rows_kept":20,"merged":[[16,2,17,2],[17,4,19,8]]}
[null,"SZEPT.",{"$f":"UPPER(TEXT(HétKezdete,\"ddd\"))","v":"V"},{"$f":"UPPER(TEXT(D3,\"aaa\"))","v":"H"},"K","SZE","CS","P","SZO"]
[null,{"$f":"NaptáriÉv","v":2018}]
[null,null,{"$f":"NapokÉsHetek+DATE(NaptáriÉv,9,1)-WEEKDAY(DATE(NaptáriÉv,9,1),(HétKezdete=\"H\")+1)+1","v":"2018-08-26"},"2018-08-27","2018-08-28","2018-08-29","2018-08-30","2018-08-31","2018-09-01"]
[null,null,{"$f":"IF(DAY(NaptáriNap)=1,CONCATENATE(\"Hét \",WEEKNUM(NaptáriNap),\"/Nap \",NaptáriNap-DATE(YEAR(NaptáriNap),1,0)),CONCATENATE(\"Nap \",NaptáriNap-DATE(YEAR(NaptáriNap),1,0)))","v":"Nap 238"},{"$f":"IF(DAY(NaptáriNap)=1,CONCATENATE(\"Hét \",WEEKNUM(NaptáriNap),\"/Nap \",NaptáriNap-DATE(YEAR(NaptáriNap),1,0)),CONCATENATE(\"Nap \",NaptáriNap-DATE(YEAR(NaptáriNap),1,0)))","v":"Nap 239"},{"$f":"IF(DAY(NaptáriNap)=1,CONCATENATE(\"Hét \",WEEKNUM(NaptáriNap),\"/Nap \",NaptáriNap-DATE(YEAR(NaptáriNap),1,0)),CONCATENATE(\"Nap \",NaptáriNap-DATE(YEAR(NaptáriNap),1,0)))","v":"Nap 240"},{"$f":"IF(DAY(NaptáriNap)=1,CONCATENATE(\"Hét \",WEEKNUM(NaptáriNap),\"/Nap \",NaptáriNap-DATE(YEAR(NaptáriNap),1,0)),CONCATENATE(\"Nap \",NaptáriNap-DATE(YEAR(NaptáriNap),1,0)))","v":"Nap 241"},{"$f":"IF(DAY(NaptáriNap)=1,CONCATENATE(\"Hét \",WEEKNUM(NaptáriNap),\"/Nap \",NaptáriNap-DATE(YEAR(NaptáriNap),1,0)),CONCATENATE(\"Nap \",NaptáriNap-DATE(YEAR(NaptáriNap),1,0)))","v":"Nap 242"},{"$f":"IF(DAY(NaptáriNap)=1,CONCATENATE(\"Hét \",WEEKNUM(NaptáriNap),\"/Nap \",NaptáriNap-DATE(YEAR(NaptáriNap),1,0)),CONCATENATE(\"Nap \",NaptáriNap-DATE(YEAR(NaptáriNap),1,0)))","v":"Nap 243"},{"$f":"IF(DAY(NaptáriNap)=1,CONCATENATE(\"Hét \",WEEKNUM(NaptáriNap),\"/Nap \",NaptáriNap-DATE(YEAR(NaptáriNap),1,0)),CONCATENATE(\"Nap \",NaptáriNap-DATE(YEAR(NaptáriNap),1,0)))","v":"Hét 35/Nap 244"}]
[]
[null,null,{"$f":"NapokÉsHetek+DATE(NaptáriÉv,9,1)-WEEKDAY(DATE(NaptáriÉv,9,1),(HétKezdete=\"H\")+1)+8","v":"2018-09-02"},"2018-09-03","2018-09-04","2018-09-05","2018-09-06","2018-09-07","2018-09-08"]
[null,null,{"$f":"IF(WEEKDAY(NaptáriNap)=HétKezdeteÉrték,CONCATENATE(\"Hét \",WEEKNUM(NaptáriNap),\"/Nap \",NaptáriNap-DATE(YEAR(NaptáriNap),1,0)),CONCATENATE(\"Nap \",NaptáriNap-DATE(YEAR(NaptáriNap),1,0)))","v":"Hét 36/Nap 245"},{"$f":"IF(WEEKDAY(NaptáriNap)=HétKezdeteÉrték,CONCATENATE(\"Hét \",WEEKNUM(NaptáriNap),\"/Nap \",NaptáriNap-DATE(YEAR(NaptáriNap),1,0)),CONCATENATE(\"Nap \",NaptáriNap-DATE(YEAR(NaptáriNap),1,0)))","v":"Nap 246"},{"$f":"IF(WEEKDAY(NaptáriNap)=HétKezdeteÉrték,CONCATENATE(\"Hét \",WEEKNUM(NaptáriNap),\"/Nap \",NaptáriNap-DATE(YEAR(NaptáriNap),1,0)),CONCATENATE(\"Nap \",NaptáriNap-DATE(YEAR(NaptáriNap),1,0)))","v":"Nap 247"},{"$f":"IF(WEEKDAY(NaptáriNap)=HétKezdeteÉrték,CONCATENATE(\"Hét \",WEEKNUM(NaptáriNap),\"/Nap \",NaptáriNap-DATE(YEAR(NaptáriNap),1,0)),CONCATENATE(\"Nap \",NaptáriNap-DATE(YEAR(NaptáriNap),1,0)))","v":"Nap 248"},{"$f":"IF(WEEKDAY(NaptáriNap)=HétKezdeteÉrték,CONCATENATE(\"Hét \",WEEKNUM(NaptáriNap),\"/Nap \",NaptáriNap-DATE(YEAR(NaptáriNap),1,0)),CONCATENATE(\"Nap \",NaptáriNap-DATE(YEAR(NaptáriNap),1,0)))","v":"Nap 249"},{"$f":"IF(WEEKDAY(NaptáriNap)=HétKezdeteÉrték,CONCATENATE(\"Hét \",WEEKNUM(NaptáriNap),\"/Nap \",NaptáriNap-DATE(YEAR(NaptáriNap),1,0)),CONCATENATE(\"Nap \",NaptáriNap-DATE(YEAR(NaptáriNap),1,0)))","v":"Nap 250"},{"$f":"IF(WEEKDAY(NaptáriNap)=HétKezdeteÉrték,CONCATENATE(\"Hét \",WEEKNUM(NaptáriNap),\"/Nap \",NaptáriNap-DATE(YEAR(NaptáriNap),1,0)),CONCATENATE(\"Nap \",NaptáriNap-DATE(YEAR(NaptáriNap),1,0)))","v":"Nap 251"}]
[]
[null,null,{"$f":"NapokÉsHetek+DATE(NaptáriÉv,9,1)-WEEKDAY(DATE(NaptáriÉv,9,1),(HétKezdete=\"H\")+1)+15","v":"2018-09-09"},"2018-09-10","2018-09-11","2018-09-12","2018-09-13","2018-09-14","2018-09-15"]
[null,null,{"$f":"IF(WEEKDAY(NaptáriNap)=HétKezdeteÉrték,CONCATENATE(\"Hét \",WEEKNUM(NaptáriNap),\"/Nap \",NaptáriNap-DATE(YEAR(NaptáriNap),1,0)),CONCATENATE(\"Nap \",NaptáriNap-DATE(YEAR(NaptáriNap),1,0)))","v":"Hét 37/Nap 252"},{"$f":"IF(WEEKDAY(NaptáriNap)=HétKezdeteÉrték,CONCATENATE(\"Hét \",WEEKNUM(NaptáriNap),\"/Nap \",NaptáriNap-DATE(YEAR(NaptáriNap),1,0)),CONCATENATE(\"Nap \",NaptáriNap-DATE(YEAR(NaptáriNap),1,0)))","v":"Nap 253"},{"$f":"IF(WEEKDAY(NaptáriNap)=HétKezdeteÉrték,CONCATENATE(\"Hét \",WEEKNUM(NaptáriNap),\"/Nap \",NaptáriNap-DATE(YEAR(NaptáriNap),1,0)),CONCATENATE(\"Nap \",NaptáriNap-DATE(YEAR(NaptáriNap),1,0)))","v":"Nap 254"},{"$f":"IF(WEEKDAY(NaptáriNap)=HétKezdeteÉrték,CONCATENATE(\"Hét \",WEEKNUM(NaptáriNap),\"/Nap \",NaptáriNap-DATE(YEAR(NaptáriNap),1,0)),CONCATENATE(\"Nap \",NaptáriNap-DATE(YEAR(NaptáriNap),1,0)))","v":"Nap 255"},{"$f":"IF(WEEKDAY(NaptáriNap)=HétKezdeteÉrték,CONCATENATE(\"Hét \",WEEKNUM(NaptáriNap),\"/Nap \",NaptáriNap-DATE(YEAR(NaptáriNap),1,0)),CONCATENATE(\"Nap \",NaptáriNap-DATE(YEAR(NaptáriNap),1,0)))","v":"Nap 256"},{"$f":"IF(WEEKDAY(NaptáriNap)=HétKezdeteÉrték,CONCATENATE(\"Hét \",WEEKNUM(NaptáriNap),\"/Nap \",NaptáriNap-DATE(YEAR(NaptáriNap),1,0)),CONCATENATE(\"Nap \",NaptáriNap-DATE(YEAR(NaptáriNap),1,0)))","v":"Nap 257"},{"$f":"IF(WEEKDAY(NaptáriNap)=HétKezdeteÉrték,CONCATENATE(\"Hét \",WEEKNUM(NaptáriNap),\"/Nap \",NaptáriNap-DATE(YEAR(NaptáriNap),1,0)),CONCATENATE(\"Nap \",NaptáriNap-DATE(YEAR(NaptáriNap),1,0)))","v":"Nap 258"}]
[]
[null,null,{"$f":"NapokÉsHetek+DATE(NaptáriÉv,9,1)-WEEKDAY(DATE(NaptáriÉv,9,1),(HétKezdete=\"H\")+1)+22","v":"2018-09-16"},"2018-09-17","2018-09-18","2018-09-19","2018-09-20","2018-09-21","2018-09-22"]
[null,null,{"$f":"IF(WEEKDAY(NaptáriNap)=HétKezdeteÉrték,CONCATENATE(\"Hét \",WEEKNUM(NaptáriNap),\"/Nap \",NaptáriNap-DATE(YEAR(NaptáriNap),1,0)),CONCATENATE(\"Nap \",NaptáriNap-DATE(YEAR(NaptáriNap),1,0)))","v":"Hét 38/Nap 259"},{"$f":"IF(WEEKDAY(NaptáriNap)=HétKezdeteÉrték,CONCATENATE(\"Hét \",WEEKNUM(NaptáriNap),\"/Nap \",NaptáriNap-DATE(YEAR(NaptáriNap),1,0)),CONCATENATE(\"Nap \",NaptáriNap-DATE(YEAR(NaptáriNap),1,0)))","v":"Nap 260"},{"$f":"IF(WEEKDAY(NaptáriNap)=HétKezdeteÉrték,CONCATENATE(\"Hét \",WEEKNUM(NaptáriNap),\"/Nap \",NaptáriNap-DATE(YEAR(NaptáriNap),1,0)),CONCATENATE(\"Nap \",NaptáriNap-DATE(YEAR(NaptáriNap),1,0)))","v":"Nap 261"},{"$f":"IF(WEEKDAY(NaptáriNap)=HétKezdeteÉrték,CONCATENATE(\"Hét \",WEEKNUM(NaptáriNap),\"/Nap \",NaptáriNap-DATE(YEAR(NaptáriNap),1,0)),CONCATENATE(\"Nap \",NaptáriNap-DATE(YEAR(NaptáriNap),1,0)))","v":"Nap 262"},{"$f":"IF(WEEKDAY(NaptáriNap)=HétKezdeteÉrték,CONCATENATE(\"Hét \",WEEKNUM(NaptáriNap),\"/Nap \",NaptáriNap-DATE(YEAR(NaptáriNap),1,0)),CONCATENATE(\"Nap \",NaptáriNap-DATE(YEAR(NaptáriNap),1,0)))","v":"Nap 263"},{"$f":"IF(WEEKDAY(NaptáriNap)=HétKezdeteÉrték,CONCATENATE(\"Hét \",WEEKNUM(NaptáriNap),\"/Nap \",NaptáriNap-DATE(YEAR(NaptáriNap),1,0)),CONCATENATE(\"Nap \",NaptáriNap-DATE(YEAR(NaptáriNap),1,0)))","v":"Nap 264"},{"$f":"IF(WEEKDAY(NaptáriNap)=HétKezdeteÉrték,CONCATENATE(\"Hét \",WEEKNUM(NaptáriNap),\"/Nap \",NaptáriNap-DATE(YEAR(NaptáriNap),1,0)),CONCATENATE(\"Nap \",NaptáriNap-DATE(YEAR(NaptáriNap),1,0)))","v":"Nap 265"}]
[]
[null,null,{"$f":"NapokÉsHetek+DATE(NaptáriÉv,9,1)-WEEKDAY(DATE(NaptáriÉv,9,1),(HétKezdete=\"H\")+1)+29","v":"2018-09-23"},"2018-09-24","2018-09-25","2018-09-26","2018-09-27","2018-09-28","2018-09-29"]
[null,null,{"$f":"IF(WEEKDAY(NaptáriNap)=HétKezdeteÉrték,CONCATENATE(\"Hét \",WEEKNUM(NaptáriNap),\"/Nap \",NaptáriNap-DATE(YEAR(NaptáriNap),1,0)),CONCATENATE(\"Nap \",NaptáriNap-DATE(YEAR(NaptáriNap),1,0)))","v":"Hét 39/Nap 266"},{"$f":"IF(WEEKDAY(NaptáriNap)=HétKezdeteÉrték,CONCATENATE(\"Hét \",WEEKNUM(NaptáriNap),\"/Nap \",NaptáriNap-DATE(YEAR(NaptáriNap),1,0)),CONCATENATE(\"Nap \",NaptáriNap-DATE(YEAR(NaptáriNap),1,0)))","v":"Nap 267"},{"$f":"IF(WEEKDAY(NaptáriNap)=HétKezdeteÉrték,CONCATENATE(\"Hét \",WEEKNUM(NaptáriNap),\"/Nap \",NaptáriNap-DATE(YEAR(NaptáriNap),1,0)),CONCATENATE(\"Nap \",NaptáriNap-DATE(YEAR(NaptáriNap),1,0)))","v":"Nap 268"},{"$f":"IF(WEEKDAY(NaptáriNap)=HétKezdeteÉrték,CONCATENATE(\"Hét \",WEEKNUM(NaptáriNap),\"/Nap \",NaptáriNap-DATE(YEAR(NaptáriNap),1,0)),CONCATENATE(\"Nap \",NaptáriNap-DATE(YEAR(NaptáriNap),1,0)))","v":"Nap 269"},{"$f":"IF(WEEKDAY(NaptáriNap)=HétKezdeteÉrték,CONCATENATE(\"Hét \",WEEKNUM(NaptáriNap),\"/Nap \",NaptáriNap-DATE(YEAR(NaptáriNap),1,0)),CONCATENATE(\"Nap \",NaptáriNap-DATE(YEAR(NaptáriNap),1,0)))","v":"Nap 270"},{"$f":"IF(WEEKDAY(NaptáriNap)=HétKezdeteÉrték,CONCATENATE(\"Hét \",WEEKNUM(NaptáriNap),\"/Nap \",NaptáriNap-DATE(YEAR(NaptáriNap),1,0)),CONCATENATE(\"Nap \",NaptáriNap-DATE(YEAR(NaptáriNap),1,0)))","v":"Nap 271"},{"$f":"IF(WEEKDAY(NaptáriNap)=HétKezdeteÉrték,CONCATENATE(\"Hét \",WEEKNUM(NaptáriNap),\"/Nap \",NaptáriNap-DATE(YEAR(NaptáriNap),1,0)),CONCATENATE(\"Nap \",NaptáriNap-DATE(YEAR(NaptáriNap),1,0)))","v":"Nap 272"}]
[{"$nulls":4},"JEGYZETEK"]
[]
[null,null,{"$f":"NapokÉsHetek+DATE(NaptáriÉv,9,1)-WEEKDAY(DATE(NaptáriÉv,9,1),(HétKezdete=\"H\")+1)+36","v":"2018-09-30"},"2018-10-01"]
[null,null,{"$f":"IF(WEEKDAY(NaptáriNap)=HétKezdeteÉrték,CONCATENATE(\"Hét \",WEEKNUM(NaptáriNap),\"/Nap \",NaptáriNap-DATE(YEAR(NaptáriNap),1,0)),CONCATENATE(\"Nap \",NaptáriNap-DATE(YEAR(NaptáriNap),1,0)))","v":"Hét 40/Nap 273"},{"$f":"IF(WEEKDAY(NaptáriNap)=HétKezdeteÉrték,CONCATENATE(\"Hét \",WEEKNUM(NaptáriNap),\"/Nap \",NaptáriNap-DATE(YEAR(NaptáriNap),1,0)),CONCATENATE(\"Nap \",NaptáriNap-DATE(YEAR(NaptáriNap),1,0)))","v":"Nap 274"}]

{"sheet":"OKT.","index":9,"n_rows":20,"n_cols":9,"rows_kept":20,"merged":[[16,2,17,2],[17,4,19,8]]}
[null,"OKT.",{"$f":"UPPER(TEXT(HétKezdete,\"ddd\"))","v":"V"},{"$f":"UPPER(TEXT(D3,\"aaa\"))","v":"H"},"K","SZE","CS","P","SZO"]
[null,{"$f":"NaptáriÉv","v":2018}]
[null,null,{"$f":"NapokÉsHetek+DATE(NaptáriÉv,10,1)-WEEKDAY(DATE(NaptáriÉv,10,1),(HétKezdete=\"H\")+1)+1","v":"2018-09-30"},"2018-10-01","2018-10-02","2018-10-03","2018-10-04","2018-10-05","2018-10-06"]
[null,null,{"$f":"IF(DAY(NaptáriNap)=1,CONCATENATE(\"Hét \",WEEKNUM(NaptáriNap),\"/Nap \",NaptáriNap-DATE(YEAR(NaptáriNap),1,0)),CONCATENATE(\"Nap \",NaptáriNap-DATE(YEAR(NaptáriNap),1,0)))","v":"Nap 273"},{"$f":"IF(DAY(NaptáriNap)=1,CONCATENATE(\"Hét \",WEEKNUM(NaptáriNap),\"/Nap \",NaptáriNap-DATE(YEAR(NaptáriNap),1,0)),CONCATENATE(\"Nap \",NaptáriNap-DATE(YEAR(NaptáriNap),1,0)))","v":"Hét 40/Nap 274"},{"$f":"IF(DAY(NaptáriNap)=1,CONCATENATE(\"Hét \",WEEKNUM(NaptáriNap),\"/Nap \",NaptáriNap-DATE(YEAR(NaptáriNap),1,0)),CONCATENATE(\"Nap \",NaptáriNap-DATE(YEAR(NaptáriNap),1,0)))","v":"Nap 275"},{"$f":"IF(DAY(NaptáriNap)=1,CONCATENATE(\"Hét \",WEEKNUM(NaptáriNap),\"/Nap \",NaptáriNap-DATE(YEAR(NaptáriNap),1,0)),CONCATENATE(\"Nap \",NaptáriNap-DATE(YEAR(NaptáriNap),1,0)))","v":"Nap 276"},{"$f":"IF(DAY(NaptáriNap)=1,CONCATENATE(\"Hét \",WEEKNUM(NaptáriNap),\"/Nap \",NaptáriNap-DATE(YEAR(NaptáriNap),1,0)),CONCATENATE(\"Nap \",NaptáriNap-DATE(YEAR(NaptáriNap),1,0)))","v":"Nap 277"},{"$f":"IF(DAY(NaptáriNap)=1,CONCATENATE(\"Hét \",WEEKNUM(NaptáriNap),\"/Nap \",NaptáriNap-DATE(YEAR(NaptáriNap),1,0)),CONCATENATE(\"Nap \",NaptáriNap-DATE(YEAR(NaptáriNap),1,0)))","v":"Nap 278"},{"$f":"IF(DAY(NaptáriNap)=1,CONCATENATE(\"Hét \",WEEKNUM(NaptáriNap),\"/Nap \",NaptáriNap-DATE(YEAR(NaptáriNap),1,0)),CONCATENATE(\"Nap \",NaptáriNap-DATE(YEAR(NaptáriNap),1,0)))","v":"Nap 279"}]
[]
[null,null,{"$f":"NapokÉsHetek+DATE(NaptáriÉv,10,1)-WEEKDAY(DATE(NaptáriÉv,10,1),(HétKezdete=\"H\")+1)+8","v":"2018-10-07"},"2018-10-08","2018-10-09","2018-10-10","2018-10-11","2018-10-12","2018-10-13"]
[null,null,{"$f":"IF(WEEKDAY(NaptáriNap)=HétKezdeteÉrték,CONCATENATE(\"Hét \",WEEKNUM(NaptáriNap),\"/Nap \",NaptáriNap-DATE(YEAR(NaptáriNap),1,0)),CONCATENATE(\"Nap \",NaptáriNap-DATE(YEAR(NaptáriNap),1,0)))","v":"Hét 41/Nap 280"},{"$f":"IF(WEEKDAY(NaptáriNap)=HétKezdeteÉrték,CONCATENATE(\"Hét \",WEEKNUM(NaptáriNap),\"/Nap \",NaptáriNap-DATE(YEAR(NaptáriNap),1,0)),CONCATENATE(\"Nap \",NaptáriNap-DATE(YEAR(NaptáriNap),1,0)))","v":"Nap 281"},{"$f":"IF(WEEKDAY(NaptáriNap)=HétKezdeteÉrték,CONCATENATE(\"Hét \",WEEKNUM(NaptáriNap),\"/Nap \",NaptáriNap-DATE(YEAR(NaptáriNap),1,0)),CONCATENATE(\"Nap \",NaptáriNap-DATE(YEAR(NaptáriNap),1,0)))","v":"Nap 282"},{"$f":"IF(WEEKDAY(NaptáriNap)=HétKezdeteÉrték,CONCATENATE(\"Hét \",WEEKNUM(NaptáriNap),\"/Nap \",NaptáriNap-DATE(YEAR(NaptáriNap),1,0)),CONCATENATE(\"Nap \",NaptáriNap-DATE(YEAR(NaptáriNap),1,0)))","v":"Nap 283"},{"$f":"IF(WEEKDAY(NaptáriNap)=HétKezdeteÉrték,CONCATENATE(\"Hét \",WEEKNUM(NaptáriNap),\"/Nap \",NaptáriNap-DATE(YEAR(NaptáriNap),1,0)),CONCATENATE(\"Nap \",NaptáriNap-DATE(YEAR(NaptáriNap),1,0)))","v":"Nap 284"},{"$f":"IF(WEEKDAY(NaptáriNap)=HétKezdeteÉrték,CONCATENATE(\"Hét \",WEEKNUM(NaptáriNap),\"/Nap \",NaptáriNap-DATE(YEAR(NaptáriNap),1,0)),CONCATENATE(\"Nap \",NaptáriNap-DATE(YEAR(NaptáriNap),1,0)))","v":"Nap 285"},{"$f":"IF(WEEKDAY(NaptáriNap)=HétKezdeteÉrték,CONCATENATE(\"Hét \",WEEKNUM(NaptáriNap),\"/Nap \",NaptáriNap-DATE(YEAR(NaptáriNap),1,0)),CONCATENATE(\"Nap \",NaptáriNap-DATE(YEAR(NaptáriNap),1,0)))","v":"Nap 286"}]
[]
[null,null,{"$f":"NapokÉsHetek+DATE(NaptáriÉv,10,1)-WEEKDAY(DATE(NaptáriÉv,10,1),(HétKezdete=\"H\")+1)+15","v":"2018-10-14"},"2018-10-15","2018-10-16","2018-10-17","2018-10-18","2018-10-19","2018-10-20"]
[null,null,{"$f":"IF(WEEKDAY(NaptáriNap)=HétKezdeteÉrték,CONCATENATE(\"Hét \",WEEKNUM(NaptáriNap),\"/Nap \",NaptáriNap-DATE(YEAR(NaptáriNap),1,0)),CONCATENATE(\"Nap \",NaptáriNap-DATE(YEAR(NaptáriNap),1,0)))","v":"Hét 42/Nap 287"},{"$f":"IF(WEEKDAY(NaptáriNap)=HétKezdeteÉrték,CONCATENATE(\"Hét \",WEEKNUM(NaptáriNap),\"/Nap \",NaptáriNap-DATE(YEAR(NaptáriNap),1,0)),CONCATENATE(\"Nap \",NaptáriNap-DATE(YEAR(NaptáriNap),1,0)))","v":"Nap 288"},{"$f":"IF(WEEKDAY(NaptáriNap)=HétKezdeteÉrték,CONCATENATE(\"Hét \",WEEKNUM(NaptáriNap),\"/Nap \",NaptáriNap-DATE(YEAR(NaptáriNap),1,0)),CONCATENATE(\"Nap \",NaptáriNap-DATE(YEAR(NaptáriNap),1,0)))","v":"Nap 289"},{"$f":"IF(WEEKDAY(NaptáriNap)=HétKezdeteÉrték,CONCATENATE(\"Hét \",WEEKNUM(NaptáriNap),\"/Nap \",NaptáriNap-DATE(YEAR(NaptáriNap),1,0)),CONCATENATE(\"Nap \",NaptáriNap-DATE(YEAR(NaptáriNap),1,0)))","v":"Nap 290"},{"$f":"IF(WEEKDAY(NaptáriNap)=HétKezdeteÉrték,CONCATENATE(\"Hét \",WEEKNUM(NaptáriNap),\"/Nap \",NaptáriNap-DATE(YEAR(NaptáriNap),1,0)),CONCATENATE(\"Nap \",NaptáriNap-DATE(YEAR(NaptáriNap),1,0)))","v":"Nap 291"},{"$f":"IF(WEEKDAY(NaptáriNap)=HétKezdeteÉrték,CONCATENATE(\"Hét \",WEEKNUM(NaptáriNap),\"/Nap \",NaptáriNap-DATE(YEAR(NaptáriNap),1,0)),CONCATENATE(\"Nap \",NaptáriNap-DATE(YEAR(NaptáriNap),1,0)))","v":"Nap 292"},{"$f":"IF(WEEKDAY(NaptáriNap)=HétKezdeteÉrték,CONCATENATE(\"Hét \",WEEKNUM(NaptáriNap),\"/Nap \",NaptáriNap-DATE(YEAR(NaptáriNap),1,0)),CONCATENATE(\"Nap \",NaptáriNap-DATE(YEAR(NaptáriNap),1,0)))","v":"Nap 293"}]
[]
[null,null,{"$f":"NapokÉsHetek+DATE(NaptáriÉv,10,1)-WEEKDAY(DATE(NaptáriÉv,10,1),(HétKezdete=\"H\")+1)+22","v":"2018-10-21"},"2018-10-22","2018-10-23","2018-10-24","2018-10-25","2018-10-26","2018-10-27"]
[null,null,{"$f":"IF(WEEKDAY(NaptáriNap)=HétKezdeteÉrték,CONCATENATE(\"Hét \",WEEKNUM(NaptáriNap),\"/Nap \",NaptáriNap-DATE(YEAR(NaptáriNap),1,0)),CONCATENATE(\"Nap \",NaptáriNap-DATE(YEAR(NaptáriNap),1,0)))","v":"Hét 43/Nap 294"},{"$f":"IF(WEEKDAY(NaptáriNap)=HétKezdeteÉrték,CONCATENATE(\"Hét \",WEEKNUM(NaptáriNap),\"/Nap \",NaptáriNap-DATE(YEAR(NaptáriNap),1,0)),CONCATENATE(\"Nap \",NaptáriNap-DATE(YEAR(NaptáriNap),1,0)))","v":"Nap 295"},{"$f":"IF(WEEKDAY(NaptáriNap)=HétKezdeteÉrték,CONCATENATE(\"Hét \",WEEKNUM(NaptáriNap),\"/Nap \",NaptáriNap-DATE(YEAR(NaptáriNap),1,0)),CONCATENATE(\"Nap \",NaptáriNap-DATE(YEAR(NaptáriNap),1,0)))","v":"Nap 296"},{"$f":"IF(WEEKDAY(NaptáriNap)=HétKezdeteÉrték,CONCATENATE(\"Hét \",WEEKNUM(NaptáriNap),\"/Nap \",NaptáriNap-DATE(YEAR(NaptáriNap),1,0)),CONCATENATE(\"Nap \",NaptáriNap-DATE(YEAR(NaptáriNap),1,0)))","v":"Nap 297"},{"$f":"IF(WEEKDAY(NaptáriNap)=HétKezdeteÉrték,CONCATENATE(\"Hét \",WEEKNUM(NaptáriNap),\"/Nap \",NaptáriNap-DATE(YEAR(NaptáriNap),1,0)),CONCATENATE(\"Nap \",NaptáriNap-DATE(YEAR(NaptáriNap),1,0)))","v":"Nap 298"},{"$f":"IF(WEEKDAY(NaptáriNap)=HétKezdeteÉrték,CONCATENATE(\"Hét \",WEEKNUM(NaptáriNap),\"/Nap \",NaptáriNap-DATE(YEAR(NaptáriNap),1,0)),CONCATENATE(\"Nap \",NaptáriNap-DATE(YEAR(NaptáriNap),1,0)))","v":"Nap 299"},{"$f":"IF(WEEKDAY(NaptáriNap)=HétKezdeteÉrték,CONCATENATE(\"Hét \",WEEKNUM(NaptáriNap),\"/Nap \",NaptáriNap-DATE(YEAR(NaptáriNap),1,0)),CONCATENATE(\"Nap \",NaptáriNap-DATE(YEAR(NaptáriNap),1,0)))","v":"Nap 300"}]
[]
[null,null,{"$f":"NapokÉsHetek+DATE(NaptáriÉv,10,1)-WEEKDAY(DATE(NaptáriÉv,10,1),(HétKezdete=\"H\")+1)+29","v":"2018-10-28"},"2018-10-29","2018-10-30","2018-10-31","2018-11-01","2018-11-02","2018-11-03"]
[null,null,{"$f":"IF(WEEKDAY(NaptáriNap)=HétKezdeteÉrték,CONCATENATE(\"Hét \",WEEKNUM(NaptáriNap),\"/Nap \",NaptáriNap-DATE(YEAR(NaptáriNap),1,0)),CONCATENATE(\"Nap \",NaptáriNap-DATE(YEAR(NaptáriNap),1,0)))","v":"Hét 44/Nap 301"},{"$f":"IF(WEEKDAY(NaptáriNap)=HétKezdeteÉrték,CONCATENATE(\"Hét \",WEEKNUM(NaptáriNap),\"/Nap \",NaptáriNap-DATE(YEAR(NaptáriNap),1,0)),CONCATENATE(\"Nap \",NaptáriNap-DATE(YEAR(NaptáriNap),1,0)))","v":"Nap 302"},{"$f":"IF(WEEKDAY(NaptáriNap)=HétKezdeteÉrték,CONCATENATE(\"Hét \",WEEKNUM(NaptáriNap),\"/Nap \",NaptáriNap-DATE(YEAR(NaptáriNap),1,0)),CONCATENATE(\"Nap \",NaptáriNap-DATE(YEAR(NaptáriNap),1,0)))","v":"Nap 303"},{"$f":"IF(WEEKDAY(NaptáriNap)=HétKezdeteÉrték,CONCATENATE(\"Hét \",WEEKNUM(NaptáriNap),\"/Nap \",NaptáriNap-DATE(YEAR(NaptáriNap),1,0)),CONCATENATE(\"Nap \",NaptáriNap-DATE(YEAR(NaptáriNap),1,0)))","v":"Nap 304"},{"$f":"IF(WEEKDAY(NaptáriNap)=HétKezdeteÉrték,CONCATENATE(\"Hét \",WEEKNUM(NaptáriNap),\"/Nap \",NaptáriNap-DATE(YEAR(NaptáriNap),1,0)),CONCATENATE(\"Nap \",NaptáriNap-DATE(YEAR(NaptáriNap),1,0)))","v":"Nap 305"},{"$f":"IF(WEEKDAY(NaptáriNap)=HétKezdeteÉrték,CONCATENATE(\"Hét \",WEEKNUM(NaptáriNap),\"/Nap \",NaptáriNap-DATE(YEAR(NaptáriNap),1,0)),CONCATENATE(\"Nap \",NaptáriNap-DATE(YEAR(NaptáriNap),1,0)))","v":"Nap 306"},{"$f":"IF(WEEKDAY(NaptáriNap)=HétKezdeteÉrték,CONCATENATE(\"Hét \",WEEKNUM(NaptáriNap),\"/Nap \",NaptáriNap-DATE(YEAR(NaptáriNap),1,0)),CONCATENATE(\"Nap \",NaptáriNap-DATE(YEAR(NaptáriNap),1,0)))","v":"Nap 307"}]
[{"$nulls":4},"JEGYZETEK"]
[]
[null,null,{"$f":"NapokÉsHetek+DATE(NaptáriÉv,10,1)-WEEKDAY(DATE(NaptáriÉv,10,1),(HétKezdete=\"H\")+1)+36","v":"2018-11-04"},"2018-11-05"]
[null,null,{"$f":"IF(WEEKDAY(NaptáriNap)=HétKezdeteÉrték,CONCATENATE(\"Hét \",WEEKNUM(NaptáriNap),\"/Nap \",NaptáriNap-DATE(YEAR(NaptáriNap),1,0)),CONCATENATE(\"Nap \",NaptáriNap-DATE(YEAR(NaptáriNap),1,0)))","v":"Hét 45/Nap 308"},{"$f":"IF(WEEKDAY(NaptáriNap)=HétKezdeteÉrték,CONCATENATE(\"Hét \",WEEKNUM(NaptáriNap),\"/Nap \",NaptáriNap-DATE(YEAR(NaptáriNap),1,0)),CONCATENATE(\"Nap \",NaptáriNap-DATE(YEAR(NaptáriNap),1,0)))","v":"Nap 309"}]

{"sheet":"NOV.","index":10,"n_rows":20,"n_cols":9,"rows_kept":20,"merged":[[16,2,17,2],[17,4,19,8]]}
[null,"NOV.",{"$f":"UPPER(TEXT(HétKezdete,\"ddd\"))","v":"V"},{"$f":"UPPER(TEXT(D3,\"aaa\"))","v":"H"},"K","SZE","CS","P","SZO"]
[null,{"$f":"NaptáriÉv","v":2018}]
[null,null,{"$f":"NapokÉsHetek+DATE(NaptáriÉv,11,1)-WEEKDAY(DATE(NaptáriÉv,11,1),(HétKezdete=\"H\")+1)+1","v":"2018-10-28"},"2018-10-29","2018-10-30","2018-10-31","2018-11-01","2018-11-02","2018-11-03"]
[null,null,{"$f":"IF(DAY(NaptáriNap)=1,CONCATENATE(\"Hét \",WEEKNUM(NaptáriNap),\"/Nap \",NaptáriNap-DATE(YEAR(NaptáriNap),1,0)),CONCATENATE(\"Nap \",NaptáriNap-DATE(YEAR(NaptáriNap),1,0)))","v":"Nap 301"},{"$f":"IF(DAY(NaptáriNap)=1,CONCATENATE(\"Hét \",WEEKNUM(NaptáriNap),\"/Nap \",NaptáriNap-DATE(YEAR(NaptáriNap),1,0)),CONCATENATE(\"Nap \",NaptáriNap-DATE(YEAR(NaptáriNap),1,0)))","v":"Nap 302"},{"$f":"IF(DAY(NaptáriNap)=1,CONCATENATE(\"Hét \",WEEKNUM(NaptáriNap),\"/Nap \",NaptáriNap-DATE(YEAR(NaptáriNap),1,0)),CONCATENATE(\"Nap \",NaptáriNap-DATE(YEAR(NaptáriNap),1,0)))","v":"Nap 303"},{"$f":"IF(DAY(NaptáriNap)=1,CONCATENATE(\"Hét \",WEEKNUM(NaptáriNap),\"/Nap \",NaptáriNap-DATE(YEAR(NaptáriNap),1,0)),CONCATENATE(\"Nap \",NaptáriNap-DATE(YEAR(NaptáriNap),1,0)))","v":"Nap 304"},{"$f":"IF(DAY(NaptáriNap)=1,CONCATENATE(\"Hét \",WEEKNUM(NaptáriNap),\"/Nap \",NaptáriNap-DATE(YEAR(NaptáriNap),1,0)),CONCATENATE(\"Nap \",NaptáriNap-DATE(YEAR(NaptáriNap),1,0)))","v":"Hét 44/Nap 305"},{"$f":"IF(DAY(NaptáriNap)=1,CONCATENATE(\"Hét \",WEEKNUM(NaptáriNap),\"/Nap \",NaptáriNap-DATE(YEAR(NaptáriNap),1,0)),CONCATENATE(\"Nap \",NaptáriNap-DATE(YEAR(NaptáriNap),1,0)))","v":"Nap 306"},{"$f":"IF(DAY(NaptáriNap)=1,CONCATENATE(\"Hét \",WEEKNUM(NaptáriNap),\"/Nap \",NaptáriNap-DATE(YEAR(NaptáriNap),1,0)),CONCATENATE(\"Nap \",NaptáriNap-DATE(YEAR(NaptáriNap),1,0)))","v":"Nap 307"}]
[]
[null,null,{"$f":"NapokÉsHetek+DATE(NaptáriÉv,11,1)-WEEKDAY(DATE(NaptáriÉv,11,1),(HétKezdete=\"H\")+1)+8","v":"2018-11-04"},"2018-11-05","2018-11-06","2018-11-07","2018-11-08","2018-11-09","2018-11-10"]
[null,null,{"$f":"IF(WEEKDAY(NaptáriNap)=HétKezdeteÉrték,CONCATENATE(\"Hét \",WEEKNUM(NaptáriNap),\"/Nap \",NaptáriNap-DATE(YEAR(NaptáriNap),1,0)),CONCATENATE(\"Nap \",NaptáriNap-DATE(YEAR(NaptáriNap),1,0)))","v":"Hét 45/Nap 308"},{"$f":"IF(WEEKDAY(NaptáriNap)=HétKezdeteÉrték,CONCATENATE(\"Hét \",WEEKNUM(NaptáriNap),\"/Nap \",NaptáriNap-DATE(YEAR(NaptáriNap),1,0)),CONCATENATE(\"Nap \",NaptáriNap-DATE(YEAR(NaptáriNap),1,0)))","v":"Nap 309"},{"$f":"IF(WEEKDAY(NaptáriNap)=HétKezdeteÉrték,CONCATENATE(\"Hét \",WEEKNUM(NaptáriNap),\"/Nap \",NaptáriNap-DATE(YEAR(NaptáriNap),1,0)),CONCATENATE(\"Nap \",NaptáriNap-DATE(YEAR(NaptáriNap),1,0)))","v":"Nap 310"},{"$f":"IF(WEEKDAY(NaptáriNap)=HétKezdeteÉrték,CONCATENATE(\"Hét \",WEEKNUM(NaptáriNap),\"/Nap \",NaptáriNap-DATE(YEAR(NaptáriNap),1,0)),CONCATENATE(\"Nap \",NaptáriNap-DATE(YEAR(NaptáriNap),1,0)))","v":"Nap 311"},{"$f":"IF(WEEKDAY(NaptáriNap)=HétKezdeteÉrték,CONCATENATE(\"Hét \",WEEKNUM(NaptáriNap),\"/Nap \",NaptáriNap-DATE(YEAR(NaptáriNap),1,0)),CONCATENATE(\"Nap \",NaptáriNap-DATE(YEAR(NaptáriNap),1,0)))","v":"Nap 312"},{"$f":"IF(WEEKDAY(NaptáriNap)=HétKezdeteÉrték,CONCATENATE(\"Hét \",WEEKNUM(NaptáriNap),\"/Nap \",NaptáriNap-DATE(YEAR(NaptáriNap),1,0)),CONCATENATE(\"Nap \",NaptáriNap-DATE(YEAR(NaptáriNap),1,0)))","v":"Nap 313"},{"$f":"IF(WEEKDAY(NaptáriNap)=HétKezdeteÉrték,CONCATENATE(\"Hét \",WEEKNUM(NaptáriNap),\"/Nap \",NaptáriNap-DATE(YEAR(NaptáriNap),1,0)),CONCATENATE(\"Nap \",NaptáriNap-DATE(YEAR(NaptáriNap),1,0)))","v":"Nap 314"}]
[]
[null,null,{"$f":"NapokÉsHetek+DATE(NaptáriÉv,11,1)-WEEKDAY(DATE(NaptáriÉv,11,1),(HétKezdete=\"H\")+1)+15","v":"2018-11-11"},"2018-11-12","2018-11-13","2018-11-14","2018-11-15","2018-11-16","2018-11-17"]
[null,null,{"$f":"IF(WEEKDAY(NaptáriNap)=HétKezdeteÉrték,CONCATENATE(\"Hét \",WEEKNUM(NaptáriNap),\"/Nap \",NaptáriNap-DATE(YEAR(NaptáriNap),1,0)),CONCATENATE(\"Nap \",NaptáriNap-DATE(YEAR(NaptáriNap),1,0)))","v":"Hét 46/Nap 315"},{"$f":"IF(WEEKDAY(NaptáriNap)=HétKezdeteÉrték,CONCATENATE(\"Hét \",WEEKNUM(NaptáriNap),\"/Nap \",NaptáriNap-DATE(YEAR(NaptáriNap),1,0)),CONCATENATE(\"Nap \",NaptáriNap-DATE(YEAR(NaptáriNap),1,0)))","v":"Nap 316"},{"$f":"IF(WEEKDAY(NaptáriNap)=HétKezdeteÉrték,CONCATENATE(\"Hét \",WEEKNUM(NaptáriNap),\"/Nap \",NaptáriNap-DATE(YEAR(NaptáriNap),1,0)),CONCATENATE(\"Nap \",NaptáriNap-DATE(YEAR(NaptáriNap),1,0)))","v":"Nap 317"},{"$f":"IF(WEEKDAY(NaptáriNap)=HétKezdeteÉrték,CONCATENATE(\"Hét \",WEEKNUM(NaptáriNap),\"/Nap \",NaptáriNap-DATE(YEAR(NaptáriNap),1,0)),CONCATENATE(\"Nap \",NaptáriNap-DATE(YEAR(NaptáriNap),1,0)))","v":"Nap 318"},{"$f":"IF(WEEKDAY(NaptáriNap)=HétKezdeteÉrték,CONCATENATE(\"Hét \",WEEKNUM(NaptáriNap),\"/Nap \",NaptáriNap-DATE(YEAR(NaptáriNap),1,0)),CONCATENATE(\"Nap \",NaptáriNap-DATE(YEAR(NaptáriNap),1,0)))","v":"Nap 319"},{"$f":"IF(WEEKDAY(NaptáriNap)=HétKezdeteÉrték,CONCATENATE(\"Hét \",WEEKNUM(NaptáriNap),\"/Nap \",NaptáriNap-DATE(YEAR(NaptáriNap),1,0)),CONCATENATE(\"Nap \",NaptáriNap-DATE(YEAR(NaptáriNap),1,0)))","v":"Nap 320"},{"$f":"IF(WEEKDAY(NaptáriNap)=HétKezdeteÉrték,CONCATENATE(\"Hét \",WEEKNUM(NaptáriNap),\"/Nap \",NaptáriNap-DATE(YEAR(NaptáriNap),1,0)),CONCATENATE(\"Nap \",NaptáriNap-DATE(YEAR(NaptáriNap),1,0)))","v":"Nap 321"}]
[]
[null,null,{"$f":"NapokÉsHetek+DATE(NaptáriÉv,11,1)-WEEKDAY(DATE(NaptáriÉv,11,1),(HétKezdete=\"H\")+1)+22","v":"2018-11-18"},"2018-11-19","2018-11-20","2018-11-21","2018-11-22","2018-11-23","2018-11-24"]
[null,null,{"$f":"IF(WEEKDAY(NaptáriNap)=HétKezdeteÉrték,CONCATENATE(\"Hét \",WEEKNUM(NaptáriNap),\"/Nap \",NaptáriNap-DATE(YEAR(NaptáriNap),1,0)),CONCATENATE(\"Nap \",NaptáriNap-DATE(YEAR(NaptáriNap),1,0)))","v":"Hét 47/Nap 322"},{"$f":"IF(WEEKDAY(NaptáriNap)=HétKezdeteÉrték,CONCATENATE(\"Hét \",WEEKNUM(NaptáriNap),\"/Nap \",NaptáriNap-DATE(YEAR(NaptáriNap),1,0)),CONCATENATE(\"Nap \",NaptáriNap-DATE(YEAR(NaptáriNap),1,0)))","v":"Nap 323"},{"$f":"IF(WEEKDAY(NaptáriNap)=HétKezdeteÉrték,CONCATENATE(\"Hét \",WEEKNUM(NaptáriNap),\"/Nap \",NaptáriNap-DATE(YEAR(NaptáriNap),1,0)),CONCATENATE(\"Nap \",NaptáriNap-DATE(YEAR(NaptáriNap),1,0)))","v":"Nap 324"},{"$f":"IF(WEEKDAY(NaptáriNap)=HétKezdeteÉrték,CONCATENATE(\"Hét \",WEEKNUM(NaptáriNap),\"/Nap \",NaptáriNap-DATE(YEAR(NaptáriNap),1,0)),CONCATENATE(\"Nap \",NaptáriNap-DATE(YEAR(NaptáriNap),1,0)))","v":"Nap 325"},{"$f":"IF(WEEKDAY(NaptáriNap)=HétKezdeteÉrték,CONCATENATE(\"Hét \",WEEKNUM(NaptáriNap),\"/Nap \",NaptáriNap-DATE(YEAR(NaptáriNap),1,0)),CONCATENATE(\"Nap \",NaptáriNap-DATE(YEAR(NaptáriNap),1,0)))","v":"Nap 326"},{"$f":"IF(WEEKDAY(NaptáriNap)=HétKezdeteÉrték,CONCATENATE(\"Hét \",WEEKNUM(NaptáriNap),\"/Nap \",NaptáriNap-DATE(YEAR(NaptáriNap),1,0)),CONCATENATE(\"Nap \",NaptáriNap-DATE(YEAR(NaptáriNap),1,0)))","v":"Nap 327"},{"$f":"IF(WEEKDAY(NaptáriNap)=HétKezdeteÉrték,CONCATENATE(\"Hét \",WEEKNUM(NaptáriNap),\"/Nap \",NaptáriNap-DATE(YEAR(NaptáriNap),1,0)),CONCATENATE(\"Nap \",NaptáriNap-DATE(YEAR(NaptáriNap),1,0)))","v":"Nap 328"}]
[]
[null,null,{"$f":"NapokÉsHetek+DATE(NaptáriÉv,11,1)-WEEKDAY(DATE(NaptáriÉv,11,1),(HétKezdete=\"H\")+1)+29","v":"2018-11-25"},"2018-11-26","2018-11-27","2018-11-28","2018-11-29","2018-11-30","2018-12-01"]
[null,null,{"$f":"IF(WEEKDAY(NaptáriNap)=HétKezdeteÉrték,CONCATENATE(\"Hét \",WEEKNUM(NaptáriNap),\"/Nap \",NaptáriNap-DATE(YEAR(NaptáriNap),1,0)),CONCATENATE(\"Nap \",NaptáriNap-DATE(YEAR(NaptáriNap),1,0)))","v":"Hét 48/Nap 329"},{"$f":"IF(WEEKDAY(NaptáriNap)=HétKezdeteÉrték,CONCATENATE(\"Hét \",WEEKNUM(NaptáriNap),\"/Nap \",NaptáriNap-DATE(YEAR(NaptáriNap),1,0)),CONCATENATE(\"Nap \",NaptáriNap-DATE(YEAR(NaptáriNap),1,0)))","v":"Nap 330"},{"$f":"IF(WEEKDAY(NaptáriNap)=HétKezdeteÉrték,CONCATENATE(\"Hét \",WEEKNUM(NaptáriNap),\"/Nap \",NaptáriNap-DATE(YEAR(NaptáriNap),1,0)),CONCATENATE(\"Nap \",NaptáriNap-DATE(YEAR(NaptáriNap),1,0)))","v":"Nap 331"},{"$f":"IF(WEEKDAY(NaptáriNap)=HétKezdeteÉrték,CONCATENATE(\"Hét \",WEEKNUM(NaptáriNap),\"/Nap \",NaptáriNap-DATE(YEAR(NaptáriNap),1,0)),CONCATENATE(\"Nap \",NaptáriNap-DATE(YEAR(NaptáriNap),1,0)))","v":"Nap 332"},{"$f":"IF(WEEKDAY(NaptáriNap)=HétKezdeteÉrték,CONCATENATE(\"Hét \",WEEKNUM(NaptáriNap),\"/Nap \",NaptáriNap-DATE(YEAR(NaptáriNap),1,0)),CONCATENATE(\"Nap \",NaptáriNap-DATE(YEAR(NaptáriNap),1,0)))","v":"Nap 333"},{"$f":"IF(WEEKDAY(NaptáriNap)=HétKezdeteÉrték,CONCATENATE(\"Hét \",WEEKNUM(NaptáriNap),\"/Nap \",NaptáriNap-DATE(YEAR(NaptáriNap),1,0)),CONCATENATE(\"Nap \",NaptáriNap-DATE(YEAR(NaptáriNap),1,0)))","v":"Nap 334"},{"$f":"IF(WEEKDAY(NaptáriNap)=HétKezdeteÉrték,CONCATENATE(\"Hét \",WEEKNUM(NaptáriNap),\"/Nap \",NaptáriNap-DATE(YEAR(NaptáriNap),1,0)),CONCATENATE(\"Nap \",NaptáriNap-DATE(YEAR(NaptáriNap),1,0)))","v":"Nap 335"}]
[{"$nulls":4},"JEGYZETEK"]
[]
[null,null,{"$f":"NapokÉsHetek+DATE(NaptáriÉv,11,1)-WEEKDAY(DATE(NaptáriÉv,11,1),(HétKezdete=\"H\")+1)+36","v":"2018-12-02"},"2018-12-03"]
[null,null,{"$f":"IF(WEEKDAY(NaptáriNap)=HétKezdeteÉrték,CONCATENATE(\"Hét \",WEEKNUM(NaptáriNap),\"/Nap \",NaptáriNap-DATE(YEAR(NaptáriNap),1,0)),CONCATENATE(\"Nap \",NaptáriNap-DATE(YEAR(NaptáriNap),1,0)))","v":"Hét 49/Nap 336"},{"$f":"IF(WEEKDAY(NaptáriNap)=HétKezdeteÉrték,CONCATENATE(\"Hét \",WEEKNUM(NaptáriNap),\"/Nap \",NaptáriNap-DATE(YEAR(NaptáriNap),1,0)),CONCATENATE(\"Nap \",NaptáriNap-DATE(YEAR(NaptáriNap),1,0)))","v":"Nap 337"}]

{"sheet":"DEC.","index":11,"n_rows":20,"n_cols":9,"rows_kept":20,"merged":[[16,2,17,2],[17,4,19,8]]}
[null,"DEC.",{"$f":"UPPER(TEXT(HétKezdete,\"ddd\"))","v":"V"},{"$f":"UPPER(TEXT(D3,\"aaa\"))","v":"H"},"K","SZE","CS","P","SZO"]
[null,{"$f":"NaptáriÉv","v":2018}]
[null,null,{"$f":"NapokÉsHetek+DATE(NaptáriÉv,12,1)-WEEKDAY(DATE(NaptáriÉv,12,1),(HétKezdete=\"H\")+1)+1","v":"2018-11-25"},"2018-11-26","2018-11-27","2018-11-28","2018-11-29","2018-11-30","2018-12-01"]
[null,null,{"$f":"IF(DAY(NaptáriNap)=1,CONCATENATE(\"Hét \",WEEKNUM(NaptáriNap),\"/Nap \",NaptáriNap-DATE(YEAR(NaptáriNap),1,0)),CONCATENATE(\"Nap \",NaptáriNap-DATE(YEAR(NaptáriNap),1,0)))","v":"Nap 329"},{"$f":"IF(DAY(NaptáriNap)=1,CONCATENATE(\"Hét \",WEEKNUM(NaptáriNap),\"/Nap \",NaptáriNap-DATE(YEAR(NaptáriNap),1,0)),CONCATENATE(\"Nap \",NaptáriNap-DATE(YEAR(NaptáriNap),1,0)))","v":"Nap 330"},{"$f":"IF(DAY(NaptáriNap)=1,CONCATENATE(\"Hét \",WEEKNUM(NaptáriNap),\"/Nap \",NaptáriNap-DATE(YEAR(NaptáriNap),1,0)),CONCATENATE(\"Nap \",NaptáriNap-DATE(YEAR(NaptáriNap),1,0)))","v":"Nap 331"},{"$f":"IF(DAY(NaptáriNap)=1,CONCATENATE(\"Hét \",WEEKNUM(NaptáriNap),\"/Nap \",NaptáriNap-DATE(YEAR(NaptáriNap),1,0)),CONCATENATE(\"Nap \",NaptáriNap-DATE(YEAR(NaptáriNap),1,0)))","v":"Nap 332"},{"$f":"IF(DAY(NaptáriNap)=1,CONCATENATE(\"Hét \",WEEKNUM(NaptáriNap),\"/Nap \",NaptáriNap-DATE(YEAR(NaptáriNap),1,0)),CONCATENATE(\"Nap \",NaptáriNap-DATE(YEAR(NaptáriNap),1,0)))","v":"Nap 333"},{"$f":"IF(DAY(NaptáriNap)=1,CONCATENATE(\"Hét \",WEEKNUM(NaptáriNap),\"/Nap \",NaptáriNap-DATE(YEAR(NaptáriNap),1,0)),CONCATENATE(\"Nap \",NaptáriNap-DATE(YEAR(NaptáriNap),1,0)))","v":"Nap 334"},{"$f":"IF(DAY(NaptáriNap)=1,CONCATENATE(\"Hét \",WEEKNUM(NaptáriNap),\"/Nap \",NaptáriNap-DATE(YEAR(NaptáriNap),1,0)),CONCATENATE(\"Nap \",NaptáriNap-DATE(YEAR(NaptáriNap),1,0)))","v":"Hét 48/Nap 335"}]
[]
[null,null,{"$f":"NapokÉsHetek+DATE(NaptáriÉv,12,1)-WEEKDAY(DATE(NaptáriÉv,12,1),(HétKezdete=\"H\")+1)+8","v":"2018-12-02"},"2018-12-03","2018-12-04","2018-12-05","2018-12-06","2018-12-07","2018-12-08"]
[null,null,{"$f":"IF(WEEKDAY(NaptáriNap)=HétKezdeteÉrték,CONCATENATE(\"Hét \",WEEKNUM(NaptáriNap),\"/Nap \",NaptáriNap-DATE(YEAR(NaptáriNap),1,0)),CONCATENATE(\"Nap \",NaptáriNap-DATE(YEAR(NaptáriNap),1,0)))","v":"Hét 49/Nap 336"},{"$f":"IF(WEEKDAY(NaptáriNap)=HétKezdeteÉrték,CONCATENATE(\"Hét \",WEEKNUM(NaptáriNap),\"/Nap \",NaptáriNap-DATE(YEAR(NaptáriNap),1,0)),CONCATENATE(\"Nap \",NaptáriNap-DATE(YEAR(NaptáriNap),1,0)))","v":"Nap 337"},{"$f":"IF(WEEKDAY(NaptáriNap)=HétKezdeteÉrték,CONCATENATE(\"Hét \",WEEKNUM(NaptáriNap),\"/Nap \",NaptáriNap-DATE(YEAR(NaptáriNap),1,0)),CONCATENATE(\"Nap \",NaptáriNap-DATE(YEAR(NaptáriNap),1,0)))","v":"Nap 338"},{"$f":"IF(WEEKDAY(NaptáriNap)=HétKezdeteÉrték,CONCATENATE(\"Hét \",WEEKNUM(NaptáriNap),\"/Nap \",NaptáriNap-DATE(YEAR(NaptáriNap),1,0)),CONCATENATE(\"Nap \",NaptáriNap-DATE(YEAR(NaptáriNap),1,0)))","v":"Nap 339"},{"$f":"IF(WEEKDAY(NaptáriNap)=HétKezdeteÉrték,CONCATENATE(\"Hét \",WEEKNUM(NaptáriNap),\"/Nap \",NaptáriNap-DATE(YEAR(NaptáriNap),1,0)),CONCATENATE(\"Nap \",NaptáriNap-DATE(YEAR(NaptáriNap),1,0)))","v":"Nap 340"},{"$f":"IF(WEEKDAY(NaptáriNap)=HétKezdeteÉrték,CONCATENATE(\"Hét \",WEEKNUM(NaptáriNap),\"/Nap \",NaptáriNap-DATE(YEAR(NaptáriNap),1,0)),CONCATENATE(\"Nap \",NaptáriNap-DATE(YEAR(NaptáriNap),1,0)))","v":"Nap 341"},{"$f":"IF(WEEKDAY(NaptáriNap)=HétKezdeteÉrték,CONCATENATE(\"Hét \",WEEKNUM(NaptáriNap),\"/Nap \",NaptáriNap-DATE(YEAR(NaptáriNap),1,0)),CONCATENATE(\"Nap \",NaptáriNap-DATE(YEAR(NaptáriNap),1,0)))","v":"Nap 342"}]
[]
[null,null,{"$f":"NapokÉsHetek+DATE(NaptáriÉv,12,1)-WEEKDAY(DATE(NaptáriÉv,12,1),(HétKezdete=\"H\")+1)+15","v":"2018-12-09"},"2018-12-10","2018-12-11","2018-12-12","2018-12-13","2018-12-14","2018-12-15"]
[null,null,{"$f":"IF(WEEKDAY(NaptáriNap)=HétKezdeteÉrték,CONCATENATE(\"Hét \",WEEKNUM(NaptáriNap),\"/Nap \",NaptáriNap-DATE(YEAR(NaptáriNap),1,0)),CONCATENATE(\"Nap \",NaptáriNap-DATE(YEAR(NaptáriNap),1,0)))","v":"Hét 50/Nap 343"},{"$f":"IF(WEEKDAY(NaptáriNap)=HétKezdeteÉrték,CONCATENATE(\"Hét \",WEEKNUM(NaptáriNap),\"/Nap \",NaptáriNap-DATE(YEAR(NaptáriNap),1,0)),CONCATENATE(\"Nap \",NaptáriNap-DATE(YEAR(NaptáriNap),1,0)))","v":"Nap 344"},{"$f":"IF(WEEKDAY(NaptáriNap)=HétKezdeteÉrték,CONCATENATE(\"Hét \",WEEKNUM(NaptáriNap),\"/Nap \",NaptáriNap-DATE(YEAR(NaptáriNap),1,0)),CONCATENATE(\"Nap \",NaptáriNap-DATE(YEAR(NaptáriNap),1,0)))","v":"Nap 345"},{"$f":"IF(WEEKDAY(NaptáriNap)=HétKezdeteÉrték,CONCATENATE(\"Hét \",WEEKNUM(NaptáriNap),\"/Nap \",NaptáriNap-DATE(YEAR(NaptáriNap),1,0)),CONCATENATE(\"Nap \",NaptáriNap-DATE(YEAR(NaptáriNap),1,0)))","v":"Nap 346"},{"$f":"IF(WEEKDAY(NaptáriNap)=HétKezdeteÉrték,CONCATENATE(\"Hét \",WEEKNUM(NaptáriNap),\"/Nap \",NaptáriNap-DATE(YEAR(NaptáriNap),1,0)),CONCATENATE(\"Nap \",NaptáriNap-DATE(YEAR(NaptáriNap),1,0)))","v":"Nap 347"},{"$f":"IF(WEEKDAY(NaptáriNap)=HétKezdeteÉrték,CONCATENATE(\"Hét \",WEEKNUM(NaptáriNap),\"/Nap \",NaptáriNap-DATE(YEAR(NaptáriNap),1,0)),CONCATENATE(\"Nap \",NaptáriNap-DATE(YEAR(NaptáriNap),1,0)))","v":"Nap 348"},{"$f":"IF(WEEKDAY(NaptáriNap)=HétKezdeteÉrték,CONCATENATE(\"Hét \",WEEKNUM(NaptáriNap),\"/Nap \",NaptáriNap-DATE(YEAR(NaptáriNap),1,0)),CONCATENATE(\"Nap \",NaptáriNap-DATE(YEAR(NaptáriNap),1,0)))","v":"Nap 349"}]
[]
[null,null,{"$f":"NapokÉsHetek+DATE(NaptáriÉv,12,1)-WEEKDAY(DATE(NaptáriÉv,12,1),(HétKezdete=\"H\")+1)+22","v":"2018-12-16"},"2018-12-17","2018-12-18","2018-12-19","2018-12-20","2018-12-21","2018-12-22"]
[null,null,{"$f":"IF(WEEKDAY(NaptáriNap)=HétKezdeteÉrték,CONCATENATE(\"Hét \",WEEKNUM(NaptáriNap),\"/Nap \",NaptáriNap-DATE(YEAR(NaptáriNap),1,0)),CONCATENATE(\"Nap \",NaptáriNap-DATE(YEAR(NaptáriNap),1,0)))","v":"Hét 51/Nap 350"},{"$f":"IF(WEEKDAY(NaptáriNap)=HétKezdeteÉrték,CONCATENATE(\"Hét \",WEEKNUM(NaptáriNap),\"/Nap \",NaptáriNap-DATE(YEAR(NaptáriNap),1,0)),CONCATENATE(\"Nap \",NaptáriNap-DATE(YEAR(NaptáriNap),1,0)))","v":"Nap 351"},{"$f":"IF(WEEKDAY(NaptáriNap)=HétKezdeteÉrték,CONCATENATE(\"Hét \",WEEKNUM(NaptáriNap),\"/Nap \",NaptáriNap-DATE(YEAR(NaptáriNap),1,0)),CONCATENATE(\"Nap \",NaptáriNap-DATE(YEAR(NaptáriNap),1,0)))","v":"Nap 352"},{"$f":"IF(WEEKDAY(NaptáriNap)=HétKezdeteÉrték,CONCATENATE(\"Hét \",WEEKNUM(NaptáriNap),\"/Nap \",NaptáriNap-DATE(YEAR(NaptáriNap),1,0)),CONCATENATE(\"Nap \",NaptáriNap-DATE(YEAR(NaptáriNap),1,0)))","v":"Nap 353"},{"$f":"IF(WEEKDAY(NaptáriNap)=HétKezdeteÉrték,CONCATENATE(\"Hét \",WEEKNUM(NaptáriNap),\"/Nap \",NaptáriNap-DATE(YEAR(NaptáriNap),1,0)),CONCATENATE(\"Nap \",NaptáriNap-DATE(YEAR(NaptáriNap),1,0)))","v":"Nap 354"},{"$f":"IF(WEEKDAY(NaptáriNap)=HétKezdeteÉrték,CONCATENATE(\"Hét \",WEEKNUM(NaptáriNap),\"/Nap \",NaptáriNap-DATE(YEAR(NaptáriNap),1,0)),CONCATENATE(\"Nap \",NaptáriNap-DATE(YEAR(NaptáriNap),1,0)))","v":"Nap 355"},{"$f":"IF(WEEKDAY(NaptáriNap)=HétKezdeteÉrték,CONCATENATE(\"Hét \",WEEKNUM(NaptáriNap),\"/Nap \",NaptáriNap-DATE(YEAR(NaptáriNap),1,0)),CONCATENATE(\"Nap \",NaptáriNap-DATE(YEAR(NaptáriNap),1,0)))","v":"Nap 356"}]
[]
[null,null,{"$f":"NapokÉsHetek+DATE(NaptáriÉv,12,1)-WEEKDAY(DATE(NaptáriÉv,12,1),(HétKezdete=\"H\")+1)+29","v":"2018-12-23"},"2018-12-24","2018-12-25","2018-12-26","2018-12-27","2018-12-28","2018-12-29"]
[null,null,{"$f":"IF(WEEKDAY(NaptáriNap)=HétKezdeteÉrték,CONCATENATE(\"Hét \",WEEKNUM(NaptáriNap),\"/Nap \",NaptáriNap-DATE(YEAR(NaptáriNap),1,0)),CONCATENATE(\"Nap \",NaptáriNap-DATE(YEAR(NaptáriNap),1,0)))","v":"Hét 52/Nap 357"},{"$f":"IF(WEEKDAY(NaptáriNap)=HétKezdeteÉrték,CONCATENATE(\"Hét \",WEEKNUM(NaptáriNap),\"/Nap \",NaptáriNap-DATE(YEAR(NaptáriNap),1,0)),CONCATENATE(\"Nap \",NaptáriNap-DATE(YEAR(NaptáriNap),1,0)))","v":"Nap 358"},{"$f":"IF(WEEKDAY(NaptáriNap)=HétKezdeteÉrték,CONCATENATE(\"Hét \",WEEKNUM(NaptáriNap),\"/Nap \",NaptáriNap-DATE(YEAR(NaptáriNap),1,0)),CONCATENATE(\"Nap \",NaptáriNap-DATE(YEAR(NaptáriNap),1,0)))","v":"Nap 359"},{"$f":"IF(WEEKDAY(NaptáriNap)=HétKezdeteÉrték,CONCATENATE(\"Hét \",WEEKNUM(NaptáriNap),\"/Nap \",NaptáriNap-DATE(YEAR(NaptáriNap),1,0)),CONCATENATE(\"Nap \",NaptáriNap-DATE(YEAR(NaptáriNap),1,0)))","v":"Nap 360"},{"$f":"IF(WEEKDAY(NaptáriNap)=HétKezdeteÉrték,CONCATENATE(\"Hét \",WEEKNUM(NaptáriNap),\"/Nap \",NaptáriNap-DATE(YEAR(NaptáriNap),1,0)),CONCATENATE(\"Nap \",NaptáriNap-DATE(YEAR(NaptáriNap),1,0)))","v":"Nap 361"},{"$f":"IF(WEEKDAY(NaptáriNap)=HétKezdeteÉrték,CONCATENATE(\"Hét \",WEEKNUM(NaptáriNap),\"/Nap \",NaptáriNap-DATE(YEAR(NaptáriNap),1,0)),CONCATENATE(\"Nap \",NaptáriNap-DATE(YEAR(NaptáriNap),1,0)))","v":"Nap 362"},{"$f":"IF(WEEKDAY(NaptáriNap)=HétKezdeteÉrték,CONCATENATE(\"Hét \",WEEKNUM(NaptáriNap),\"/Nap \",NaptáriNap-DATE(YEAR(NaptáriNap),1,0)),CONCATENATE(\"Nap \",NaptáriNap-DATE(YEAR(NaptáriNap),1,0)))","v":"Nap 363"}]
[{"$nulls":4},"JEGYZETEK"]
[]
[null,null,{"$f":"NapokÉsHetek+DATE(NaptáriÉv,12,1)-WEEKDAY(DATE(NaptáriÉv,12,1),(HétKezdete=\"H\")+1)+36","v":"2018-12-30"},"2018-12-31"]
[null,null,{"$f":"IF(WEEKDAY(NaptáriNap)=HétKezdeteÉrték,CONCATENATE(\"Hét \",WEEKNUM(NaptáriNap),\"/Nap \",NaptáriNap-DATE(YEAR(NaptáriNap),1,0)),CONCATENATE(\"Nap \",NaptáriNap-DATE(YEAR(NaptáriNap),1,0)))","v":"Hét 53/Nap 364"},{"$f":"IF(WEEKDAY(NaptáriNap)=HétKezdeteÉrték,CONCATENATE(\"Hét \",WEEKNUM(NaptáriNap),\"/Nap \",NaptáriNap-DATE(YEAR(NaptáriNap),1,0)),CONCATENATE(\"Nap \",NaptáriNap-DATE(YEAR(NaptáriNap),1,0)))","v":"Nap 365"}]